Capital or Revenue,Directorate,SERCOP High Level Category,SERCOP Detailed Category,Transaction Number,Date,Service Area,Expenses Type,Amount,Supplier Name
Revenue,Adult Services,Adult Social Care,Learning Disability Suppt-adults (18-64),5105688665,27.10.2021,Learning Disability Residential 18-64,Charges from Independent Providers,"10,813.88",COMMUNITY HOMES IN INTENSIVE CARE
Revenue,Adult Services,Adult Social Care,Central Codes (to be reallocated),5105688062,20.10.2021,Gouldings Resource Centre,Consumable Cleaning Materials,164.00,A & M APPLIANCE CARE
Revenue,Adult Services,Adult Social Care,Learning Disab Supp (to be reallocated),5105686757,06.10.2021,Plean Dene,Consumable Cleaning Materials,86.00,A & M APPLIANCE CARE
Revenue,Adult Services,Adult Social Care,Learning Disab Supp (to be reallocated),5105688061,20.10.2021,Plean Dene,Consumable Cleaning Materials,86.00,A & M APPLIANCE CARE
Revenue,Adult Services,Adult Social Care,Social Support - Support for Carer,5105688063,20.10.2021,Westminster House,Property Services - Day to day Maintenance,341.19,A & M APPLIANCE CARE
Revenue,Adult Services,Adult Social Care,Social Support - Support for Carer,5105688119,20.10.2021,Westminster House,Property Services - Day to day Maintenance,-341.19,A & M APPLIANCE CARE
Revenue,Adult Services,Adult Social Care,Social Support - Support for Carer,5105688120,22.10.2021,Westminster House,Property Services - Day to day Maintenance,341.19,A & M APPLIANCE CARE
Revenue,Adult Services,Adult Social Care,Central Codes (to be reallocated),5105686759,06.10.2021,Adelaide Resource Centre,Consumable Cleaning Materials,262.00,A & M APPLIANCE CARE
Revenue,Adult Services,Adult Social Care,Central Codes (to be reallocated),5105687118,08.10.2021,Community Reablement,Property Services - Day to day Maintenance,45.00,ISLANDWIDE WINDSCREENS
Revenue,Adult Services,Adult Social Care,Central Codes (to be reallocated),5105688023,20.10.2021,Community Reablement,Vehicle Maintenance Costs,45.00,ISLANDWIDE WINDSCREENS
Revenue,Childrens Services,Balance Sheet,Balance Sheet,5105688401,22.10.2021,7740 - HW06 EJD,Vehicle Maintenance Costs,298.07,ISLANDWIDE WINDSCREENS
Revenue,Regeneration,Central Services,Support Services,5105686277,01.10.2021,17 Fairlee Road,Grounds Maintenance,75.00,C & J GROUND MAINTENANCE
Revenue,Neighbourhoods,Environmental & Regulatory Services,"Cemetery, Cremation & Mortuary Services",5105688736,27.10.2021,Cemeteries-Ventnor,Grounds Maintenance,98.25,C & J GROUND MAINTENANCE
Revenue,Regeneration,Housing Services,Other Council Property,5105686273,01.10.2021,Shared Ownership,Grounds Maintenance,75.00,C & J GROUND MAINTENANCE
Revenue,Regeneration,Planning services,Business Support,5105686274,01.10.2021,Somerton Industrial Park,Grounds Maintenance,100.00,C & J GROUND MAINTENANCE
Revenue,Regeneration,Planning services,Business Support,5105686275,01.10.2021,Dodnor Industrial Estate,Grounds Maintenance,75.00,C & J GROUND MAINTENANCE
Revenue,Childrens Services,Children's & Education Services,Other Education and Community Budget,5105687518,13.10.2021,Home to School SEN Transport (LA),Taxis - Contract Hire,960.00,MICK'S TAXI
Revenue,Childrens Services,Children's & Education Services,Other Education and Community Budget,5105687838,15.10.2021,Home to School SEN Transport (LA),Taxis - Contract Hire,"1,100.00",CLARES CABS
Revenue,Resources,Central Services,Support Services,5105688399,22.10.2021,Litigation Costs,Legal Fees - Other Parties,400.00,COLLEGE CHAMBERS BARRISTERS
Revenue,Resources,Central Services,Support Services,5105688576,27.10.2021,Litigation Costs,Legal Fees - Other Parties,125.00,COLLEGE CHAMBERS BARRISTERS
Revenue,Adult Services,Adult Social Care,Social Care Activities,5105688727,27.10.2021,DoLS/MCA,Professional Services,184.32,DR ALEXIS BOWERS LTD
Revenue,Childrens Services,Children's & Education Services,Safeguarding Children/Young Peoples Svs,5105687585,13.10.2021,Court Work & Consultancy Services,Professional Services,232.00,GARY TAYLOR ASSOCIATES LIMITED
Revenue,Childrens Services,Children's & Education Services,Other Education and Community Budget,5105687516,13.10.2021,Home to School SEN Transport (LA),Taxis - Contract Hire,720.00,HAYLES TAXIS
Revenue,Regeneration,Planning services,Economic Development,5105686734,06.10.2021,Victoria Quays,Professional Services,500.00,LINSCH CONSULTANTS
Revenue,Regeneration,Planning services,Economic Development,5105686734,06.10.2021,Victoria Quays,Professional Services,275.00,LINSCH CONSULTANTS
Revenue,Regeneration,Planning services,Economic Development,5105686734,06.10.2021,Victoria Quays,Professional Services,950.00,LINSCH CONSULTANTS
Revenue,Neighbourhoods,Cultural and Related Services,Library Service,5105687487,13.10.2021,East Cowes Library,Property Services - Day to day Maintenance,100.00,LINSCH CONSULTANTS
Revenue,Neighbourhoods,Cultural and Related Services,Open Spaces,5105689111,29.10.2021,Rights of Way Operations,Payment to Private Contractors,"2,200.00",REDACTED PERSONAL DATA
Capital,Place,Capital,Capital,5105687391,13.10.2021,Rights Of Way Capital Programme,Payment to Contractors - Capital,"1,320.00",REDACTED PERSONAL DATA
Capital,Place,Capital,Capital,5105688831,27.10.2021,Rights Of Way Capital Programme,Payment to Contractors - Capital,"2,795.00",REDACTED PERSONAL DATA
Revenue,Neighbourhoods,Environmental & Regulatory Services,"Cemetery, Cremation & Mortuary Services",5105686709,01.10.2021,Cemeteries Administration,Grounds Maintenance,250.00,NIGEL EARLEY SERVICES LTD
Revenue,Resources,Central Services,Support Services,5105687494,13.10.2021,Legal Services Section,Sundry Office Expenses,59.97,OD CONSULTANCY LTD
Revenue,Adult Services,Housing Services,Homelessness,5105688413,22.10.2021,Private Rented Sector Leasing Scheme,Accommodation Costs - Leaseholder Payments,695.89,REDACTED PERSONAL DATA
Revenue,Adult Services,Housing Services,Homelessness,5105688413,22.10.2021,Private Rented Sector Leasing Scheme,Accommodation Costs - Leaseholder Payments,695.89,REDACTED PERSONAL DATA
Revenue,Adult Services,Housing Services,Homelessness,5105688413,22.10.2021,Private Rented Sector Leasing Scheme,Accommodation Costs - Leaseholder Payments,695.89,REDACTED PERSONAL DATA
Revenue,Adult Services,Housing Services,Homelessness,5105688413,22.10.2021,Private Rented Sector Leasing Scheme,Accommodation Costs - Leaseholder Payments,695.89,REDACTED PERSONAL DATA
Revenue,Adult Services,Housing Services,Homelessness,5105688413,22.10.2021,Private Rented Sector Leasing Scheme,Accommodation Costs - Leaseholder Payments,695.89,REDACTED PERSONAL DATA
Revenue,Adult Services,Adult Social Care,Commissioning & Service Delivery,5105685645,06.10.2021,Deferred Payment Fees,Professional Services,150.00,PRINCIPAL SURVEYORS LTD
Revenue,Regeneration,Central Services,Support Services,5105687567,13.10.2021,Strategic Assets Team,Professional Services,874.00,PRINCIPAL SURVEYORS LTD
Revenue,Regeneration,Central Services,Support Services,5105687564,13.10.2021,Strategic Assets Team,Professional Services,266.00,PRINCIPAL SURVEYORS LTD
Revenue,Regeneration,Central Services,Support Services,5105688111,22.10.2021,"Guildhall,Newport",Property Services - Planned Maintenance,260.00,R G PROPERTY SERVICES
Revenue,Childrens Services,Children's & Education Services,Other Education and Community Budget,5105687610,15.10.2021,Home to College Post 16 Transport,Taxis - Contract Hire,560.00,ROUNSEVELLS TAXIS
Revenue,Childrens Services,Children's & Education Services,Other Education and Community Budget,5105687611,15.10.2021,Home to College Post 16 Transport,Taxis - Contract Hire,385.00,ROUNSEVELLS TAXIS
Revenue,Adult Services,Adult Social Care,Learning Disability Suppt-adults (18-64),5105670693,13.10.2021,Learning Disability Other LT Care 18-64,Taxis - Contract Hire,297.50,ROUNSEVELLS TAXIS
Revenue,Adult Services,Adult Social Care,Learning Disability Suppt-adults (18-64),5105687333,13.10.2021,Learning Disability Other LT Care 18-64,Taxis - Contract Hire,-297.50,ROUNSEVELLS TAXIS
Revenue,Adult Services,Adult Social Care,Social Care Activities,5105687360,13.10.2021,LSAB Conferences,Professional Services,280.00,ST THOMAS TRAINING
Revenue,Adult Services,Adult Social Care,Social Care Activities,5105687360,13.10.2021,LSAB Conferences,Professional Services,280.00,ST THOMAS TRAINING
Revenue,Adult Services,Adult Social Care,Social Care Activities,5105687360,13.10.2021,LSAB Conferences,Professional Services,280.00,ST THOMAS TRAINING
Revenue,Adult Services,Adult Social Care,Social Care Activities,5105687360,13.10.2021,LSAB Conferences,Professional Services,280.00,ST THOMAS TRAINING
Revenue,Childrens Services,Children's & Education Services,Other Education and Community Budget,5105686756,06.10.2021,Commissioning ACL,Grants to External Bodies,"6,000.00",THE CROSSLEY COMPANY (IOW) LTD
Revenue,Resources,Children's & Education Services,Safeguarding Children/Young Peoples Svs,5105688498,27.10.2021,Training - Childrens,Training,250.00,THE CROSSLEY COMPANY (IOW) LTD
Revenue,Resources,Children's & Education Services,Safeguarding Children/Young Peoples Svs,5105688498,27.10.2021,Training - Childrens,Training,250.00,THE CROSSLEY COMPANY (IOW) LTD
Revenue,Childrens Services,Children's & Education Services,Family Support Services,5105687369,13.10.2021,Short Breaks,Grants to External Bodies,306.13,THE VECTIS RADIO 4PS TRAINING
Revenue,Childrens Services,Children's & Education Services,Other Education and Community Budget,5105687339,13.10.2021,Home to School SEN Transport (LA),Taxis - Contract Hire,"1,540.00",THOMPSON TAXI
Revenue,Childrens Services,Children's & Education Services,Other Education and Community Budget,5105687338,13.10.2021,Home to School Mainstream Transport,Taxis - Contract Hire,"1,680.00",THOMPSON TAXI
Revenue,Neighbourhoods,Environmental & Regulatory Services,Regulatory Services,5105687992,22.10.2021,Public Conveniences - General,Cleaning Contracts,430.02,TOP MOPS LIMITED
Revenue,Neighbourhoods,Environmental & Regulatory Services,Regulatory Services,5105687309,22.10.2021,Public Conveniences - General,Cleaning Contracts,"1,610.00",TOP MOPS LIMITED
Revenue,Neighbourhoods,Environmental & Regulatory Services,Regulatory Services,5105684705,08.10.2021,Public Conveniences - General,Cleaning Contracts,"1,610.00",TOP MOPS LIMITED
Revenue,Childrens Services,Children's & Education Services,Other Education and Community Budget,5105688814,27.10.2021,Home to School SEN Transport (LA),Taxis - Contract Hire,"1,080.00",TOP MOPS LIMITED
Revenue,Neighbourhoods,Highways and Transport Services,"Airports, Harbours & Toll Facilities",5105688823,27.10.2021,Ryde Harbour,Payment to Private Contractors,600.00,TOP MOPS LIMITED
Revenue,Childrens Services,Children's & Education Services,Special Schools & Alternative Provision,5105687371,13.10.2021,Island Learning Centre,Cleaning Contracts,"1,527.60",TOP MOPS LIMITED
Revenue,Childrens Services,Children's & Education Services,Special Schools & Alternative Provision,5105687370,13.10.2021,Island Learning Centre,Cleaning Contracts,809.10,TOP MOPS LIMITED
Revenue,Childrens Services,Children's & Education Services,Other Education and Community Budget,5105688821,27.10.2021,Home to School Mainstream Transport,Taxis - Contract Hire,"2,184.00",TOP MOPS LIMITED
Revenue,Childrens Services,Children's & Education Services,Other Education and Community Budget,5105689071,29.10.2021,Home to School Mainstream Transport,Taxis - Contract Hire,"2,430.00",TOP MOPS LIMITED
Revenue,Childrens Services,Children's & Education Services,Other Education and Community Budget,5105689072,29.10.2021,Home to School Mainstream Transport,Taxis - Contract Hire,"2,008.00",TOP MOPS LIMITED
Revenue,Childrens Services,Children's & Education Services,Other Education and Community Budget,5105686824,06.10.2021,Barton Primary Sshool Disposal,Security of Buildings,12.00,VECTIS GROUP SECURITY LTD
Revenue,Regeneration,Central Services,Support Services,5105688522,27.10.2021,Elmdon (The Laurels),Security of Buildings,60.00,VECTIS GROUP SECURITY LTD
Revenue,Regeneration,Central Services,Support Services,5105686232,01.10.2021,Elmdon (The Laurels),Security of Buildings,60.00,VECTIS GROUP SECURITY LTD
Revenue,Childrens Services,Children's & Education Services,Other Education and Community Budget,5105686822,06.10.2021,Weston Academy Closure,Security of Buildings,332.00,VECTIS GROUP SECURITY LTD
Revenue,Childrens Services,Children's & Education Services,Other Education and Community Budget,5105688484,22.10.2021,Ex Studio School Grange Rd East Cowes,Security of Buildings,162.00,VECTIS GROUP SECURITY LTD
Revenue,Childrens Services,Children's & Education Services,Special Schools & Alternative Provision,5105687557,15.10.2021,Island Learning Centre,Security of Buildings,12.00,VECTIS GROUP SECURITY LTD
Revenue,Childrens Services,Children's & Education Services,Support Services,5105687575,27.10.2021,Grafton Street Sandown (ex Sandown Yth),Security of Buildings,207.00,VECTIS GROUP SECURITY LTD
Revenue,Regeneration,Central Services,Support Services,5105688521,27.10.2021,Public Sector Partnership Costs,Security of Buildings,60.00,VECTIS GROUP SECURITY LTD
Revenue,Childrens Services,Children's & Education Services,Other Education and Community Budget,5105686823,06.10.2021,Broadlea PS Berry Hill site (was 55909),Security of Buildings,45.00,VECTIS GROUP SECURITY LTD
Revenue,Childrens Services,Children's & Education Services,Other Education and Community Budget,5105687214,08.10.2021,Non-Delegated Building Maintenance,Security of Buildings,30.00,VECTIS GROUP SECURITY LTD
Revenue,Childrens Services,Children's & Education Services,Other Education and Community Budget,5105687214,08.10.2021,Non-Delegated Building Maintenance,Security of Buildings,45.00,VECTIS GROUP SECURITY LTD
Revenue,Childrens Services,Children's & Education Services,Other Education and Community Budget,5105687428,13.10.2021,Home to School SEN Transport (LA),Taxis - Contract Hire,"2,420.00",W W CARS OF SEAVIEW
Revenue,Childrens Services,Children's & Education Services,Other Education and Community Budget,5105687431,13.10.2021,Home to School SEN Transport (LA),Taxis - Contract Hire,"1,140.00",W W CARS OF SEAVIEW
Revenue,Neighbourhoods,Cultural and Related Services,Library Service,5105687304,13.10.2021,Newport Library,Property Services - Day to day Maintenance,136.72,WIGHT HEATING LTD
Revenue,Neighbourhoods,Cultural and Related Services,Library Service,5105687305,13.10.2021,Newport Library,Property Services - Planned Maintenance,80.00,WIGHT HEATING LTD
Capital,Resources,Capital,Capital,5105686832,06.10.2021,Management of Asbestos,Payment to Contractors - Capital,"15,427.38",WIGHT HEATING LTD
Capital,Resources,Capital,Capital,5105686834,06.10.2021,Management of Asbestos,Payment to Contractors - Capital,"24,200.00",WIGHT HEATING LTD
Capital,Resources,Capital,Capital,5105686836,06.10.2021,Management of Asbestos,Payment to Contractors - Capital,"23,868.06",WIGHT HEATING LTD
Revenue,Childrens Services,Children's & Education Services,Special Schools & Alternative Provision,5105687303,13.10.2021,Island Learning Centre,Minor Works,120.00,WIGHT HEATING LTD
Revenue,Neighbourhoods,Cultural and Related Services,Recreation and Sport,5105687306,13.10.2021,The Heights,Property Services - Day to day Maintenance,45.00,WIGHT HEATING LTD
Revenue,Adult Services,Housing Services,Homelessness,5105688425,22.10.2021,Private Rented Sector Leasing Scheme,Accommodation Costs - Leaseholder Payments,866.67,2K PROPERTY
Revenue,Childrens Services,Children's & Education Services,Other Education and Community Budget,5105687450,20.10.2021,Home to College Post 16 Transport,Taxis - Contract Hire,165.00,REDACTED PERSONAL DATA
Revenue,Childrens Services,Children's & Education Services,Other Education and Community Budget,5105688833,27.10.2021,Home to School Mainstream Transport,Taxis - Contract Hire,264.00,REDACTED PERSONAL DATA
Revenue,Childrens Services,Children's & Education Services,Children Looked After,5105688340,22.10.2021,Children placed with Family&Friends,Boarding Out Allowances,226.66,REDACTED PERSONAL DATA
Revenue,Childrens Services,Children's & Education Services,Children Looked After,5105688340,22.10.2021,Children placed with Family&Friends,Boarding Out Allowances,247.89,REDACTED PERSONAL DATA
Revenue,Childrens Services,Children's & Education Services,Children Looked After,5105688340,22.10.2021,Children placed with Family&Friends,Boarding Out Allowances,247.89,REDACTED PERSONAL DATA
Revenue,Childrens Services,Children's & Education Services,Children Looked After,5105689040,29.10.2021,Children placed with Family&Friends,Boarding Out Allowances,226.66,REDACTED PERSONAL DATA
Revenue,Childrens Services,Children's & Education Services,Children Looked After,5105689040,29.10.2021,Children placed with Family&Friends,Boarding Out Allowances,247.89,REDACTED PERSONAL DATA
Revenue,Childrens Services,Children's & Education Services,Children Looked After,5105689040,29.10.2021,Children placed with Family&Friends,Boarding Out Allowances,247.89,REDACTED PERSONAL DATA
Revenue,Childrens Services,Children's & Education Services,Children Looked After,5105687785,15.10.2021,Children placed with Family&Friends,Boarding Out Allowances,226.66,REDACTED PERSONAL DATA
Revenue,Childrens Services,Children's & Education Services,Children Looked After,5105687785,15.10.2021,Children placed with Family&Friends,Boarding Out Allowances,247.89,REDACTED PERSONAL DATA
Revenue,Childrens Services,Children's & Education Services,Children Looked After,5105687785,15.10.2021,Children placed with Family&Friends,Boarding Out Allowances,247.89,REDACTED PERSONAL DATA
Revenue,Childrens Services,Children's & Education Services,Children Looked After,5105687065,08.10.2021,Children placed with Family&Friends,Boarding Out Allowances,226.66,REDACTED PERSONAL DATA
Revenue,Childrens Services,Children's & Education Services,Children Looked After,5105687065,08.10.2021,Children placed with Family&Friends,Boarding Out Allowances,247.89,REDACTED PERSONAL DATA
Revenue,Childrens Services,Children's & Education Services,Children Looked After,5105687065,08.10.2021,Children placed with Family&Friends,Boarding Out Allowances,247.89,REDACTED PERSONAL DATA
Revenue,Childrens Services,Children's & Education Services,Children Looked After,5105688889,29.10.2021,Special Guardianship Order Costs,Support Children,207.73,REDACTED PERSONAL DATA
Revenue,Childrens Services,Children's & Education Services,Children Looked After,5105688188,22.10.2021,Special Guardianship Order Costs,Support Children,207.73,REDACTED PERSONAL DATA
Revenue,Childrens Services,Children's & Education Services,Children Looked After,5105686914,08.10.2021,Special Guardianship Order Costs,Support Children,207.73,REDACTED PERSONAL DATA
Revenue,Childrens Services,Children's & Education Services,Children Looked After,5105687634,15.10.2021,Special Guardianship Order Costs,Support Children,207.73,REDACTED PERSONAL DATA
Revenue,Childrens Services,Children's & Education Services,Children Looked After,5105688889,29.10.2021,In-house Fostering,Boarding Out Allowances,290.48,REDACTED PERSONAL DATA
Revenue,Childrens Services,Children's & Education Services,Children Looked After,5105688889,29.10.2021,In-house Fostering,Boarding Out Allowances,290.48,REDACTED PERSONAL DATA
Revenue,Childrens Services,Children's & Education Services,Children Looked After,5105687634,15.10.2021,In-house Fostering,Boarding Out Allowances,290.48,REDACTED PERSONAL DATA
Revenue,Childrens Services,Children's & Education Services,Children Looked After,5105687634,15.10.2021,In-house Fostering,Boarding Out Allowances,290.48,REDACTED PERSONAL DATA
Revenue,Childrens Services,Children's & Education Services,Children Looked After,5105688188,22.10.2021,In-house Fostering,Boarding Out Allowances,290.48,REDACTED PERSONAL DATA
Revenue,Childrens Services,Children's & Education Services,Children Looked After,5105688188,22.10.2021,In-house Fostering,Boarding Out Allowances,290.48,REDACTED PERSONAL DATA
Revenue,Childrens Services,Children's & Education Services,Children Looked After,5105686914,08.10.2021,In-house Fostering,Boarding Out Allowances,290.48,REDACTED PERSONAL DATA
Revenue,Childrens Services,Children's & Education Services,Children Looked After,5105686914,08.10.2021,In-house Fostering,Boarding Out Allowances,290.48,REDACTED PERSONAL DATA
Revenue,Adult Services,Housing Services,Homelessness,5105688422,22.10.2021,Private Rented Sector Leasing Scheme,Accommodation Costs - Leaseholder Payments,510.25,REDACTED PERSONAL DATA
Revenue,Adult Services,Housing Services,Homelessness,5105688422,22.10.2021,Private Rented Sector Leasing Scheme,Accommodation Costs - Leaseholder Payments,510.25,REDACTED PERSONAL DATA
Revenue,Adult Services,Housing Services,Homelessness,5105688422,22.10.2021,Private Rented Sector Leasing Scheme,Accommodation Costs - Leaseholder Payments,510.25,REDACTED PERSONAL DATA
Revenue,Adult Services,Housing Services,Homelessness,5105688422,22.10.2021,Private Rented Sector Leasing Scheme,Accommodation Costs - Leaseholder Payments,510.25,REDACTED PERSONAL DATA
Revenue,Adult Services,Housing Services,Homelessness,5105688422,22.10.2021,Private Rented Sector Leasing Scheme,Accommodation Costs - Leaseholder Payments,510.25,REDACTED PERSONAL DATA
Revenue,Adult Services,Housing Services,Homelessness,5105688422,22.10.2021,Private Rented Sector Leasing Scheme,Accommodation Costs - Leaseholder Payments,510.25,REDACTED PERSONAL DATA
Revenue,Adult Services,Housing Services,Homelessness,5105688422,22.10.2021,Private Rented Sector Leasing Scheme,Accommodation Costs - Leaseholder Payments,510.25,REDACTED PERSONAL DATA
Revenue,Childrens Services,Children's & Education Services,Children Looked After,5105686666,01.10.2021,In-house Fostering,Support Children,60.00,REDACTED PERSONAL DATA
Revenue,Childrens Services,Children's & Education Services,Children Looked After,5105688877,29.10.2021,Adoption Costs,Support Children,225.83,REDACTED PERSONAL DATA
Revenue,Childrens Services,Children's & Education Services,Children Looked After,5105688176,22.10.2021,Adoption Costs,Support Children,225.83,REDACTED PERSONAL DATA
Revenue,Childrens Services,Children's & Education Services,Children Looked After,5105686902,08.10.2021,Adoption Costs,Support Children,225.83,REDACTED PERSONAL DATA
Revenue,Childrens Services,Children's & Education Services,Children Looked After,5105687622,15.10.2021,Adoption Costs,Support Children,225.83,REDACTED PERSONAL DATA
Revenue,Childrens Services,Children's & Education Services,Children Looked After,5105688341,22.10.2021,In-house Fostering,Support Children,120.00,REDACTED PERSONAL DATA
Revenue,Childrens Services,Children's & Education Services,Children Looked After,5105687066,08.10.2021,In-house Fostering,Support Children,120.00,REDACTED PERSONAL DATA
Revenue,Childrens Services,Children's & Education Services,Children Looked After,5105689041,29.10.2021,In-house Fostering,Support Children,120.00,REDACTED PERSONAL DATA
Revenue,Childrens Services,Children's & Education Services,Children Looked After,5105687786,15.10.2021,In-house Fostering,Support Children,120.00,REDACTED PERSONAL DATA
Revenue,Adult Services,Adult Social Care,Assistive Equipment & Technology,5105687429,13.10.2021,BCF Community Equipment Store,Minor Works,345.00,A-1 GARAGE DOOR SPECIALISTS (IOW)
Revenue,Adult Services,Adult Social Care,Central Codes (to be reallocated),5105687993,20.10.2021,Community Reablement,Computer Software Licencing,"3,067.00",ACCESS UK LTD
Revenue,Adult Services,Adult Social Care,Central Codes (to be reallocated),5105687271,13.10.2021,Community Reablement,Computer Software Licencing,-150.00,ACCESS UK LTD
Revenue,Adult Services,Adult Social Care,Central Codes (to be reallocated),5105687272,13.10.2021,Community Reablement,Computer Software Licencing,150.00,ACCESS UK LTD
Revenue,Adult Services,Adult Social Care,Learning Disab Supp (to be reallocated),5105686720,06.10.2021,"41 Newport Road, Cowes",Charges from Independent Providers,"8,459.64",TRACSCARE WELLCARE LIFESTYLES
Revenue,Adult Services,Adult Social Care,Learning Disab Supp (to be reallocated),5105689138,29.10.2021,"41 Newport Road, Cowes",Charges from Independent Providers,"8,459.64",TRACSCARE WELLCARE LIFESTYLES
Revenue,Adult Services,Adult Social Care,Learning Disab Supp (to be reallocated),5105686720,06.10.2021,"17 Newport Road, Ventnor",Charges from Independent Providers,"7,241.40",TRACSCARE WELLCARE LIFESTYLES
Revenue,Adult Services,Adult Social Care,Learning Disab Supp (to be reallocated),5105689138,29.10.2021,"17 Newport Road, Ventnor",Charges from Independent Providers,"7,241.40",TRACSCARE WELLCARE LIFESTYLES
Revenue,Adult Services,Adult Social Care,Learning Disab Supp (to be reallocated),5105686720,06.10.2021,"Greengates, Ryde",Charges from Independent Providers,"8,459.64",TRACSCARE WELLCARE LIFESTYLES
Revenue,Adult Services,Adult Social Care,Learning Disab Supp (to be reallocated),5105689138,29.10.2021,"Greengates, Ryde",Charges from Independent Providers,"8,459.64",TRACSCARE WELLCARE LIFESTYLES
Revenue,Adult Services,Adult Social Care,Long Term Support,5105686720,06.10.2021,Seagulls,Charges from Independent Providers,"29,020.88",TRACSCARE WELLCARE LIFESTYLES
Revenue,Adult Services,Adult Social Care,Long Term Support,5105689138,29.10.2021,Seagulls,Charges from Independent Providers,"29,020.88",TRACSCARE WELLCARE LIFESTYLES
Revenue,Adult Services,Adult Social Care,Learning Disab Supp (to be reallocated),5105686720,06.10.2021,Carisbrooke House,Charges from Independent Providers,"12,682.04",TRACSCARE WELLCARE LIFESTYLES
Revenue,Adult Services,Adult Social Care,Learning Disab Supp (to be reallocated),5105689138,29.10.2021,Carisbrooke House,Charges from Independent Providers,"12,682.04",TRACSCARE WELLCARE LIFESTYLES
Revenue,Adult Services,Adult Social Care,Learning Disab Supp (to be reallocated),5105686720,06.10.2021,"Heath Road, Lake",Charges from Independent Providers,"7,241.40",TRACSCARE WELLCARE LIFESTYLES
Revenue,Adult Services,Adult Social Care,Learning Disab Supp (to be reallocated),5105689138,29.10.2021,"Heath Road, Lake",Charges from Independent Providers,"7,241.40",TRACSCARE WELLCARE LIFESTYLES
Revenue,Adult Services,Adult Social Care,Learning Disab Supp (to be reallocated),5105686720,06.10.2021,"Winton Street, Ryde",Charges from Independent Providers,"8,459.64",TRACSCARE WELLCARE LIFESTYLES
Revenue,Adult Services,Adult Social Care,Learning Disab Supp (to be reallocated),5105689138,29.10.2021,"Winton Street, Ryde",Charges from Independent Providers,"8,459.64",TRACSCARE WELLCARE LIFESTYLES
Revenue,Adult Services,Adult Social Care,Learning Disab Supp (to be reallocated),5105686720,06.10.2021,Reeves Court Supported Living,Charges from Independent Providers,"45,088.68",TRACSCARE WELLCARE LIFESTYLES
Revenue,Adult Services,Adult Social Care,Learning Disab Supp (to be reallocated),5105689138,29.10.2021,Reeves Court Supported Living,Charges from Independent Providers,"45,088.68",TRACSCARE WELLCARE LIFESTYLES
Revenue,Adult Services,Adult Social Care,Long Term Support,5105686720,06.10.2021,40 Venner Avenue,Charges from Independent Providers,"30,296.56",TRACSCARE WELLCARE LIFESTYLES
Revenue,Adult Services,Adult Social Care,Long Term Support,5105689138,29.10.2021,40 Venner Avenue,Charges from Independent Providers,"30,296.56",TRACSCARE WELLCARE LIFESTYLES
Revenue,Neighbourhoods,Highways and Transport Services,"Airports, Harbours & Toll Facilities",5105687466,13.10.2021,Ferry Operation,Payment to Private Contractors,"35,000.00",ADAMS PRECISION HYDRAULICS LIMITED
Revenue,Neighbourhoods,Highways and Transport Services,"Airports, Harbours & Toll Facilities",5105688861,27.10.2021,Ferry Operation,Payment to Private Contractors,"69,976.00",ADAMS PRECISION HYDRAULICS LIMITED
Revenue,Childrens Services,Children's & Education Services,Management & Support Services,5105687191,08.10.2021,Education Out of School,Agency staff,555.00,A-DAY CONSULTANTS LTD
Revenue,Childrens Services,Children's & Education Services,Management & Support Services,5105687215,08.10.2021,Education Out of School,Agency staff,555.00,A-DAY CONSULTANTS LTD
Revenue,Childrens Services,Children's & Education Services,Management & Support Services,5105688808,27.10.2021,Education Out of School,Agency staff,555.00,A-DAY CONSULTANTS LTD
Revenue,Childrens Services,Children's & Education Services,Special Schools & Alternative Provision,5105688050,20.10.2021,Island Learning Centre,Agency staff,185.00,A-DAY CONSULTANTS LTD
Revenue,Childrens Services,Children's & Education Services,Special Schools & Alternative Provision,5105688050,20.10.2021,Island Learning Centre,Agency staff,111.00,A-DAY CONSULTANTS LTD
Revenue,Childrens Services,Children's & Education Services,Special Schools & Alternative Provision,5105688050,20.10.2021,Island Learning Centre,Agency staff,110.00,A-DAY CONSULTANTS LTD
Revenue,Childrens Services,Children's & Education Services,Special Schools & Alternative Provision,5105688050,20.10.2021,Island Learning Centre,Agency staff,55.00,A-DAY CONSULTANTS LTD
Revenue,Childrens Services,Children's & Education Services,Special Schools & Alternative Provision,5105688050,20.10.2021,Island Learning Centre,Agency staff,53.00,A-DAY CONSULTANTS LTD
Revenue,Childrens Services,Children's & Education Services,Special Schools & Alternative Provision,5105688050,20.10.2021,Island Learning Centre,Agency staff,110.00,A-DAY CONSULTANTS LTD
Revenue,Childrens Services,Children's & Education Services,Special Schools & Alternative Provision,5105688052,20.10.2021,Island Learning Centre,Agency staff,270.00,A-DAY CONSULTANTS LTD
Revenue,Childrens Services,Children's & Education Services,Special Schools & Alternative Provision,5105688052,20.10.2021,Island Learning Centre,Agency staff,370.00,A-DAY CONSULTANTS LTD
Revenue,Childrens Services,Children's & Education Services,Special Schools & Alternative Provision,5105688052,20.10.2021,Island Learning Centre,Agency staff,111.00,A-DAY CONSULTANTS LTD
Revenue,Childrens Services,Children's & Education Services,Special Schools & Alternative Provision,5105688052,20.10.2021,Island Learning Centre,Agency staff,110.00,A-DAY CONSULTANTS LTD
Revenue,Childrens Services,Children's & Education Services,Special Schools & Alternative Provision,5105688052,20.10.2021,Island Learning Centre,Agency staff,222.00,A-DAY CONSULTANTS LTD
Revenue,Childrens Services,Children's & Education Services,Special Schools & Alternative Provision,5105688052,20.10.2021,Island Learning Centre,Agency staff,55.00,A-DAY CONSULTANTS LTD
Revenue,Childrens Services,Children's & Education Services,Special Schools & Alternative Provision,5105688052,20.10.2021,Island Learning Centre,Agency staff,159.00,A-DAY CONSULTANTS LTD
Revenue,Childrens Services,Children's & Education Services,Special Schools & Alternative Provision,5105688052,20.10.2021,Island Learning Centre,Agency staff,660.00,A-DAY CONSULTANTS LTD
Revenue,Childrens Services,Children's & Education Services,Special Schools & Alternative Provision,5105688053,20.10.2021,Island Learning Centre,Agency staff,210.00,A-DAY CONSULTANTS LTD
Revenue,Childrens Services,Children's & Education Services,Special Schools & Alternative Provision,5105688053,20.10.2021,Island Learning Centre,Agency staff,405.00,A-DAY CONSULTANTS LTD
Revenue,Childrens Services,Children's & Education Services,Special Schools & Alternative Provision,5105688053,20.10.2021,Island Learning Centre,Agency staff,275.00,A-DAY CONSULTANTS LTD
Revenue,Childrens Services,Children's & Education Services,Special Schools & Alternative Provision,5105688053,20.10.2021,Island Learning Centre,Agency staff,110.00,A-DAY CONSULTANTS LTD
Revenue,Childrens Services,Children's & Education Services,Special Schools & Alternative Provision,5105688053,20.10.2021,Island Learning Centre,Agency staff,17.63,A-DAY CONSULTANTS LTD
Revenue,Childrens Services,Children's & Education Services,Special Schools & Alternative Provision,5105688053,20.10.2021,Island Learning Centre,Agency staff,111.00,A-DAY CONSULTANTS LTD
Revenue,Childrens Services,Children's & Education Services,Special Schools & Alternative Provision,5105688053,20.10.2021,Island Learning Centre,Agency staff,370.00,A-DAY CONSULTANTS LTD
Revenue,Childrens Services,Children's & Education Services,Special Schools & Alternative Provision,5105688053,20.10.2021,Island Learning Centre,Agency staff,222.00,A-DAY CONSULTANTS LTD
Revenue,Childrens Services,Children's & Education Services,Special Schools & Alternative Provision,5105688053,20.10.2021,Island Learning Centre,Agency staff,110.00,A-DAY CONSULTANTS LTD
Revenue,Childrens Services,Children's & Education Services,Special Schools & Alternative Provision,5105688053,20.10.2021,Island Learning Centre,Agency staff,159.00,A-DAY CONSULTANTS LTD
Revenue,Childrens Services,Children's & Education Services,Special Schools & Alternative Provision,5105688053,20.10.2021,Island Learning Centre,Agency staff,660.00,A-DAY CONSULTANTS LTD
Revenue,Childrens Services,Children's & Education Services,Special Schools & Alternative Provision,5105687260,20.10.2021,Island Learning Centre,Agency staff,-110.00,A-DAY CONSULTANTS LTD
Revenue,Childrens Services,Children's & Education Services,Special Schools & Alternative Provision,5105687260,20.10.2021,Island Learning Centre,Agency staff,-110.00,A-DAY CONSULTANTS LTD
Revenue,Childrens Services,Children's & Education Services,Special Schools & Alternative Provision,5105687260,20.10.2021,Island Learning Centre,Agency staff,-110.00,A-DAY CONSULTANTS LTD
Revenue,Childrens Services,Children's & Education Services,Special Schools & Alternative Provision,5105687260,20.10.2021,Island Learning Centre,Agency staff,-110.00,A-DAY CONSULTANTS LTD
Revenue,Childrens Services,Children's & Education Services,Special Schools & Alternative Provision,5105687260,20.10.2021,Island Learning Centre,Agency staff,-110.00,A-DAY CONSULTANTS LTD
Revenue,Adult Services,Adult Social Care,Social Care Activities,5105688558,27.10.2021,DoLS/MCA,Professional Services,750.00,REDACTED PERSONAL DATA
Revenue,Childrens Services,Children's & Education Services,Other Education and Community Budget,5105687509,13.10.2021,Home to School SEN Transport (LA),Taxis - Contract Hire,"3,150.00",REDACTED PERSONAL DATA
Revenue,Childrens Services,Children's & Education Services,Other Education and Community Budget,5105687510,15.10.2021,Home to School SEN Transport (LA),Taxis - Contract Hire,"1,800.00",REDACTED PERSONAL DATA
Revenue,Childrens Services,Children's & Education Services,Other Education and Community Budget,5105688678,27.10.2021,Home to School SEN Transport (LA),Taxis - Contract Hire,"2,200.00",REDACTED PERSONAL DATA
Revenue,Childrens Services,Children's & Education Services,Other Education and Community Budget,5105687449,15.10.2021,Home to School SEN Transport (LA),Taxis - Contract Hire,"1,600.00",REDACTED PERSONAL DATA
Revenue,Childrens Services,Children's & Education Services,Other Education and Community Budget,5105687452,15.10.2021,Home to School SEN Transport (LA),Taxis - Contract Hire,"1,680.00",REDACTED PERSONAL DATA
Revenue,Childrens Services,Children's & Education Services,Other Education and Community Budget,5105687459,15.10.2021,Home to School SEN Transport (LA),Taxis - Contract Hire,"1,260.00",REDACTED PERSONAL DATA
Revenue,Childrens Services,Children's & Education Services,Other Education and Community Budget,5105687503,15.10.2021,Home to School SEN Transport (LA),Taxis - Contract Hire,900.00,REDACTED PERSONAL DATA
Revenue,Childrens Services,Children's & Education Services,Other Education and Community Budget,5105687506,15.10.2021,Home to School SEN Transport (LA),Taxis - Contract Hire,810.00,REDACTED PERSONAL DATA
Revenue,Childrens Services,Children's & Education Services,Other Education and Community Budget,5105687508,13.10.2021,Home to School SEN Transport (LA),Taxis - Contract Hire,"2,370.00",REDACTED PERSONAL DATA
Revenue,Childrens Services,Children's & Education Services,Other Education and Community Budget,5105687443,15.10.2021,Home to College Post 16 Transport,Taxis - Contract Hire,"1,080.00",REDACTED PERSONAL DATA
Revenue,Childrens Services,Children's & Education Services,Other Education and Community Budget,5105687447,15.10.2021,Home to College Post 16 Transport,Taxis - Contract Hire,700.00,REDACTED PERSONAL DATA
Revenue,Childrens Services,Children's & Education Services,Other Education and Community Budget,5105687444,15.10.2021,Home to School Mainstream Transport,Taxis - Contract Hire,"2,100.00",REDACTED PERSONAL DATA
Revenue,Childrens Services,Children's & Education Services,Other Education and Community Budget,5105687451,15.10.2021,Home to School Mainstream Transport,Taxis - Contract Hire,"1,080.00",REDACTED PERSONAL DATA
Revenue,Childrens Services,Children's & Education Services,Other Education and Community Budget,5105687507,15.10.2021,Home to School Mainstream Transport,Taxis - Contract Hire,"1,520.00",REDACTED PERSONAL DATA
Revenue,Childrens Services,Children's & Education Services,Other Education and Community Budget,5105687512,13.10.2021,Home to School Mainstream Transport,Taxis - Contract Hire,"4,000.00",REDACTED PERSONAL DATA
Revenue,Adult Services,Adult Social Care,Central Codes (to be reallocated),5105687453,13.10.2021,Gouldings Resource Centre,Security of Buildings,301.70,ADT FIRE AND SECURITY PLC
Capital,Place,Capital,Capital,5105687355,13.10.2021,Parks and Gardens Capital,Payment to Contractors - Capital,"3,200.00",ADT FIRE AND SECURITY PLC
Revenue,Childrens Services,Children's & Education Services,Other Education and Community Budget,5105688758,29.10.2021,SEND Independent Advice & Support,Property Services - Day to day Maintenance,86.19,ADT FIRE AND SECURITY PLC
Revenue,Adult Services,Adult Social Care,Social Support - Support for Carer,5105686229,08.10.2021,Westminster House,Property Services - Day to day Maintenance,278.71,ADT FIRE AND SECURITY PLC
Revenue,Neighbourhoods,Cultural and Related Services,Culture and Heritage,5105688868,27.10.2021,Archives,Security of Buildings,208.00,ADT FIRE AND SECURITY PLC
Revenue,Childrens Services,Children's & Education Services,Sure Start Children's Centres,5105687146,13.10.2021,Family Centres Maintenance,Security of Buildings,71.00,ADT FIRE AND SECURITY PLC
Revenue,Resources,Central Services,Support Services,5105687268,13.10.2021,Specialist Cross-Council Training,Training,300.00,AGE CONCERN T/A AGE UK
Revenue,Neighbourhoods,Cultural and Related Services,Library Service,5105686854,06.10.2021,Newport Library,Property Services - Day to day Maintenance,90.00,AIRTEK SERVICES IOW LTD
Revenue,Childrens Services,Children's & Education Services,Children Looked After,5105686856,08.10.2021,Beaulieu House,Minor Works,255.00,AIRTEK SERVICES IOW LTD
Revenue,Neighbourhoods,Environmental & Regulatory Services,"Cemetery, Cremation & Mortuary Services",5105686855,08.10.2021,Crematorium,Property Services - Day to day Maintenance,285.00,AIRTEK SERVICES IOW LTD
Revenue,Childrens Services,Children's & Education Services,Children Looked After,5105689024,29.10.2021,Children placed with Family&Friends,Boarding Out Allowances,337.35,REDACTED PERSONAL DATA
Revenue,Childrens Services,Children's & Education Services,Children Looked After,5105688326,22.10.2021,Children placed with Family&Friends,Boarding Out Allowances,337.35,REDACTED PERSONAL DATA
Revenue,Childrens Services,Children's & Education Services,Children Looked After,5105687770,15.10.2021,Children placed with Family&Friends,Boarding Out Allowances,337.35,REDACTED PERSONAL DATA
Revenue,Childrens Services,Children's & Education Services,Children Looked After,5105687049,08.10.2021,Children placed with Family&Friends,Boarding Out Allowances,337.35,REDACTED PERSONAL DATA
Revenue,Adult Services,Adult Social Care,Learning Disability Suppt-adults (18-64),5105688649,27.10.2021,Learning Disability Residential 18-64,Charges from Independent Providers,"8,883.56",AITCH CARE HOMES (LONDON) LTD
Revenue,Childrens Services,Children's & Education Services,Other Education and Community Budget,5105688025,27.10.2021,Home to School SEN Transport (LA),Taxis - Contract Hire,806.67,AKAR TAXIS
Revenue,Childrens Services,Children's & Education Services,Other Education and Community Budget,5105688026,27.10.2021,Home to School Mainstream Transport,Taxis - Contract Hire,640.00,AKAR TAXIS
Revenue,Childrens Services,Children's & Education Services,Other Education and Community Budget,5105688027,27.10.2021,Home to School Mainstream Transport,Taxis - Contract Hire,"1,076.67",AKAR TAXIS
Revenue,Resources,Adult Social Care,Physical Support (to be reallocated),5105687293,13.10.2021,Blue Badge Admin Team Shared Services,Printing Costs,699.94,ALLIED PUBLICITY SCVE (MANCHESTER)
Revenue,Resources,Highways and Transport Services,Public Transport,5105687948,20.10.2021,Transport Fleet Administration,Vehicle Fuel Costs,"10,745.16",ALLSTAR BUSINESS SOLUTIONS LTD
Revenue,Adult Services,Adult Social Care,Central Codes (to be reallocated),5105688728,27.10.2021,Gouldings Resource Centre,Vehicle Hire Internal,60.50,ALPHA (IOW) LTD
Revenue,Childrens Services,Children's & Education Services,Other Education and Community Budget,5105688087,29.10.2021,Home to School SEN Transport (LA),Taxis - Contract Hire,"1,200.00",ALPHA (IOW) LTD
Revenue,Childrens Services,Children's & Education Services,Other Education and Community Budget,5105688087,29.10.2021,Home to School SEN Transport (LA),Taxis - Contract Hire,800.00,ALPHA (IOW) LTD
Revenue,Childrens Services,Children's & Education Services,Other Education and Community Budget,5105688087,29.10.2021,Home to School SEN Transport (LA),Taxis - Contract Hire,"1,050.00",ALPHA (IOW) LTD
Revenue,Childrens Services,Children's & Education Services,Other Education and Community Budget,5105688087,29.10.2021,Home to School SEN Transport (LA),Taxis - Contract Hire,"1,000.00",ALPHA (IOW) LTD
Revenue,Childrens Services,Children's & Education Services,Other Education and Community Budget,5105688087,29.10.2021,Home to School SEN Transport (LA),Taxis - Contract Hire,"3,080.00",ALPHA (IOW) LTD
Revenue,Childrens Services,Children's & Education Services,Other Education and Community Budget,5105688087,29.10.2021,Home to School SEN Transport (LA),Taxis - Contract Hire,"2,520.00",ALPHA (IOW) LTD
Revenue,Childrens Services,Children's & Education Services,Other Education and Community Budget,5105688087,29.10.2021,Home to School SEN Transport (LA),Taxis - Contract Hire,"3,080.00",ALPHA (IOW) LTD
Revenue,Childrens Services,Children's & Education Services,Other Education and Community Budget,5105688087,29.10.2021,Home to School SEN Transport (LA),Taxis - Contract Hire,"1,050.00",ALPHA (IOW) LTD
Revenue,Childrens Services,Children's & Education Services,Other Education and Community Budget,5105688087,29.10.2021,Home to School SEN Transport (LA),Taxis - Contract Hire,"4,200.00",ALPHA (IOW) LTD
Revenue,Childrens Services,Children's & Education Services,Other Education and Community Budget,5105688087,29.10.2021,Home to School SEN Transport (LA),Taxis - Contract Hire,"1,100.00",ALPHA (IOW) LTD
Revenue,Childrens Services,Children's & Education Services,Other Education and Community Budget,5105688087,29.10.2021,Home to School SEN Transport (LA),Taxis - Contract Hire,"1,760.00",ALPHA (IOW) LTD
Revenue,Childrens Services,Children's & Education Services,Other Education and Community Budget,5105688087,29.10.2021,Home to College Post 16 Transport,Taxis - Contract Hire,"1,080.00",ALPHA (IOW) LTD
Revenue,Childrens Services,Children's & Education Services,Other Education and Community Budget,5105688087,29.10.2021,Home to College Post 16 Transport,Taxis - Contract Hire,"1,920.00",ALPHA (IOW) LTD
Revenue,Childrens Services,Children's & Education Services,Other Education and Community Budget,5105688087,29.10.2021,Home to College Post 16 Transport,Taxis - Contract Hire,880.00,ALPHA (IOW) LTD
Revenue,Childrens Services,Children's & Education Services,Other Education and Community Budget,5105688087,29.10.2021,Home to College Post 16 Transport,Taxis - Contract Hire,"1,050.00",ALPHA (IOW) LTD
Revenue,Childrens Services,Children's & Education Services,Other Education and Community Budget,5105688087,29.10.2021,Home to College Post 16 Transport,Taxis - Contract Hire,"1,600.00",ALPHA (IOW) LTD
Revenue,Childrens Services,Children's & Education Services,Other Education and Community Budget,5105688087,29.10.2021,Home to College Post 16 Transport,Taxis - Contract Hire,360.00,ALPHA (IOW) LTD
Revenue,Childrens Services,Children's & Education Services,Children Looked After,5105688839,27.10.2021,Support for Looked After Children,Transport of Clients,100.00,ALPHA (IOW) LTD
Revenue,Childrens Services,Children's & Education Services,Children Looked After,5105686686,06.10.2021,Support for Looked After Children,Transport of Clients,160.00,ALPHA (IOW) LTD
Revenue,Childrens Services,Children's & Education Services,Other Education and Community Budget,5105688087,29.10.2021,Home to School Mainstream Transport,Taxis - Contract Hire,"2,288.00",ALPHA (IOW) LTD
Revenue,Childrens Services,Children's & Education Services,Other Education and Community Budget,5105688087,29.10.2021,Home to School Mainstream Transport,Taxis - Contract Hire,"1,050.00",ALPHA (IOW) LTD
Revenue,Childrens Services,Children's & Education Services,Other Education and Community Budget,5105688087,29.10.2021,Home to School Mainstream Transport,Taxis - Contract Hire,"5,040.00",ALPHA (IOW) LTD
Revenue,Childrens Services,Children's & Education Services,Other Education and Community Budget,5105688087,29.10.2021,Home to School Mainstream Transport,Taxis - Contract Hire,"1,470.00",ALPHA (IOW) LTD
Revenue,Childrens Services,Children's & Education Services,Other Education and Community Budget,5105688087,29.10.2021,Home to School Mainstream Transport,Taxis - Contract Hire,"1,050.00",ALPHA (IOW) LTD
Revenue,Childrens Services,Children's & Education Services,Other Education and Community Budget,5105688087,29.10.2021,Home to School Mainstream Transport,Taxis - Contract Hire,"2,310.00",ALPHA (IOW) LTD
Revenue,Childrens Services,Children's & Education Services,Other Education and Community Budget,5105688087,29.10.2021,Home to School Mainstream Transport,Taxis - Contract Hire,"1,320.00",ALPHA (IOW) LTD
Revenue,Childrens Services,Children's & Education Services,Other Education and Community Budget,5105688087,29.10.2021,Home to School Mainstream Transport,Taxis - Contract Hire,"1,980.00",ALPHA (IOW) LTD
Revenue,Resources,Central Services,Support Services,5105687183,13.10.2021,Specialist Cross-Council Training,Training,"1,230.00",ALPHA PARKING LTD
Revenue,Adult Services,Adult Social Care,Learning Disability Suppt-adults (18-64),5105688606,27.10.2021,Learning Disability Residential 18-64,Charges from Independent Providers,"3,896.76",ALPHAGRANGE LTD
Revenue,Neighbourhoods,Highways and Transport Services,Parking Services,5105688081,20.10.2021,On-Street Parking Operations,Operational Equipment,800.00,ALSOPRINT LTD
Capital,Corporate Items,Balance Sheet,Balance Sheet,5105688382,22.10.2021,Balance Sheet,Order Settlement to Bal Sht GL,626.64,AMBITION 24 HOURS
Capital,Corporate Items,Balance Sheet,Balance Sheet,5105688383,22.10.2021,Balance Sheet,Order Settlement to Bal Sht GL,767.07,AMBITION 24 HOURS
Capital,Corporate Items,Balance Sheet,Balance Sheet,5105688379,22.10.2021,Balance Sheet,Order Settlement to Bal Sht GL,"1,019.52",AMBITION 24 HOURS
Capital,Corporate Items,Balance Sheet,Balance Sheet,5105688380,22.10.2021,Balance Sheet,Order Settlement to Bal Sht GL,626.64,AMBITION 24 HOURS
Revenue,Childrens Services,Children's & Education Services,Children Looked After,5105688968,29.10.2021,In-house Fostering,Boarding Out Allowances,167.00,REDACTED PERSONAL DATA
Revenue,Childrens Services,Children's & Education Services,Children Looked After,5105687714,15.10.2021,In-house Fostering,Boarding Out Allowances,167.00,REDACTED PERSONAL DATA
Revenue,Childrens Services,Children's & Education Services,Children Looked After,5105686993,08.10.2021,In-house Fostering,Boarding Out Allowances,167.00,REDACTED PERSONAL DATA
Revenue,Childrens Services,Children's & Education Services,Children Looked After,5105688268,22.10.2021,In-house Fostering,Boarding Out Allowances,167.00,REDACTED PERSONAL DATA
Revenue,Neighbourhoods,Environmental & Regulatory Services,Waste Disposal,5105689104,29.10.2021,Waste Disposal - Amey Contract,Waste Contractors,"202,500.73",AMEY (IOW) SPV LIMITED
Revenue,Neighbourhoods,Environmental & Regulatory Services,Waste Disposal,5105689097,29.10.2021,Waste Disposal - Amey Contract,Waste Contractors,367.68,AMEY (IOW) SPV LIMITED
Revenue,Neighbourhoods,Environmental & Regulatory Services,Waste Disposal,5105689095,29.10.2021,Waste Disposal - Amey Contract,Waste Contractors,"202,500.73",AMEY (IOW) SPV LIMITED
Revenue,Neighbourhoods,Environmental & Regulatory Services,Waste Disposal,5105689106,29.10.2021,Waste Disposal - Amey Contract,Waste Contractors,367.68,AMEY (IOW) SPV LIMITED
Revenue,Neighbourhoods,Environmental & Regulatory Services,Recycling,5105689104,29.10.2021,Waste Recycling - Amey Contract,Waste Contractors,"22,058.34",AMEY (IOW) SPV LIMITED
Revenue,Neighbourhoods,Environmental & Regulatory Services,Recycling,5105689095,29.10.2021,Waste Recycling - Amey Contract,Waste Contractors,"22,058.34",AMEY (IOW) SPV LIMITED
Revenue,Neighbourhoods,Environmental & Regulatory Services,Waste Collection,5105689106,29.10.2021,Waste Collection - Amey Contract,Waste Contractors,"1,470.74",AMEY (IOW) SPV LIMITED
Revenue,Neighbourhoods,Environmental & Regulatory Services,Waste Collection,5105689095,29.10.2021,Waste Collection - Amey Contract,Waste Contractors,"128,491.75",AMEY (IOW) SPV LIMITED
Revenue,Neighbourhoods,Environmental & Regulatory Services,Waste Collection,5105689097,29.10.2021,Waste Collection - Amey Contract,Waste Contractors,"1,470.74",AMEY (IOW) SPV LIMITED
Revenue,Neighbourhoods,Environmental & Regulatory Services,Waste Collection,5105689104,29.10.2021,Waste Collection - Amey Contract,Waste Contractors,"133,050.65",AMEY (IOW) SPV LIMITED
Revenue,Neighbourhoods,Environmental & Regulatory Services,Waste Collection,5105689096,29.10.2021,Waste Contract Income,Waste Contractors,"5,261.25",AMEY (IOW) SPV LIMITED
Revenue,Neighbourhoods,Environmental & Regulatory Services,Waste Collection,5105689103,29.10.2021,Waste Contract Income,Waste Contractors,"5,261.25",AMEY (IOW) SPV LIMITED
Revenue,Resources,Central Services,Central Services to the Public,5105686336,20.10.2021,Elections,"Refuse Collection, Disposal and Recycling Costs",100.00,AMEY LG LTD
Revenue,Adult Services,Adult Social Care,Physical Support - older people (65+),5105688607,27.10.2021,Physical Support Residential 65+,Charges from Independent Providers,"2,054.64",ANCONA CARE HOME
Revenue,Adult Services,Adult Social Care,Physical Support - older people (65+),5105688607,27.10.2021,Physical Support Residential 65+,Charges from Independent Providers,"2,151.52",ANCONA CARE HOME
Revenue,Adult Services,Adult Social Care,Physical Support - older people (65+),5105688607,27.10.2021,Physical Support Residential 65+,Charges from Independent Providers,"2,529.52",ANCONA CARE HOME
Capital,Childrens Services,Capital,Capital,5105687996,20.10.2021,Schools Reorganisation,Payment to Contractors - Capital,100.00,ANDREW BYFORD T/A HUMPY DUMP
Revenue,Resources,Central Services,Support Services,5105687175,13.10.2021,Litigation Costs,Legal Fees - Other Parties,410.00,PALLANT CHAMBERS
Revenue,Childrens Services,Children's & Education Services,Special Schools & Alternative Provision,5105687144,08.10.2021,Island Learning Centre,General Educational Materials,72.00,ANN ARBOR PUBLISHERS LTD
Revenue,Childrens Services,Children's & Education Services,Special Schools & Alternative Provision,5105687144,08.10.2021,Island Learning Centre,General Educational Materials,52.00,ANN ARBOR PUBLISHERS LTD
Revenue,Neighbourhoods,Cultural and Related Services,Recreation and Sport,5105688753,29.10.2021,Medina Leisure Centre,Stock Purchases,354.00,APG SPORTS GROUP LTD
Revenue,Neighbourhoods,Cultural and Related Services,Recreation and Sport,5105688753,29.10.2021,Medina Leisure Centre,Stock Purchases,20.00,APG SPORTS GROUP LTD
Revenue,Neighbourhoods,Cultural and Related Services,Recreation and Sport,5105687252,13.10.2021,The Heights,Stock Purchases,834.94,APG SPORTS GROUP LTD
Revenue,Neighbourhoods,Environmental & Regulatory Services,Climate Change Costs,5105687488,13.10.2021,Low Carbon Skills Fund,Consultants Fees,"19,500.00",APSE
Revenue,Regeneration,Planning services,Economic Development,5105688155,22.10.2021,Victoria Quays,Professional Services,"3,047.00",ARC CONSULTING LTD
Revenue,Neighbourhoods,Highways and Transport Services,"Airports, Harbours & Toll Facilities",5105688100,20.10.2021,Ferry Operation,Clothing & Laundry,1.80,ARCO LTD
Revenue,Neighbourhoods,Highways and Transport Services,"Airports, Harbours & Toll Facilities",5105687438,13.10.2021,Ferry Operation,Clothing & Laundry,20.60,ARCO LTD
Revenue,Neighbourhoods,Highways and Transport Services,"Airports, Harbours & Toll Facilities",5105687438,13.10.2021,Ferry Operation,Clothing & Laundry,20.60,ARCO LTD
Revenue,Neighbourhoods,Highways and Transport Services,"Airports, Harbours & Toll Facilities",5105687438,13.10.2021,Ferry Operation,Clothing & Laundry,8.54,ARCO LTD
Revenue,Neighbourhoods,Highways and Transport Services,"Airports, Harbours & Toll Facilities",5105687438,13.10.2021,Ferry Operation,Clothing & Laundry,20.60,ARCO LTD
Revenue,Neighbourhoods,Highways and Transport Services,"Airports, Harbours & Toll Facilities",5105688100,20.10.2021,Ferry Operation,Clothing & Laundry,5.62,ARCO LTD
Revenue,Neighbourhoods,Highways and Transport Services,"Airports, Harbours & Toll Facilities",5105687438,13.10.2021,Ferry Operation,Clothing & Laundry,22.38,ARCO LTD
Revenue,Regeneration,Central Services,Central Services to the Public,5105687170,13.10.2021,Welcome Back Fund,Clothing & Laundry,55.32,ARCO LTD
Revenue,Neighbourhoods,Highways and Transport Services,Parking Services,5105688567,27.10.2021,Parking Attendants,Clothing & Laundry,20.60,ARCO LTD
Revenue,Neighbourhoods,Highways and Transport Services,Parking Services,5105688567,27.10.2021,Parking Attendants,Clothing & Laundry,36.54,ARCO LTD
Revenue,Neighbourhoods,Highways and Transport Services,Parking Services,5105688567,27.10.2021,Parking Attendants,Clothing & Laundry,18.27,ARCO LTD
Revenue,Neighbourhoods,Highways and Transport Services,Parking Services,5105688567,27.10.2021,Parking Attendants,Clothing & Laundry,16.92,ARCO LTD
Revenue,Neighbourhoods,Highways and Transport Services,Parking Services,5105688567,27.10.2021,Parking Attendants,Clothing & Laundry,10.78,ARCO LTD
Revenue,Neighbourhoods,Highways and Transport Services,Parking Services,5105688562,27.10.2021,Parking Attendants,Clothing & Laundry,17.68,ARCO LTD
Revenue,Neighbourhoods,Highways and Transport Services,Parking Services,5105688567,27.10.2021,Parking Attendants,Clothing & Laundry,10.78,ARCO LTD
Revenue,Neighbourhoods,Highways and Transport Services,Parking Services,5105688567,27.10.2021,Parking Attendants,Clothing & Laundry,17.68,ARCO LTD
Revenue,Neighbourhoods,Highways and Transport Services,Parking Services,5105688567,27.10.2021,Parking Attendants,Clothing & Laundry,20.60,ARCO LTD
Revenue,Adult Services,Adult Social Care,Central Codes (to be reallocated),5105686857,08.10.2021,Gouldings Resource Centre,Property Services - Planned Maintenance,380.00,ARJO UK LTD
Revenue,Neighbourhoods,Cultural and Related Services,Recreation and Sport,5105688072,20.10.2021,Medina Leisure Centre,Payment to Private Contractors,138.00,ARJO UK LTD
Revenue,Childrens Services,Children's & Education Services,Children Looked After,5105686858,13.10.2021,Beaulieu House,Minor Works,"1,014.87",ARJO UK LTD
Revenue,Neighbourhoods,Cultural and Related Services,Recreation and Sport,5105688071,20.10.2021,The Heights,Payment to Private Contractors,138.00,ARJO UK LTD
Revenue,Neighbourhoods,Cultural and Related Services,Culture and Heritage,5105687424,27.10.2021,Medina Theatre,Professional Services,"3,250.00",ARTISTES INTERNATIONAL MANAGEMENT
Revenue,Neighbourhoods,Cultural and Related Services,Library Service,5105688697,27.10.2021,Public Libraries Central,Professional Subscriptions,100.00,ASCEL
Revenue,Neighbourhoods,Environmental & Regulatory Services,"Cemetery, Cremation & Mortuary Services",5105687950,20.10.2021,Crematorium,Operational Equipment,"2,220.00",ASHDOWN SUPPLIES
Revenue,Childrens Services,Children's & Education Services,Family Support Services,5105688085,20.10.2021,COVID Local Support Grant Scheme (DWP),Payments to Voluntary and Other Associations,"14,955.00",ASPIRE RYDE
Revenue,Childrens Services,Children's & Education Services,Special Schools & Alternative Provision,5105687258,13.10.2021,Island Learning Centre,Schools Examination Fees,"2,312.48",ASSESSMENT & QUALIFICATION ALLIANCE
Revenue,Childrens Services,Children's & Education Services,Special Schools & Alternative Provision,5105687259,13.10.2021,Island Learning Centre,Schools Examination Fees,"-1,116.49",ASSESSMENT & QUALIFICATION ALLIANCE
Revenue,Resources,Central Services,Support Services,5105686817,06.10.2021,Telecommunications,Fixed Telephones,743.18,ASSET LINK CAPITAL (NO 7) LTD
Revenue,Adult Services,Adult Social Care,Support - Memory /Cognition-older people (65+),5105688589,27.10.2021,Memory & Cognition Residential 65+,Charges from Independent Providers,"2,529.52",AUTUMN HOUSE CARE LTD
Revenue,Adult Services,Adult Social Care,Support - Memory /Cognition-older people (65+),5105688589,27.10.2021,Memory & Cognition Residential 65+,Charges from Independent Providers,"2,529.52",AUTUMN HOUSE CARE LTD
Revenue,Adult Services,Adult Social Care,Support - Memory /Cognition-older people (65+),5105688589,27.10.2021,Memory & Cognition Residential 65+,Charges from Independent Providers,"2,529.52",AUTUMN HOUSE CARE LTD
Revenue,Adult Services,Adult Social Care,Support - Memory /Cognition-older people (65+),5105688589,27.10.2021,Memory & Cognition Residential 65+,Charges from Independent Providers,"2,151.52",AUTUMN HOUSE CARE LTD
Revenue,Adult Services,Adult Social Care,Social Support - Social Isolation/Other,5105688589,27.10.2021,Social Isolation/Other Residential,Charges from Independent Providers,"2,529.52",AUTUMN HOUSE CARE LTD
Revenue,Adult Services,Adult Social Care,Support - Memory /Cognition-older people (65+),5105688589,27.10.2021,Memory & Cognition Residential 65+,Charges from Independent Providers,"2,529.52",AUTUMN HOUSE CARE LTD
Revenue,Adult Services,Adult Social Care,Support - Memory /Cognition-older people (65+),5105688589,27.10.2021,Memory & Cognition Residential 65+,Charges from Independent Providers,"2,151.52",AUTUMN HOUSE CARE LTD
Revenue,Adult Services,Adult Social Care,Support - Memory /Cognition-older people (65+),5105688589,27.10.2021,Memory & Cognition Residential 65+,Charges from Independent Providers,"2,529.52",AUTUMN HOUSE CARE LTD
Revenue,Adult Services,Adult Social Care,Support - Memory /Cognition-older people (65+),5105688589,27.10.2021,Memory & Cognition Residential 65+,Charges from Independent Providers,"2,529.52",AUTUMN HOUSE CARE LTD
Revenue,Adult Services,Adult Social Care,Support - Memory /Cognition-older people (65+),5105688589,27.10.2021,Memory & Cognition Residential 65+,Charges from Independent Providers,"2,529.52",AUTUMN HOUSE CARE LTD
Revenue,Adult Services,Balance Sheet,Balance Sheet,5105688589,27.10.2021,REDACTED PERSONAL DATA,Order Settlement to Bal Sht GL,"2,151.52",AUTUMN HOUSE CARE LTD
Revenue,Adult Services,Adult Social Care,Physical Support - older people (65+),5105688589,27.10.2021,Physical Support Residential 65+,Charges from Independent Providers,"2,529.52",AUTUMN HOUSE CARE LTD
Revenue,Adult Services,Adult Social Care,Physical Support - older people (65+),5105688589,27.10.2021,Physical Support Residential 65+,Charges from Independent Providers,"2,529.52",AUTUMN HOUSE CARE LTD
Revenue,Adult Services,Adult Social Care,Physical Support - older people (65+),5105688589,27.10.2021,Physical Support Residential 65+,Charges from Independent Providers,"2,529.52",AUTUMN HOUSE CARE LTD
Revenue,Adult Services,Adult Social Care,Physical Support - older people (65+),5105688589,27.10.2021,Physical Support Residential 65+,Charges from Independent Providers,"2,529.52",AUTUMN HOUSE CARE LTD
Revenue,Adult Services,Adult Social Care,Physical Support - older people (65+),5105688589,27.10.2021,Physical Support Residential 65+,Charges from Independent Providers,"2,529.52",AUTUMN HOUSE CARE LTD
Revenue,Adult Services,Adult Social Care,Physical Support - older people (65+),5105688589,27.10.2021,Physical Support Residential 65+,Charges from Independent Providers,"2,151.52",AUTUMN HOUSE CARE LTD
Revenue,Adult Services,Adult Social Care,Physical Support - older people (65+),5105688589,27.10.2021,Physical Support Residential 65+,Charges from Independent Providers,"2,529.52",AUTUMN HOUSE CARE LTD
Revenue,Adult Services,Adult Social Care,Physical Support - older people (65+),5105688589,27.10.2021,Physical Support Residential 65+,Charges from Independent Providers,"2,529.52",AUTUMN HOUSE CARE LTD
Revenue,Adult Services,Adult Social Care,Physical Support - older people (65+),5105688589,27.10.2021,Physical Support Residential 65+,Charges from Independent Providers,"2,529.52",AUTUMN HOUSE CARE LTD
Revenue,Adult Services,Adult Social Care,Physical Support - older people (65+),5105688589,27.10.2021,Physical Support Residential 65+,Charges from Independent Providers,"2,529.52",AUTUMN HOUSE CARE LTD
Revenue,Adult Services,Adult Social Care,Physical Support - older people (65+),5105688589,27.10.2021,Physical Support Residential 65+,Charges from Independent Providers,"2,529.52",AUTUMN HOUSE CARE LTD
Revenue,Adult Services,Adult Social Care,Physical Support - older people (65+),5105688589,27.10.2021,Physical Support Residential 65+,Charges from Independent Providers,"2,529.52",AUTUMN HOUSE CARE LTD
Revenue,Adult Services,Adult Social Care,Physical Support - older people (65+),5105688589,27.10.2021,Physical Support Residential 65+,Charges from Independent Providers,"2,529.52",AUTUMN HOUSE CARE LTD
Revenue,Adult Services,Adult Social Care,Physical Support - older people (65+),5105688589,27.10.2021,Physical Support Residential 65+,Charges from Independent Providers,"2,529.52",AUTUMN HOUSE CARE LTD
Revenue,Childrens Services,Children's & Education Services,Safeguarding Children/Young Peoples Svs,5105688133,20.10.2021,Court Work & Consultancy Services,Legal Fees - Other Parties,400.00,AVIOU LAW FIRM
Revenue,Childrens Services,Children's & Education Services,Children Looked After,5105688884,29.10.2021,In-house Fostering,Boarding Out Allowances,528.52,REDACTED PERSONAL DATA
Revenue,Childrens Services,Children's & Education Services,Children Looked After,5105687629,15.10.2021,In-house Fostering,Boarding Out Allowances,528.52,REDACTED PERSONAL DATA
Revenue,Childrens Services,Children's & Education Services,Children Looked After,5105688183,22.10.2021,In-house Fostering,Boarding Out Allowances,528.52,REDACTED PERSONAL DATA
Revenue,Childrens Services,Children's & Education Services,Children Looked After,5105686909,08.10.2021,In-house Fostering,Boarding Out Allowances,528.52,REDACTED PERSONAL DATA
Revenue,Adult Services,Housing Services,Homelessness,5105688416,22.10.2021,Private Rented Sector Leasing Scheme,Accommodation Costs - Leaseholder Payments,866.67,REDACTED PERSONAL DATA
Revenue,Adult Services,Adult Social Care,Assistive Equipment & Technology,5105687310,13.10.2021,BCF Community Equipment Store,Operational Equipment,"1,944.30",B.E.S REHAB LTD
Revenue,Adult Services,Adult Social Care,Assistive Equipment & Technology,5105687310,13.10.2021,BCF Community Equipment Store,Operational Equipment,92.80,B.E.S REHAB LTD
Revenue,Regeneration,Planning services,Economic Development,5105686826,06.10.2021,Rangefinder House (Ascensos),Rent of Buildings and Rooms,"10,218.24",BAE SYSTEMS PROPERTIES LTD
Revenue,Regeneration,Planning services,Economic Development,5105688866,27.10.2021,Rangefinder House (Ascensos),Water and Sewerage,89.17,BAE SYSTEMS PROPERTIES LTD
Revenue,Regeneration,Planning services,Economic Development,5105688867,27.10.2021,Rangefinder House (Ascensos),Water and Sewerage,0.20,BAE SYSTEMS PROPERTIES LTD
Revenue,Regeneration,Planning services,Economic Development,5105688866,27.10.2021,Rangefinder House (Ascensos),Electricity,"35,702.59",BAE SYSTEMS PROPERTIES LTD
Revenue,Regeneration,Planning services,Economic Development,5105688867,27.10.2021,Rangefinder House (Ascensos),Electricity,254.15,BAE SYSTEMS PROPERTIES LTD
Revenue,Adult Services,Adult Social Care,Commissioning & Service Delivery,5105688662,27.10.2021,CHC Nursing Care,Charges from Independent Providers,"10,447.64",BAGSHOT PARK CARE CENTRE
Revenue,Childrens Services,Children's & Education Services,Children Looked After,5105688474,22.10.2021,Unaccompanied Asylum Seeker Children,Charges from Independent Providers,"3,321.43",BANYA FAMILY PLACEMENT AGENCY LTD
Revenue,Adult Services,Adult Social Care,Physical Support - older people (65+),5105688666,27.10.2021,Physical Support Residential 65+,Charges from Independent Providers,"2,054.64",BARCHESTER HELLENS LTD
Revenue,Childrens Services,Children's & Education Services,Children Looked After,5105687344,13.10.2021,Local Authority Care Advocacy Contract,Grants to External Bodies,"9,875.00",BARNARDO'S
Revenue,Childrens Services,Children's & Education Services,Family Support Services,5105685680,06.10.2021,Strengthening Families,Payment to Private Contractors,800.00,BARNARDO'S
Revenue,Childrens Services,Children's & Education Services,Family Support Services,5105687481,13.10.2021,S17 Child Protection,Professional Services,323.00,BARTON PRIMARY & EARLY YEARS
Revenue,Neighbourhoods,Cultural and Related Services,Recreation and Sport,5105688389,22.10.2021,Medina Leisure Centre,Consumable Cleaning Materials,305.85,LAKE CLEANING & CATERING SUPPLIES
Revenue,Adult Services,Adult Social Care,Learning Disab Supp (to be reallocated),5105686537,15.10.2021,Plean Dene,Consumable Cleaning Materials,110.27,LAKE CLEANING & CATERING SUPPLIES
Revenue,Childrens Services,Children's & Education Services,Children Looked After,5105688148,22.10.2021,Beaulieu House,General Materials,56.86,LAKE CLEANING & CATERING SUPPLIES
Revenue,Childrens Services,Children's & Education Services,Children Looked After,5105687083,13.10.2021,Beaulieu House,General Materials,179.50,LAKE CLEANING & CATERING SUPPLIES
Revenue,Childrens Services,Children's & Education Services,Children Looked After,5105687231,13.10.2021,Beaulieu House,General Materials,22.50,LAKE CLEANING & CATERING SUPPLIES
Revenue,Childrens Services,Children's & Education Services,Children Looked After,5105687243,13.10.2021,Beaulieu House,General Materials,359.30,LAKE CLEANING & CATERING SUPPLIES
Revenue,Neighbourhoods,Cultural and Related Services,Recreation and Sport,5105688827,27.10.2021,Westridge Squash Courts,Consumable Cleaning Materials,3.04,LAKE CLEANING & CATERING SUPPLIES
Revenue,Neighbourhoods,Cultural and Related Services,Recreation and Sport,5105686733,06.10.2021,Westridge Squash Courts,Consumable Cleaning Materials,103.72,LAKE CLEANING & CATERING SUPPLIES
Revenue,Neighbourhoods,Cultural and Related Services,Recreation and Sport,5105689064,29.10.2021,The Heights,Consumable Cleaning Materials,208.48,LAKE CLEANING & CATERING SUPPLIES
Revenue,Neighbourhoods,Cultural and Related Services,Recreation and Sport,5105687814,15.10.2021,The Heights,Consumable Cleaning Materials,233.47,LAKE CLEANING & CATERING SUPPLIES
Revenue,Neighbourhoods,Cultural and Related Services,Recreation and Sport,5105688147,20.10.2021,The Heights,Consumable Cleaning Materials,29.96,LAKE CLEANING & CATERING SUPPLIES
Revenue,Adult Services,Adult Social Care,Central Codes (to be reallocated),5105688559,27.10.2021,Gouldings Resource Centre,Stationery,1.00,BATES OFFICE SERVICES LIMITED
Revenue,Adult Services,Adult Social Care,Central Codes (to be reallocated),5105688559,27.10.2021,Gouldings Resource Centre,Stationery,17.48,BATES OFFICE SERVICES LIMITED
Revenue,Adult Services,Adult Social Care,Central Codes (to be reallocated),5105688559,27.10.2021,Gouldings Resource Centre,Stationery,3.14,BATES OFFICE SERVICES LIMITED
Revenue,Adult Services,Adult Social Care,Central Codes (to be reallocated),5105687267,13.10.2021,Gouldings Resource Centre,Stationery,1.24,BATES OFFICE SERVICES LIMITED
Revenue,Adult Services,Adult Social Care,Central Codes (to be reallocated),5105688559,27.10.2021,Gouldings Resource Centre,Stationery,3.85,BATES OFFICE SERVICES LIMITED
Revenue,Neighbourhoods,Highways and Transport Services,Management and Support Services,5105688057,20.10.2021,Highways PFI Project,Stationery,0.94,BATES OFFICE SERVICES LIMITED
Revenue,Neighbourhoods,Highways and Transport Services,Management and Support Services,5105688057,20.10.2021,Highways PFI Project,Stationery,0.33,BATES OFFICE SERVICES LIMITED
Revenue,Neighbourhoods,Highways and Transport Services,Management and Support Services,5105688057,20.10.2021,Highways PFI Project,Stationery,0.98,BATES OFFICE SERVICES LIMITED
Revenue,Neighbourhoods,Highways and Transport Services,Management and Support Services,5105688057,20.10.2021,Highways PFI Project,Stationery,0.98,BATES OFFICE SERVICES LIMITED
Revenue,Neighbourhoods,Highways and Transport Services,Management and Support Services,5105688057,20.10.2021,Highways PFI Project,Stationery,1.32,BATES OFFICE SERVICES LIMITED
Revenue,Neighbourhoods,Highways and Transport Services,Management and Support Services,5105688057,20.10.2021,Highways PFI Project,Stationery,1.00,BATES OFFICE SERVICES LIMITED
Revenue,Neighbourhoods,Highways and Transport Services,Management and Support Services,5105688057,20.10.2021,Highways PFI Project,Stationery,0.96,BATES OFFICE SERVICES LIMITED
Revenue,Childrens Services,Children's & Education Services,Other Education and Community Budget,5105688058,20.10.2021,Pupil Resources Business Support Team,Stationery,17.48,BATES OFFICE SERVICES LIMITED
Revenue,Neighbourhoods,Cultural and Related Services,Service Management and Support Services,5105686596,01.10.2021,Leisure Management & Admin,Stationery,17.48,BATES OFFICE SERVICES LIMITED
Revenue,Resources,Central Services,Support Services,5105686599,01.10.2021,County Hall Central Mail Room,Stationery,1.15,BATES OFFICE SERVICES LIMITED
Revenue,Adult Services,Adult Social Care,Assistive Equipment & Technology,5105686597,01.10.2021,BCF Community Equipment Store,Stationery,34.96,BATES OFFICE SERVICES LIMITED
Revenue,Adult Services,Adult Social Care,Assistive Equipment & Technology,5105686597,01.10.2021,BCF Community Equipment Store,Stationery,1.26,BATES OFFICE SERVICES LIMITED
Revenue,Adult Services,Adult Social Care,Assistive Equipment & Technology,5105686597,01.10.2021,BCF Community Equipment Store,Stationery,2.04,BATES OFFICE SERVICES LIMITED
Revenue,Adult Services,Adult Social Care,Assistive Equipment & Technology,5105686597,01.10.2021,BCF Community Equipment Store,Stationery,3.24,BATES OFFICE SERVICES LIMITED
Revenue,Adult Services,Adult Social Care,Assistive Equipment & Technology,5105686597,01.10.2021,BCF Community Equipment Store,Stationery,1.95,BATES OFFICE SERVICES LIMITED
Revenue,Adult Services,Adult Social Care,Assistive Equipment & Technology,5105686597,01.10.2021,BCF Community Equipment Store,Stationery,3.54,BATES OFFICE SERVICES LIMITED
Revenue,Adult Services,Adult Social Care,Assistive Equipment & Technology,5105686597,01.10.2021,BCF Community Equipment Store,Stationery,9.46,BATES OFFICE SERVICES LIMITED
Revenue,Adult Services,Adult Social Care,Assistive Equipment & Technology,5105686597,01.10.2021,BCF Community Equipment Store,Stationery,2.00,BATES OFFICE SERVICES LIMITED
Revenue,Adult Services,Adult Social Care,Assistive Equipment & Technology,5105686597,01.10.2021,BCF Community Equipment Store,Stationery,1.54,BATES OFFICE SERVICES LIMITED
Revenue,Adult Services,Adult Social Care,Assistive Equipment & Technology,5105686597,01.10.2021,BCF Community Equipment Store,Stationery,4.68,BATES OFFICE SERVICES LIMITED
Revenue,Resources,Central Services,Support Services,5105688058,20.10.2021,Procurement and Contract Management,Stationery,3.63,BATES OFFICE SERVICES LIMITED
Revenue,Childrens Services,Children's & Education Services,Children Looked After,5105688549,27.10.2021,Beaulieu House,Stationery,1.30,BATES OFFICE SERVICES LIMITED
Revenue,Childrens Services,Children's & Education Services,Children Looked After,5105688549,27.10.2021,Beaulieu House,Stationery,6.79,BATES OFFICE SERVICES LIMITED
Revenue,Childrens Services,Children's & Education Services,Safeguarding Children/Young Peoples Svs,5105688058,20.10.2021,Children's office costs,Stationery,43.72,BATES OFFICE SERVICES LIMITED
Revenue,Childrens Services,Children's & Education Services,Safeguarding Children/Young Peoples Svs,5105688058,20.10.2021,Children's office costs,Stationery,3.12,BATES OFFICE SERVICES LIMITED
Revenue,Childrens Services,Children's & Education Services,Safeguarding Children/Young Peoples Svs,5105688058,20.10.2021,Children's office costs,Stationery,9.42,BATES OFFICE SERVICES LIMITED
Revenue,Childrens Services,Children's & Education Services,Safeguarding Children/Young Peoples Svs,5105686599,01.10.2021,Children's office costs,Stationery,0.30,BATES OFFICE SERVICES LIMITED
Revenue,Childrens Services,Children's & Education Services,Safeguarding Children/Young Peoples Svs,5105686599,01.10.2021,Children's office costs,Stationery,17.48,BATES OFFICE SERVICES LIMITED
Revenue,Adult Services,Adult Social Care,Commissioning & Service Delivery,5105688551,27.10.2021,Group Manager Leaning Disability Homes,Stationery,4.80,BATES OFFICE SERVICES LIMITED
Revenue,Adult Services,Adult Social Care,Commissioning & Service Delivery,5105688551,27.10.2021,Group Manager Leaning Disability Homes,Stationery,2.45,BATES OFFICE SERVICES LIMITED
Revenue,Adult Services,Adult Social Care,Commissioning & Service Delivery,5105688551,27.10.2021,Group Manager Leaning Disability Homes,Stationery,8.74,BATES OFFICE SERVICES LIMITED
Revenue,Adult Services,Adult Social Care,Commissioning & Service Delivery,5105688551,27.10.2021,Group Manager Leaning Disability Homes,Stationery,0.74,BATES OFFICE SERVICES LIMITED
Revenue,Adult Services,Adult Social Care,Commissioning & Service Delivery,5105688551,27.10.2021,Group Manager Leaning Disability Homes,Stationery,2.27,BATES OFFICE SERVICES LIMITED
Revenue,Adult Services,Adult Social Care,Commissioning & Service Delivery,5105688551,27.10.2021,Group Manager Leaning Disability Homes,Stationery,6.09,BATES OFFICE SERVICES LIMITED
Revenue,Adult Services,Adult Social Care,Commissioning & Service Delivery,5105687266,13.10.2021,Deputyship Office,Stationery,6.79,BATES OFFICE SERVICES LIMITED
Revenue,Adult Services,Adult Social Care,Commissioning & Service Delivery,5105687266,13.10.2021,Deputyship Office,Stationery,0.92,BATES OFFICE SERVICES LIMITED
Revenue,Adult Services,Adult Social Care,Commissioning & Service Delivery,5105687266,13.10.2021,Deputyship Office,Stationery,0.81,BATES OFFICE SERVICES LIMITED
Revenue,Adult Services,Adult Social Care,Commissioning & Service Delivery,5105687266,13.10.2021,Deputyship Office,Stationery,0.43,BATES OFFICE SERVICES LIMITED
Revenue,Adult Services,Adult Social Care,Commissioning & Service Delivery,5105687266,13.10.2021,Deputyship Office,Stationery,2.45,BATES OFFICE SERVICES LIMITED
Revenue,Adult Services,Adult Social Care,Commissioning & Service Delivery,5105687266,13.10.2021,Deputyship Office,Stationery,1.17,BATES OFFICE SERVICES LIMITED
Revenue,Adult Services,Adult Social Care,Commissioning & Service Delivery,5105687266,13.10.2021,Deputyship Office,Stationery,5.13,BATES OFFICE SERVICES LIMITED
Revenue,Adult Services,Adult Social Care,Assistive Equipment & Technology,5105688058,20.10.2021,Wightcare,Stationery,17.48,BATES OFFICE SERVICES LIMITED
Revenue,Adult Services,Adult Social Care,Assistive Equipment & Technology,5105688058,20.10.2021,Wightcare,Stationery,10.50,BATES OFFICE SERVICES LIMITED
Revenue,Adult Services,Adult Social Care,Assistive Equipment & Technology,5105688058,20.10.2021,Wightcare,Stationery,14.30,BATES OFFICE SERVICES LIMITED
Revenue,Adult Services,Adult Social Care,Central Codes (to be reallocated),5105688553,29.10.2021,Community Reablement,Stationery,28.92,BATES OFFICE SERVICES LIMITED
Revenue,Adult Services,Adult Social Care,Central Codes (to be reallocated),5105688553,29.10.2021,Community Reablement,Stationery,9.90,BATES OFFICE SERVICES LIMITED
Revenue,Adult Services,Adult Social Care,Central Codes (to be reallocated),5105688553,29.10.2021,Community Reablement,Stationery,89.50,BATES OFFICE SERVICES LIMITED
Revenue,Resources,Central Services,Support Services,5105688058,20.10.2021,Legal Services Section,Stationery,26.22,BATES OFFICE SERVICES LIMITED
Revenue,Resources,Central Services,Support Services,5105686596,01.10.2021,Legal Services Section,Stationery,17.48,BATES OFFICE SERVICES LIMITED
Revenue,Resources,Central Services,Support Services,5105686599,01.10.2021,Legal Services Section,Stationery,3.71,BATES OFFICE SERVICES LIMITED
Revenue,Adult Services,Adult Social Care,Commissioning & Service Delivery,5105688551,27.10.2021,Group Manager Leaning Disability Homes,Stationery,6.50,BATES OFFICE SERVICES LIMITED
Revenue,Adult Services,Adult Social Care,Commissioning & Service Delivery,5105688551,27.10.2021,Group Manager Leaning Disability Homes,Stationery,2.50,BATES OFFICE SERVICES LIMITED
Revenue,Childrens Services,Children's & Education Services,Special Schools & Alternative Provision,5105688566,27.10.2021,Island Learning Centre,Stationery,1.24,BATES OFFICE SERVICES LIMITED
Revenue,Childrens Services,Children's & Education Services,Special Schools & Alternative Provision,5105688566,27.10.2021,Island Learning Centre,Stationery,28.48,BATES OFFICE SERVICES LIMITED
Revenue,Childrens Services,Children's & Education Services,Special Schools & Alternative Provision,5105688566,27.10.2021,Island Learning Centre,Stationery,28.48,BATES OFFICE SERVICES LIMITED
Revenue,Childrens Services,Children's & Education Services,Special Schools & Alternative Provision,5105688566,27.10.2021,Island Learning Centre,Stationery,9.13,BATES OFFICE SERVICES LIMITED
Revenue,Childrens Services,Children's & Education Services,Special Schools & Alternative Provision,5105686598,01.10.2021,Island Learning Centre,Stationery,43.70,BATES OFFICE SERVICES LIMITED
Revenue,Childrens Services,Children's & Education Services,Special Schools & Alternative Provision,5105686598,01.10.2021,Island Learning Centre,Stationery,5.00,BATES OFFICE SERVICES LIMITED
Revenue,Childrens Services,Children's & Education Services,Special Schools & Alternative Provision,5105686598,01.10.2021,Island Learning Centre,Stationery,3.84,BATES OFFICE SERVICES LIMITED
Revenue,Adult Services,Adult Social Care,Commissioning & Service Delivery,5105686596,01.10.2021,ASC County Hall office costs,Stationery,14.30,BATES OFFICE SERVICES LIMITED
Revenue,Adult Services,Adult Social Care,Commissioning & Service Delivery,5105687266,13.10.2021,ASC County Hall office costs,Stationery,10.95,BATES OFFICE SERVICES LIMITED
Revenue,Adult Services,Adult Social Care,Commissioning & Service Delivery,5105687266,13.10.2021,ASC County Hall office costs,Stationery,1.40,BATES OFFICE SERVICES LIMITED
Revenue,Adult Services,Adult Social Care,Commissioning & Service Delivery,5105687266,13.10.2021,ASC County Hall office costs,Stationery,0.96,BATES OFFICE SERVICES LIMITED
Revenue,Adult Services,Adult Social Care,Commissioning & Service Delivery,5105687266,13.10.2021,ASC County Hall office costs,Stationery,1.00,BATES OFFICE SERVICES LIMITED
Revenue,Adult Services,Adult Social Care,Commissioning & Service Delivery,5105687266,13.10.2021,ASC County Hall office costs,Stationery,0.91,BATES OFFICE SERVICES LIMITED
Revenue,Adult Services,Adult Social Care,Commissioning & Service Delivery,5105687266,13.10.2021,ASC County Hall office costs,Stationery,0.69,BATES OFFICE SERVICES LIMITED
Revenue,Adult Services,Adult Social Care,Commissioning & Service Delivery,5105687266,13.10.2021,ASC County Hall office costs,Stationery,1.43,BATES OFFICE SERVICES LIMITED
Revenue,Adult Services,Adult Social Care,Social Care Activities,5105687266,13.10.2021,Hospital Team,Stationery,6.42,BATES OFFICE SERVICES LIMITED
Revenue,Adult Services,Adult Social Care,Social Care Activities,5105687266,13.10.2021,Hospital Team,Stationery,3.50,BATES OFFICE SERVICES LIMITED
Revenue,Neighbourhoods,Environmental & Regulatory Services,Service Management and Support Services,5105686599,01.10.2021,Regulatory Management & Admin Support,Stationery,1.80,BATES OFFICE SERVICES LIMITED
Revenue,Neighbourhoods,Environmental & Regulatory Services,Service Management and Support Services,5105686599,01.10.2021,Regulatory Management & Admin Support,Stationery,3.71,BATES OFFICE SERVICES LIMITED
Revenue,Neighbourhoods,Environmental & Regulatory Services,Service Management and Support Services,5105686599,01.10.2021,Regulatory Management & Admin Support,Stationery,17.48,BATES OFFICE SERVICES LIMITED
Revenue,Neighbourhoods,Environmental & Regulatory Services,Service Management and Support Services,5105686599,01.10.2021,Regulatory Management & Admin Support,Stationery,2.48,BATES OFFICE SERVICES LIMITED
Revenue,Neighbourhoods,Environmental & Regulatory Services,Service Management and Support Services,5105686599,01.10.2021,Regulatory Management & Admin Support,Stationery,0.77,BATES OFFICE SERVICES LIMITED
Revenue,Neighbourhoods,Environmental & Regulatory Services,Service Management and Support Services,5105686599,01.10.2021,Regulatory Management & Admin Support,Stationery,1.17,BATES OFFICE SERVICES LIMITED
Revenue,Neighbourhoods,Environmental & Regulatory Services,Service Management and Support Services,5105686599,01.10.2021,Regulatory Management & Admin Support,Stationery,8.08,BATES OFFICE SERVICES LIMITED
Revenue,Neighbourhoods,Environmental & Regulatory Services,Service Management and Support Services,5105686599,01.10.2021,Regulatory Management & Admin Support,Stationery,0.66,BATES OFFICE SERVICES LIMITED
Revenue,Neighbourhoods,Environmental & Regulatory Services,Service Management and Support Services,5105687266,13.10.2021,Regulatory Management & Admin Support,Stationery,5.69,BATES OFFICE SERVICES LIMITED
Revenue,Childrens Services,Children's & Education Services,Special Schools & Alternative Provision,5105688566,27.10.2021,Island Learning Centre,Stationery,1.24,BATES OFFICE SERVICES LIMITED
Revenue,Regeneration,Central Services,Support Services,5105686599,01.10.2021,"County Hall,Newport",Stationery,0.87,BATES OFFICE SERVICES LIMITED
Revenue,Neighbourhoods,Cultural and Related Services,Library Service,5105688060,20.10.2021,Public Libraries Central,Stationery,11.04,BATES OFFICE SERVICES LIMITED
Revenue,Resources,Central Services,Corporate and Democratic Core,5105687373,13.10.2021,Committee and Scrutiny Team,Stationery,6.57,BATES OFFICE SERVICES LIMITED
Revenue,Resources,Central Services,Corporate and Democratic Core,5105686596,01.10.2021,Committee and Scrutiny Team,Stationery,3.71,BATES OFFICE SERVICES LIMITED
Revenue,Resources,Central Services,Corporate and Democratic Core,5105686596,01.10.2021,Committee and Scrutiny Team,Stationery,21.86,BATES OFFICE SERVICES LIMITED
Revenue,Neighbourhoods,Central Services,Central Services to the Public,5105688105,20.10.2021,Coroner,Stationery,-6.48,BATES OFFICE SERVICES LIMITED
Revenue,Neighbourhoods,Central Services,Central Services to the Public,5105685076,20.10.2021,Coroner,Stationery,6.48,BATES OFFICE SERVICES LIMITED
Revenue,Childrens Services,Children's & Education Services,Youth Justice,5105686596,01.10.2021,Youth Offending Team,Stationery,17.48,BATES OFFICE SERVICES LIMITED
Revenue,Adult Services,Adult Social Care,Central Codes (to be reallocated),5105687265,13.10.2021,Adelaide Resource Centre,Stationery,43.70,BATES OFFICE SERVICES LIMITED
Revenue,Adult Services,Adult Social Care,Central Codes (to be reallocated),5105687265,13.10.2021,Adelaide Resource Centre,Stationery,6.00,BATES OFFICE SERVICES LIMITED
Revenue,Adult Services,Adult Social Care,Central Codes (to be reallocated),5105687265,13.10.2021,Adelaide Resource Centre,Stationery,4.46,BATES OFFICE SERVICES LIMITED
Revenue,Adult Services,Adult Social Care,Central Codes (to be reallocated),5105687265,13.10.2021,Adelaide Resource Centre,Stationery,1.08,BATES OFFICE SERVICES LIMITED
Revenue,Adult Services,Adult Social Care,Central Codes (to be reallocated),5105687347,13.10.2021,Adelaide Resource Centre,Stationery,33.00,BATES OFFICE SERVICES LIMITED
Revenue,Adult Services,Adult Social Care,Central Codes (to be reallocated),5105687348,13.10.2021,Adelaide Resource Centre,Stationery,-33.00,BATES OFFICE SERVICES LIMITED
Revenue,Adult Services,Adult Social Care,Central Codes (to be reallocated),5105688563,27.10.2021,Adelaide Resource Centre,Stationery,2.13,BATES OFFICE SERVICES LIMITED
Revenue,Adult Services,Adult Social Care,Central Codes (to be reallocated),5105688563,27.10.2021,Adelaide Resource Centre,Stationery,2.22,BATES OFFICE SERVICES LIMITED
Revenue,Adult Services,Adult Social Care,Central Codes (to be reallocated),5105688563,27.10.2021,Adelaide Resource Centre,Stationery,1.84,BATES OFFICE SERVICES LIMITED
Revenue,Adult Services,Adult Social Care,Central Codes (to be reallocated),5105688563,27.10.2021,Adelaide Resource Centre,Stationery,0.92,BATES OFFICE SERVICES LIMITED
Revenue,Resources,Central Services,Support Services,5105687266,13.10.2021,Help Centres Shared Service Centre,Stationery,17.48,BATES OFFICE SERVICES LIMITED
Revenue,Adult Services,Adult Social Care,Commissioning & Service Delivery,5105688058,20.10.2021,CHC Staff Costs,Stationery,3.54,BATES OFFICE SERVICES LIMITED
Revenue,Regeneration,Planning services,Management & Support Services,5105683937,13.10.2021,Planning Management,Stationery,13.58,BATES OFFICE SERVICES LIMITED
Revenue,Regeneration,Planning services,Management & Support Services,5105688557,27.10.2021,Planning Management,Stationery,21.82,BATES OFFICE SERVICES LIMITED
Revenue,Neighbourhoods,Environmental & Regulatory Services,"Cemetery, Cremation & Mortuary Services",5105688555,27.10.2021,Crematorium,Stationery,21.41,BATES OFFICE SERVICES LIMITED
Revenue,Neighbourhoods,Environmental & Regulatory Services,"Cemetery, Cremation & Mortuary Services",5105688555,27.10.2021,Crematorium,Stationery,6.70,BATES OFFICE SERVICES LIMITED
Revenue,Neighbourhoods,Environmental & Regulatory Services,"Cemetery, Cremation & Mortuary Services",5105688508,29.10.2021,Crematorium,Stationery,5.14,BATES OFFICE SERVICES LIMITED
Revenue,Neighbourhoods,Environmental & Regulatory Services,"Cemetery, Cremation & Mortuary Services",5105688508,29.10.2021,Crematorium,Stationery,6.00,BATES OFFICE SERVICES LIMITED
Revenue,Neighbourhoods,Environmental & Regulatory Services,"Cemetery, Cremation & Mortuary Services",5105688508,29.10.2021,Crematorium,Stationery,3.54,BATES OFFICE SERVICES LIMITED
Revenue,Neighbourhoods,Environmental & Regulatory Services,"Cemetery, Cremation & Mortuary Services",5105688508,29.10.2021,Crematorium,Stationery,14.52,BATES OFFICE SERVICES LIMITED
Revenue,Neighbourhoods,Environmental & Regulatory Services,"Cemetery, Cremation & Mortuary Services",5105688508,29.10.2021,Crematorium,Stationery,3.60,BATES OFFICE SERVICES LIMITED
Revenue,Neighbourhoods,Environmental & Regulatory Services,"Cemetery, Cremation & Mortuary Services",5105688508,29.10.2021,Crematorium,Stationery,6.25,BATES OFFICE SERVICES LIMITED
Revenue,Neighbourhoods,Environmental & Regulatory Services,"Cemetery, Cremation & Mortuary Services",5105688508,29.10.2021,Crematorium,Stationery,4.68,BATES OFFICE SERVICES LIMITED
Revenue,Neighbourhoods,Environmental & Regulatory Services,"Cemetery, Cremation & Mortuary Services",5105688508,29.10.2021,Crematorium,Stationery,1.38,BATES OFFICE SERVICES LIMITED
Revenue,Childrens Services,Children's & Education Services,Management & Support Services,5105688509,29.10.2021,Specialist Service Business Admin,Stationery,3.68,BATES OFFICE SERVICES LIMITED
Revenue,Childrens Services,Children's & Education Services,Management & Support Services,5105688509,29.10.2021,Specialist Service Business Admin,Stationery,3.50,BATES OFFICE SERVICES LIMITED
Revenue,Childrens Services,Children's & Education Services,Management & Support Services,5105688509,29.10.2021,Specialist Service Business Admin,Stationery,4.63,BATES OFFICE SERVICES LIMITED
Revenue,Childrens Services,Children's & Education Services,Management & Support Services,5105688509,29.10.2021,Specialist Service Business Admin,Stationery,2.15,BATES OFFICE SERVICES LIMITED
Revenue,Childrens Services,Children's & Education Services,Management & Support Services,5105688509,29.10.2021,Specialist Service Business Admin,Stationery,8.74,BATES OFFICE SERVICES LIMITED
Revenue,Childrens Services,Children's & Education Services,Management & Support Services,5105688509,29.10.2021,Specialist Service Business Admin,Stationery,1.00,BATES OFFICE SERVICES LIMITED
Revenue,Childrens Services,Children's & Education Services,Management & Support Services,5105688509,29.10.2021,Specialist Service Business Admin,Stationery,3.65,BATES OFFICE SERVICES LIMITED
Revenue,Childrens Services,Children's & Education Services,Management & Support Services,5105688509,29.10.2021,Specialist Service Business Admin,Stationery,0.87,BATES OFFICE SERVICES LIMITED
Revenue,Childrens Services,Children's & Education Services,Management & Support Services,5105688509,29.10.2021,Specialist Service Business Admin,Stationery,1.15,BATES OFFICE SERVICES LIMITED
Revenue,Childrens Services,Children's & Education Services,Management & Support Services,5105688509,29.10.2021,Specialist Service Business Admin,Stationery,0.56,BATES OFFICE SERVICES LIMITED
Revenue,Adult Services,Adult Social Care,Commissioning & Service Delivery,5105687266,13.10.2021,FAC Team,Stationery,10.26,BATES OFFICE SERVICES LIMITED
Revenue,Adult Services,Adult Social Care,Commissioning & Service Delivery,5105687266,13.10.2021,FAC Team,Stationery,11.38,BATES OFFICE SERVICES LIMITED
Revenue,Childrens Services,Children's & Education Services,Children Looked After,5105688404,22.10.2021,Leaving Care Costs,Charges from Independent Providers,"8,680.00",BEAUFORT SUPPORT SERVICES LTD
Revenue,Childrens Services,Children's & Education Services,Children Looked After,5105686669,01.10.2021,Leaving Care Costs,Support Children,19.99,REDACTED PERSONAL DATA
Revenue,Childrens Services,Children's & Education Services,Children Looked After,5105686760,06.10.2021,Purchased Residential,Charges from Independent Providers,"3,850.00",BENECARE FOSTERING LTD
Revenue,Childrens Services,Children's & Education Services,Children Looked After,5105686768,06.10.2021,Purchased Residential,Charges from Independent Providers,"3,850.00",BENECARE FOSTERING LTD
Revenue,Childrens Services,Children's & Education Services,Children Looked After,5105686771,06.10.2021,Purchased Residential,Charges from Independent Providers,"3,850.00",BENECARE FOSTERING LTD
Revenue,Childrens Services,Children's & Education Services,Children Looked After,5105688500,27.10.2021,Purchased Residential,Charges from Independent Providers,"3,850.00",BENECARE FOSTERING LTD
Revenue,Childrens Services,Children's & Education Services,Children Looked After,5105688501,27.10.2021,Purchased Residential,Charges from Independent Providers,"3,850.00",BENECARE FOSTERING LTD
Revenue,Childrens Services,Children's & Education Services,Children Looked After,5105688502,27.10.2021,Purchased Residential,Charges from Independent Providers,"3,850.00",BENECARE FOSTERING LTD
Revenue,Adult Services,Adult Social Care,Central Codes (to be reallocated),5105688476,29.10.2021,Gouldings Resource Centre,Consumable Cleaning Materials,291.08,BETA PAK LTD
Revenue,Adult Services,Adult Social Care,Central Codes (to be reallocated),5105688694,27.10.2021,Gouldings Resource Centre,Consumable Cleaning Materials,458.99,BETA PAK LTD
Revenue,Adult Services,Adult Social Care,Central Codes (to be reallocated),5105685609,08.10.2021,Gouldings Resource Centre,Consumable Cleaning Materials,17.32,BETA PAK LTD
Revenue,Adult Services,Adult Social Care,Central Codes (to be reallocated),5105688858,27.10.2021,Gouldings Resource Centre,Consumable Cleaning Materials,83.77,BETA PAK LTD
Revenue,Adult Services,Adult Social Care,Central Codes (to be reallocated),5105686766,27.10.2021,Gouldings Resource Centre,Consumable Cleaning Materials,-99.75,BETA PAK LTD
Revenue,Adult Services,Adult Social Care,Central Codes (to be reallocated),5105687279,13.10.2021,Gouldings Resource Centre,Consumable Cleaning Materials,194.02,BETA PAK LTD
Revenue,Adult Services,Adult Social Care,Central Codes (to be reallocated),5105687612,20.10.2021,Gouldings Resource Centre,Consumable Cleaning Materials,-238.03,BETA PAK LTD
Revenue,Adult Services,Adult Social Care,Social Support - Support for Carer,5105686587,06.10.2021,Westminster House,Operational Equipment,157.62,BETA PAK LTD
Revenue,Adult Services,Adult Social Care,Learning Disab Supp (to be reallocated),5105688139,20.10.2021,Saxonbury,Operational Equipment,20.66,BETA PAK LTD
Revenue,Adult Services,Adult Social Care,Learning Disab Supp (to be reallocated),5105688136,20.10.2021,Saxonbury,Operational Equipment,7.32,BETA PAK LTD
Revenue,Adult Services,Adult Social Care,Learning Disab Supp (to be reallocated),5105687281,13.10.2021,Saxonbury,Operational Equipment,76.78,BETA PAK LTD
Revenue,Adult Services,Adult Social Care,Learning Disab Supp (to be reallocated),5105686329,13.10.2021,Saxonbury,Operational Equipment,401.34,BETA PAK LTD
Revenue,Adult Services,Adult Social Care,Social Support - Support for Carer,5105687092,15.10.2021,Westminster House,Operational Equipment,12.74,BETA PAK LTD
Revenue,Adult Services,Adult Social Care,Learning Disab Supp (to be reallocated),5105686842,08.10.2021,Plean Dene,Operational Equipment,25.84,BETA PAK LTD
Revenue,Adult Services,Adult Social Care,Learning Disab Supp (to be reallocated),5105688138,20.10.2021,Plean Dene,Operational Equipment,19.50,BETA PAK LTD
Revenue,Adult Services,Adult Social Care,Learning Disab Supp (to be reallocated),5105687233,15.10.2021,Plean Dene,Operational Equipment,183.30,BETA PAK LTD
Revenue,Adult Services,Adult Social Care,Central Codes (to be reallocated),5105686737,06.10.2021,Adelaide Resource Centre,Consumable Cleaning Materials,22.00,BETA PAK LTD
Revenue,Adult Services,Adult Social Care,Central Codes (to be reallocated),5105688137,20.10.2021,Adelaide Resource Centre,Consumable Cleaning Materials,17.01,BETA PAK LTD
Revenue,Adult Services,Adult Social Care,Central Codes (to be reallocated),5105688151,20.10.2021,Adelaide Resource Centre,Consumable Cleaning Materials,74.90,BETA PAK LTD
Revenue,Adult Services,Adult Social Care,Central Codes (to be reallocated),5105688045,20.10.2021,Adelaide Resource Centre,Consumable Cleaning Materials,163.06,BETA PAK LTD
Revenue,Adult Services,Adult Social Care,Central Codes (to be reallocated),5105686702,06.10.2021,Adelaide Resource Centre,Consumable Cleaning Materials,92.28,BETA PAK LTD
Revenue,Adult Services,Adult Social Care,Central Codes (to be reallocated),5105686843,06.10.2021,Adelaide Resource Centre,Consumable Cleaning Materials,49.99,BETA PAK LTD
Revenue,Adult Services,Adult Social Care,Central Codes (to be reallocated),5105687106,08.10.2021,Adelaide Resource Centre,Consumable Cleaning Materials,217.66,BETA PAK LTD
Revenue,Adult Services,Adult Social Care,Central Codes (to be reallocated),5105687234,13.10.2021,Adelaide Resource Centre,Consumable Cleaning Materials,28.72,BETA PAK LTD
Revenue,Adult Services,Adult Social Care,Central Codes (to be reallocated),5105687093,08.10.2021,Adelaide Resource Centre,Operational Equipment,141.99,BETA PAK LTD
Revenue,Adult Services,Adult Social Care,Central Codes (to be reallocated),5105687107,08.10.2021,Adelaide Resource Centre,Operational Equipment,79.92,BETA PAK LTD
Revenue,Neighbourhoods,Highways and Transport Services,Management and Support Services,5105686802,06.10.2021,Highways PFI Project,Legal Fees - Other Parties,"3,391.00",BEVAN BRITTAN
Revenue,Neighbourhoods,Environmental & Regulatory Services,Service Management and Support Services,5105687308,22.10.2021,Waste Contract Management,Legal Fees - Other Parties,"32,352.10",BEVAN BRITTAN
Revenue,Regeneration,Planning services,Economic Development,5105687095,08.10.2021,Economic Development Projects,Professional Services,851.00,BEVAN BRITTAN
Revenue,Regeneration,Planning services,Economic Development,5105688134,20.10.2021,Camp Hill - Regeneration,Legal Fees - Other Parties,411.40,BEVAN BRITTAN
Revenue,Regeneration,Planning services,Economic Development,5105688135,20.10.2021,Camp Hill - Regeneration,Legal Fees - Other Parties,"1,350.50",BEVAN BRITTAN
Revenue,Regeneration,Planning services,Economic Development,5105688135,20.10.2021,Camp Hill - Regeneration,Legal Fees - Other Parties,89.00,BEVAN BRITTAN
Revenue,Regeneration,Planning services,Economic Development,5105688135,20.10.2021,Camp Hill - Regeneration,Legal Fees - Other Parties,"1,576.00",BEVAN BRITTAN
Revenue,Adult Services,Adult Social Care,Central Codes (to be reallocated),5105687979,20.10.2021,Gouldings Resource Centre,Catering Purchases,301.94,3663 (BFS GROUP LTD)
Revenue,Adult Services,Adult Social Care,Central Codes (to be reallocated),5105687979,20.10.2021,Gouldings Resource Centre,Catering Purchases,10.20,3663 (BFS GROUP LTD)
Revenue,Adult Services,Adult Social Care,Central Codes (to be reallocated),5105686549,13.10.2021,Gouldings Resource Centre,Catering Purchases,-2.72,3663 (BFS GROUP LTD)
Revenue,Adult Services,Adult Social Care,Central Codes (to be reallocated),5105687364,13.10.2021,Gouldings Resource Centre,Catering Purchases,157.36,3663 (BFS GROUP LTD)
Revenue,Adult Services,Adult Social Care,Central Codes (to be reallocated),5105687364,13.10.2021,Gouldings Resource Centre,Catering Purchases,10.88,3663 (BFS GROUP LTD)
Revenue,Regeneration,Central Services,Support Services,5105687212,08.10.2021,17 Fairlee Road,"Refuse Collection, Disposal and Recycling Costs",53.00,BIFFA WASTE SERVICES LTD
Revenue,Neighbourhoods,Highways and Transport Services,"Airports, Harbours & Toll Facilities",5105687212,08.10.2021,Ferry Management,"Refuse Collection, Disposal and Recycling Costs",96.50,BIFFA WASTE SERVICES LTD
Revenue,Adult Services,Adult Social Care,Central Codes (to be reallocated),5105687212,08.10.2021,Gouldings Resource Centre,"Refuse Collection, Disposal and Recycling Costs",250.65,BIFFA WASTE SERVICES LTD
Revenue,Regeneration,Central Services,Support Services,5105687212,08.10.2021,Parklands,"Refuse Collection, Disposal and Recycling Costs",7.00,BIFFA WASTE SERVICES LTD
Revenue,Childrens Services,Children's & Education Services,Other Education and Community Budget,5105687212,08.10.2021,SEND Independent Advice & Support,"Refuse Collection, Disposal and Recycling Costs",50.90,BIFFA WASTE SERVICES LTD
Revenue,Neighbourhoods,Cultural and Related Services,Recreation and Sport,5105687212,08.10.2021,Seaclose Skate Park & Netball Courts,"Refuse Collection, Disposal and Recycling Costs",107.80,BIFFA WASTE SERVICES LTD
Revenue,Neighbourhoods,Cultural and Related Services,Recreation and Sport,5105687212,08.10.2021,Medina Leisure Centre,"Refuse Collection, Disposal and Recycling Costs",288.33,BIFFA WASTE SERVICES LTD
Revenue,Neighbourhoods,Highways and Transport Services,"Airports, Harbours & Toll Facilities",5105687212,08.10.2021,Ryde Harbour,"Refuse Collection, Disposal and Recycling Costs",113.68,BIFFA WASTE SERVICES LTD
Revenue,Adult Services,Adult Social Care,Learning Disab Supp (to be reallocated),5105687212,08.10.2021,Plean Dene,"Refuse Collection, Disposal and Recycling Costs",221.90,BIFFA WASTE SERVICES LTD
Revenue,Adult Services,Adult Social Care,Learning Disab Supp (to be reallocated),5105687212,08.10.2021,Saxonbury,"Refuse Collection, Disposal and Recycling Costs",109.40,BIFFA WASTE SERVICES LTD
Revenue,Adult Services,Adult Social Care,Assistive Equipment & Technology,5105687212,08.10.2021,BCF Community Equipment Store,"Refuse Collection, Disposal and Recycling Costs",319.68,BIFFA WASTE SERVICES LTD
Revenue,Childrens Services,Children's & Education Services,Children Looked After,5105687212,08.10.2021,Beaulieu House,"Refuse Collection, Disposal and Recycling Costs",229.00,BIFFA WASTE SERVICES LTD
Revenue,Regeneration,Central Services,Support Services,5105687212,08.10.2021,"Westridge, Ryde","Refuse Collection, Disposal and Recycling Costs",179.07,BIFFA WASTE SERVICES LTD
Revenue,Regeneration,Central Services,Support Services,5105687212,08.10.2021,"County Hall,Newport","Refuse Collection, Disposal and Recycling Costs",552.74,BIFFA WASTE SERVICES LTD
Revenue,Regeneration,Central Services,Support Services,5105687212,08.10.2021,"Jubilee Stores, Newport","Refuse Collection, Disposal and Recycling Costs",128.85,BIFFA WASTE SERVICES LTD
Revenue,Neighbourhoods,Cultural and Related Services,Open Spaces,5105687212,08.10.2021,Fort Victoria,"Refuse Collection, Disposal and Recycling Costs",221.40,BIFFA WASTE SERVICES LTD
Revenue,Neighbourhoods,Highways and Transport Services,"Airports, Harbours & Toll Facilities",5105687212,08.10.2021,Newport Harbour Account,"Refuse Collection, Disposal and Recycling Costs",445.48,BIFFA WASTE SERVICES LTD
Revenue,Neighbourhoods,Highways and Transport Services,"Airports, Harbours & Toll Facilities",5105687212,08.10.2021,Newport Harbour Account,"Refuse Collection, Disposal and Recycling Costs",136.50,BIFFA WASTE SERVICES LTD
Revenue,Neighbourhoods,Cultural and Related Services,Library Service,5105687212,08.10.2021,Public Libraries Central,"Refuse Collection, Disposal and Recycling Costs",517.89,BIFFA WASTE SERVICES LTD
Revenue,Neighbourhoods,Cultural and Related Services,Culture and Heritage,5105687212,08.10.2021,Cothey Bottom Store RYDE,"Refuse Collection, Disposal and Recycling Costs",89.54,BIFFA WASTE SERVICES LTD
Revenue,Neighbourhoods,Cultural and Related Services,Recreation and Sport,5105687212,08.10.2021,Westridge Squash Courts,"Refuse Collection, Disposal and Recycling Costs",89.54,BIFFA WASTE SERVICES LTD
Revenue,Neighbourhoods,Environmental & Regulatory Services,"Cemetery, Cremation & Mortuary Services",5105687212,08.10.2021,Crematorium,"Refuse Collection, Disposal and Recycling Costs",227.50,BIFFA WASTE SERVICES LTD
Revenue,Childrens Services,Children's & Education Services,Management & Support Services,5105687212,08.10.2021,Specialist Service Business Admin,"Refuse Collection, Disposal and Recycling Costs",161.05,BIFFA WASTE SERVICES LTD
Revenue,Neighbourhoods,Cultural and Related Services,Culture and Heritage,5105687212,08.10.2021,Dinosaur Isle Museum (Sandown Geology),"Refuse Collection, Disposal and Recycling Costs",29.41,BIFFA WASTE SERVICES LTD
Revenue,Neighbourhoods,Cultural and Related Services,Recreation and Sport,5105687212,08.10.2021,The Heights,"Refuse Collection, Disposal and Recycling Costs",198.80,BIFFA WASTE SERVICES LTD
Revenue,Regeneration,Central Services,Support Services,5105687212,08.10.2021,"Civic Centre,Sandown","Refuse Collection, Disposal and Recycling Costs",86.24,BIFFA WASTE SERVICES LTD
Revenue,Resources,Central Services,Support Services,5105689136,29.10.2021,Staff Benefits,Payment to Private Contractors,155.00,BLACKBERRY LANE PRE-SCHOOL
Revenue,Childrens Services,Children's & Education Services,Children Looked After,5105688355,22.10.2021,Purchased Fostering,Charges from Independent Providers,"6,510.00",BLUE SKY FOSTERING LTD
Revenue,Adult Services,Adult Social Care,Support - Memory /Cognition-older people (65+),5105688671,27.10.2021,Memory & Cognition Nursing 65+,Charges from Independent Providers,"3,920.00",BLUEWATER CARE HOMES LTD
Revenue,Childrens Services,Children's & Education Services,Children Looked After,5105688560,27.10.2021,Support for LAC CWD,Support Children,84.00,BODSTER EQUINE ASSISTED LEARN CIC
Revenue,Childrens Services,Children's & Education Services,Management & Support Services,5105687548,15.10.2021,Education Direct Payments,Transport of Clients,84.00,BODSTER EQUINE ASSISTED LEARN CIC
Revenue,Childrens Services,Children's & Education Services,Management & Support Services,5105687474,13.10.2021,Education Direct Payments,Transport of Clients,168.00,BODSTER EQUINE ASSISTED LEARN CIC
Revenue,Childrens Services,Children's & Education Services,Family Support Services,5105688690,27.10.2021,Short Breaks,Charges from Independent Providers,349.17,BODSTER EQUINE ASSISTED LEARN CIC
Revenue,Adult Services,Adult Social Care,Learning Disab Supp (to be reallocated),5105687080,15.10.2021,Plean Dene,Catering Purchases,109.22,BOOKER CASH & CARRY LTD
Revenue,Adult Services,Adult Social Care,Learning Disab Supp (to be reallocated),5105687080,15.10.2021,Plean Dene,Catering Purchases,11.59,BOOKER CASH & CARRY LTD
Revenue,Adult Services,Adult Social Care,Learning Disab Supp (to be reallocated),5105687440,20.10.2021,Plean Dene,Catering Purchases,6.59,BOOKER CASH & CARRY LTD
Revenue,Adult Services,Adult Social Care,Learning Disab Supp (to be reallocated),5105688768,29.10.2021,Plean Dene,Catering Purchases,47.55,BOOKER CASH & CARRY LTD
Revenue,Adult Services,Adult Social Care,Learning Disab Supp (to be reallocated),5105688722,29.10.2021,Plean Dene,Catering Purchases,20.01,BOOKER CASH & CARRY LTD
Revenue,Adult Services,Adult Social Care,Learning Disab Supp (to be reallocated),5105688021,20.10.2021,Plean Dene,Catering Purchases,12.82,BOOKER CASH & CARRY LTD
Revenue,Adult Services,Adult Social Care,Learning Disab Supp (to be reallocated),5105688104,29.10.2021,Plean Dene,Catering Purchases,108.27,BOOKER CASH & CARRY LTD
Revenue,Adult Services,Adult Social Care,Learning Disab Supp (to be reallocated),5105687335,15.10.2021,Plean Dene,Catering Purchases,103.24,BOOKER CASH & CARRY LTD
Revenue,Adult Services,Adult Social Care,Learning Disab Supp (to be reallocated),5105687336,15.10.2021,Plean Dene,Catering Purchases,15.36,BOOKER CASH & CARRY LTD
Revenue,Adult Services,Adult Social Care,Learning Disab Supp (to be reallocated),5105686708,06.10.2021,Plean Dene,Catering Purchases,1.78,BOOKER CASH & CARRY LTD
Revenue,Adult Services,Adult Social Care,Learning Disab Supp (to be reallocated),5105686740,06.10.2021,Plean Dene,Catering Purchases,8.99,BOOKER CASH & CARRY LTD
Revenue,Adult Services,Adult Social Care,Learning Disab Supp (to be reallocated),5105687236,15.10.2021,Plean Dene,Catering Purchases,7.99,BOOKER CASH & CARRY LTD
Revenue,Childrens Services,Children's & Education Services,Family Support Services,5105687137,08.10.2021,S17 Child Protection,Professional Services,105.00,BOSTICO INTERNATIONAL
Revenue,Adult Services,Housing Services,Homelessness,5105688436,22.10.2021,Private Rented Sector Leasing Scheme,Accommodation Costs - Leaseholder Payments,746.81,BRAMBLE LETTINGS
Revenue,Adult Services,Housing Services,Homelessness,5105688436,22.10.2021,Private Rented Sector Leasing Scheme,Accommodation Costs - Leaseholder Payments,746.81,BRAMBLE LETTINGS
Revenue,Adult Services,Housing Services,Homelessness,5105688436,22.10.2021,Private Rented Sector Leasing Scheme,Accommodation Costs - Leaseholder Payments,746.81,BRAMBLE LETTINGS
Revenue,Adult Services,Housing Services,Homelessness,5105688436,22.10.2021,Private Rented Sector Leasing Scheme,Accommodation Costs - Leaseholder Payments,746.81,BRAMBLE LETTINGS
Revenue,Adult Services,Housing Services,Homelessness,5105688436,22.10.2021,Private Rented Sector Leasing Scheme,Accommodation Costs - Leaseholder Payments,746.81,BRAMBLE LETTINGS
Revenue,Adult Services,Housing Services,Homelessness,5105688436,22.10.2021,Private Rented Sector Leasing Scheme,Accommodation Costs - Leaseholder Payments,588.38,BRAMBLE LETTINGS
Revenue,Adult Services,Housing Services,Homelessness,5105688436,22.10.2021,Private Rented Sector Leasing Scheme,Accommodation Costs - Leaseholder Payments,588.38,BRAMBLE LETTINGS
Revenue,Adult Services,Housing Services,Homelessness,5105688436,22.10.2021,Private Rented Sector Leasing Scheme,Accommodation Costs - Leaseholder Payments,588.38,BRAMBLE LETTINGS
Revenue,Adult Services,Housing Services,Homelessness,5105688436,22.10.2021,Private Rented Sector Leasing Scheme,Accommodation Costs - Leaseholder Payments,588.38,BRAMBLE LETTINGS
Revenue,Adult Services,Housing Services,Homelessness,5105688436,22.10.2021,Private Rented Sector Leasing Scheme,Accommodation Costs - Leaseholder Payments,588.38,BRAMBLE LETTINGS
Revenue,Adult Services,Housing Services,Homelessness,5105688436,22.10.2021,Private Rented Sector Leasing Scheme,Accommodation Costs - Leaseholder Payments,746.81,BRAMBLE LETTINGS
Revenue,Adult Services,Housing Services,Homelessness,5105688436,22.10.2021,Private Rented Sector Leasing Scheme,Accommodation Costs - Leaseholder Payments,588.38,BRAMBLE LETTINGS
Revenue,Adult Services,Housing Services,Homelessness,5105688436,22.10.2021,Private Rented Sector Leasing Scheme,Accommodation Costs - Leaseholder Payments,746.81,BRAMBLE LETTINGS
Revenue,Adult Services,Housing Services,Homelessness,5105688436,22.10.2021,Private Rented Sector Leasing Scheme,Accommodation Costs - Leaseholder Payments,769.43,BRAMBLE LETTINGS
Revenue,Adult Services,Housing Services,Homelessness,5105688436,22.10.2021,Private Rented Sector Leasing Scheme,Accommodation Costs - Leaseholder Payments,746.81,BRAMBLE LETTINGS
Revenue,Adult Services,Housing Services,Homelessness,5105688436,22.10.2021,Private Rented Sector Leasing Scheme,Accommodation Costs - Leaseholder Payments,746.81,BRAMBLE LETTINGS
Revenue,Adult Services,Housing Services,Homelessness,5105688436,22.10.2021,Private Rented Sector Leasing Scheme,Accommodation Costs - Leaseholder Payments,746.81,BRAMBLE LETTINGS
Revenue,Adult Services,Housing Services,Homelessness,5105688436,22.10.2021,Private Rented Sector Leasing Scheme,Accommodation Costs - Leaseholder Payments,746.81,BRAMBLE LETTINGS
Revenue,Adult Services,Housing Services,Homelessness,5105688436,22.10.2021,Private Rented Sector Leasing Scheme,Accommodation Costs - Leaseholder Payments,746.81,BRAMBLE LETTINGS
Revenue,Adult Services,Housing Services,Homelessness,5105688436,22.10.2021,Private Rented Sector Leasing Scheme,Accommodation Costs - Leaseholder Payments,746.81,BRAMBLE LETTINGS
Revenue,Adult Services,Housing Services,Homelessness,5105688436,22.10.2021,Private Rented Sector Leasing Scheme,Accommodation Costs - Leaseholder Payments,746.81,BRAMBLE LETTINGS
Revenue,Adult Services,Housing Services,Homelessness,5105688436,22.10.2021,Private Rented Sector Leasing Scheme,Accommodation Costs - Leaseholder Payments,746.81,BRAMBLE LETTINGS
Revenue,Adult Services,Housing Services,Homelessness,5105688436,22.10.2021,Private Rented Sector Leasing Scheme,Accommodation Costs - Leaseholder Payments,281.66,BRAMBLE LETTINGS
Revenue,Adult Services,Housing Services,Homelessness,5105688436,22.10.2021,Private Rented Sector Leasing Scheme,Accommodation Costs - Leaseholder Payments,216.66,BRAMBLE LETTINGS
Revenue,Neighbourhoods,Cultural and Related Services,Open Spaces,5105688112,20.10.2021,Allotments,Payment to Private Contractors,420.00,BRIGHSTONE LANDSCAPING LTD
Capital,Place,Capital,Capital,5105688078,20.10.2021,Parks and Gardens Capital,Payment to Contractors - Capital,"4,264.00",BRIGHSTONE LANDSCAPING LTD
Capital,Place,Capital,Capital,5105688079,20.10.2021,Parks and Gardens Capital,Payment to Contractors - Capital,"9,840.00",BRIGHSTONE LANDSCAPING LTD
Capital,Place,Capital,Capital,5105688080,20.10.2021,Parks and Gardens Capital,Payment to Contractors - Capital,"2,220.00",BRIGHSTONE LANDSCAPING LTD
Revenue,Neighbourhoods,Cultural and Related Services,Open Spaces,5105688113,20.10.2021,John O�Conner Grounds Maintenance Contract,Payment to Private Contractors,85.00,BRIGHSTONE LANDSCAPING LTD
Revenue,Neighbourhoods,Cultural and Related Services,Recreation and Sport,5105688082,20.10.2021,Slipways & Steps (Beaches),Payment to Private Contractors,45.00,BRIGHSTONE LANDSCAPING LTD
Revenue,Regeneration,Central Services,Central Services to the Public,5105687898,20.10.2021,Welcome Back Fund,Payment to Private Contractors,"2,220.00",BRIGHSTONE LANDSCAPING LTD
Revenue,Regeneration,Central Services,Central Services to the Public,5105687900,20.10.2021,Welcome Back Fund,Payment to Private Contractors,"3,024.00",BRIGHSTONE LANDSCAPING LTD
Revenue,Neighbourhoods,Cultural and Related Services,Recreation and Sport,5105688361,22.10.2021,Beach Safety & Inspection / Beach Awards,Payment to Private Contractors,"2,660.00",BRIGHSTONE LANDSCAPING LTD
Revenue,Neighbourhoods,Environmental & Regulatory Services,(Street) Cleansing (not highways),5105688361,22.10.2021,Beach Cleaning,Payment to Private Contractors,85.00,BRIGHSTONE LANDSCAPING LTD
Revenue,Neighbourhoods,Environmental & Regulatory Services,(Street) Cleansing (not highways),5105688115,20.10.2021,Beach Cleaning,Payment to Private Contractors,80.00,BRIGHSTONE LANDSCAPING LTD
Revenue,Neighbourhoods,Environmental & Regulatory Services,(Street) Cleansing (not highways),5105687896,20.10.2021,Beach Cleaning,Beach Management Contract,"15,390.20",BRIGHSTONE LANDSCAPING LTD
Revenue,Neighbourhoods,Highways and Transport Services,"Airports, Harbours & Toll Facilities",5105688114,20.10.2021,Newport Harbour Account,Payment to Private Contractors,175.00,BRIGHSTONE LANDSCAPING LTD
Revenue,Resources,Central Services,Support Services,5105689148,29.10.2021,Staff Benefits,Payment to Private Contractors,15.00,KCT CHILDCARE LIMITED
Revenue,Neighbourhoods,Cultural and Related Services,Culture and Heritage,5105687353,13.10.2021,Dinosaur Isle Museum (Sandown Geology),Stock Purchases,702.05,BRITISH FOSSILS/GIFTSTONES LIMITED
Revenue,Adult Services,Adult Social Care,Learning Disability Suppt-adults (18-64),5105688579,27.10.2021,Learning Disability Residential 18-64,Charges from Independent Providers,"7,192.92",BROADHAM CARE LTD
Revenue,Childrens Services,Children's & Education Services,Children Looked After,5105689025,29.10.2021,In-house Fostering,Boarding Out Allowances,337.35,REDACTED PERSONAL DATA
Revenue,Childrens Services,Children's & Education Services,Children Looked After,5105687771,15.10.2021,In-house Fostering,Boarding Out Allowances,337.35,REDACTED PERSONAL DATA
Revenue,Childrens Services,Children's & Education Services,Children Looked After,5105688327,22.10.2021,In-house Fostering,Boarding Out Allowances,337.35,REDACTED PERSONAL DATA
Revenue,Childrens Services,Children's & Education Services,Children Looked After,5105687050,08.10.2021,In-house Fostering,Boarding Out Allowances,337.35,REDACTED PERSONAL DATA
Revenue,Adult Services,Adult Social Care,Social Support -Substance Misuse Support,5105688622,27.10.2021,Substance Misuse Residential,Charges from Independent Providers,"2,151.52",BUCKLAND CARE LTD
Revenue,Adult Services,Adult Social Care,Mental Health Support-older people (65+),5105688622,27.10.2021,Mental Health Residential 65+,Charges from Independent Providers,"2,151.52",BUCKLAND CARE LTD
Revenue,Adult Services,Adult Social Care,Support - Memory /Cognition-older people (65+),5105688622,27.10.2021,Memory & Cognition Residential 65+,Charges from Independent Providers,"2,151.52",BUCKLAND CARE LTD
Revenue,Adult Services,Adult Social Care,Support - Memory /Cognition-older people (65+),5105688622,27.10.2021,Memory & Cognition Residential 65+,Charges from Independent Providers,"2,529.52",BUCKLAND CARE LTD
Revenue,Adult Services,Adult Social Care,Support - Memory /Cognition-older people (65+),5105688622,27.10.2021,Memory & Cognition Residential 65+,Charges from Independent Providers,"2,151.52",BUCKLAND CARE LTD
Revenue,Adult Services,Adult Social Care,Support - Memory /Cognition-older people (65+),5105688622,27.10.2021,Memory & Cognition Residential 65+,Charges from Independent Providers,"2,151.52",BUCKLAND CARE LTD
Revenue,Adult Services,Adult Social Care,Support - Memory /Cognition-older people (65+),5105688622,27.10.2021,Memory & Cognition Residential 65+,Charges from Independent Providers,"2,151.52",BUCKLAND CARE LTD
Revenue,Adult Services,Adult Social Care,Support - Memory /Cognition-older people (65+),5105688622,27.10.2021,Memory & Cognition Residential 65+,Charges from Independent Providers,"2,529.52",BUCKLAND CARE LTD
Revenue,Adult Services,Adult Social Care,Support - Memory /Cognition-older people (65+),5105688622,27.10.2021,Memory & Cognition Residential 65+,Charges from Independent Providers,"2,529.52",BUCKLAND CARE LTD
Revenue,Adult Services,Adult Social Care,Support - Memory /Cognition-older people (65+),5105687877,20.10.2021,Memory & Cognition Residential 65+,Charges from Independent Providers,"2,889.00",BUCKLAND CARE LTD
Revenue,Adult Services,Central Services,Emergency Planning,5105686677,01.10.2021,NHS C19 Residential,Charges from Independent Providers,"6,440.00",BUCKLAND CARE LTD
Revenue,Adult Services,Balance Sheet,Balance Sheet,5105688622,27.10.2021,REDACTED PERSONAL DATA,Order Settlement to Bal Sht GL,"2,151.52",BUCKLAND CARE LTD
Revenue,Adult Services,Adult Social Care,Learning Disability Support-older people,5105688622,27.10.2021,Learning Disability Residential 65+,Charges from Independent Providers,"2,529.52",BUCKLAND CARE LTD
Revenue,Adult Services,Adult Social Care,Mental Health Support - adults (18-64),5105686725,06.10.2021,Mental Health Residential 18-64,Charges from Independent Providers,733.80,BUCKLAND CARE LTD
Revenue,Adult Services,Adult Social Care,Social Support - Support for Carer,5105688622,27.10.2021,Carers Residential,Charges from Independent Providers,"2,529.52",BUCKLAND CARE LTD
Revenue,Adult Services,Adult Social Care,Physical Support - older people (65+),5105686725,06.10.2021,Physical Support Residential 65+,Charges from Independent Providers,660.42,BUCKLAND CARE LTD
Revenue,Adult Services,Adult Social Care,Physical Support - older people (65+),5105686717,06.10.2021,Physical Support Residential 65+,Charges from Independent Providers,"5,059.04",BUCKLAND CARE LTD
Revenue,Adult Services,Adult Social Care,Physical Support - older people (65+),5105688622,27.10.2021,Physical Support Residential 65+,Charges from Independent Providers,"2,529.52",BUCKLAND CARE LTD
Revenue,Adult Services,Adult Social Care,Physical Support - older people (65+),5105688622,27.10.2021,Physical Support Residential 65+,Charges from Independent Providers,"2,529.52",BUCKLAND CARE LTD
Revenue,Adult Services,Adult Social Care,Physical Support - older people (65+),5105688622,27.10.2021,Physical Support Residential 65+,Charges from Independent Providers,"2,054.64",BUCKLAND CARE LTD
Revenue,Adult Services,Adult Social Care,Physical Support - older people (65+),5105688622,27.10.2021,Physical Support Residential 65+,Charges from Independent Providers,"2,054.64",BUCKLAND CARE LTD
Revenue,Adult Services,Adult Social Care,Physical Support - older people (65+),5105688622,27.10.2021,Physical Support Residential 65+,Charges from Independent Providers,"2,054.64",BUCKLAND CARE LTD
Revenue,Adult Services,Adult Social Care,Physical Support - older people (65+),5105688622,27.10.2021,Physical Support Residential 65+,Charges from Independent Providers,"2,054.64",BUCKLAND CARE LTD
Revenue,Adult Services,Adult Social Care,Physical Support - older people (65+),5105688622,27.10.2021,Physical Support Residential 65+,Charges from Independent Providers,"2,151.52",BUCKLAND CARE LTD
Revenue,Adult Services,Adult Social Care,Physical Support - older people (65+),5105688622,27.10.2021,Physical Support Residential 65+,Charges from Independent Providers,"2,529.52",BUCKLAND CARE LTD
Revenue,Adult Services,Adult Social Care,Physical Support - older people (65+),5105688622,27.10.2021,Physical Support Residential 65+,Charges from Independent Providers,"2,529.52",BUCKLAND CARE LTD
Revenue,Adult Services,Adult Social Care,Physical Support - older people (65+),5105688622,27.10.2021,Physical Support Residential 65+,Charges from Independent Providers,"2,529.52",BUCKLAND CARE LTD
Revenue,Adult Services,Adult Social Care,Physical Support - older people (65+),5105688622,27.10.2021,Physical Support Residential 65+,Charges from Independent Providers,"2,529.52",BUCKLAND CARE LTD
Revenue,Adult Services,Adult Social Care,Physical Support - older people (65+),5105688622,27.10.2021,Physical Support Residential 65+,Charges from Independent Providers,"2,054.64",BUCKLAND CARE LTD
Revenue,Adult Services,Adult Social Care,Social Support - Social Isolation/Other,5105686863,06.10.2021,Social Isolation/Other Nursing,Charges from Independent Providers,"9,416.25",BUCKLAND CARE LTD
Revenue,Adult Services,Adult Social Care,Social Support - Social Isolation/Other,5105688612,27.10.2021,Social Isolation/Other Nursing,Charges from Independent Providers,506.25,BUCKLAND CARE LTD
Revenue,Adult Services,Central Services,Emergency Planning,5105686895,08.10.2021,NHS C19 Nursing,Charges from Independent Providers,"4,580.24",BUCKLAND CARE LTD
Revenue,Adult Services,Adult Social Care,Commissioning & Service Delivery,5105688612,27.10.2021,"Funded Nursing Care, Registered Nursing Care Contribution",Charges from Independent Providers,750.40,BUCKLAND CARE LTD
Revenue,Adult Services,Adult Social Care,Commissioning & Service Delivery,5105688612,27.10.2021,"Funded Nursing Care, Registered Nursing Care Contribution",Charges from Independent Providers,750.40,BUCKLAND CARE LTD
Revenue,Adult Services,Adult Social Care,Commissioning & Service Delivery,5105688612,27.10.2021,"Funded Nursing Care, Registered Nursing Care Contribution",Charges from Independent Providers,750.40,BUCKLAND CARE LTD
Revenue,Adult Services,Adult Social Care,Commissioning & Service Delivery,5105688612,27.10.2021,"Funded Nursing Care, Registered Nursing Care Contribution",Charges from Independent Providers,750.40,BUCKLAND CARE LTD
Revenue,Adult Services,Adult Social Care,Commissioning & Service Delivery,5105688612,27.10.2021,"Funded Nursing Care, Registered Nursing Care Contribution",Charges from Independent Providers,750.40,BUCKLAND CARE LTD
Revenue,Adult Services,Adult Social Care,Support - Memory /Cognition-older people (65+),5105688612,27.10.2021,Memory & Cognition Residential 65+,Charges from Independent Providers,"2,529.52",BUCKLAND CARE LTD
Revenue,Adult Services,Adult Social Care,Learning Disability Suppt-adults (18-64),5105688612,27.10.2021,Learning Disability Nursing 18-64,Charges from Independent Providers,"5,712.00",BUCKLAND CARE LTD
Revenue,Adult Services,Adult Social Care,Learning Disability Suppt-adults (18-64),5105688612,27.10.2021,Learning Disability Nursing 18-64,Charges from Independent Providers,"2,835.00",BUCKLAND CARE LTD
Revenue,Adult Services,Adult Social Care,Commissioning & Service Delivery,5105686863,06.10.2021,FNC IWC funded clients,Charges from Independent Providers,"2,036.80",BUCKLAND CARE LTD
Revenue,Adult Services,Adult Social Care,Commissioning & Service Delivery,5105686863,06.10.2021,FNC IWC funded clients,Charges from Independent Providers,"1,072.00",BUCKLAND CARE LTD
Revenue,Adult Services,Adult Social Care,Commissioning & Service Delivery,5105686863,06.10.2021,FNC IWC funded clients,Charges from Independent Providers,"2,492.40",BUCKLAND CARE LTD
Revenue,Adult Services,Adult Social Care,Commissioning & Service Delivery,5105688612,27.10.2021,FNC IWC funded clients,Charges from Independent Providers,750.40,BUCKLAND CARE LTD
Revenue,Adult Services,Adult Social Care,Commissioning & Service Delivery,5105688612,27.10.2021,FNC IWC funded clients,Charges from Independent Providers,750.40,BUCKLAND CARE LTD
Revenue,Adult Services,Adult Social Care,Commissioning & Service Delivery,5105688612,27.10.2021,FNC IWC funded clients,Charges from Independent Providers,750.40,BUCKLAND CARE LTD
Revenue,Adult Services,Adult Social Care,Commissioning & Service Delivery,5105688612,27.10.2021,FNC IWC funded clients,Charges from Independent Providers,750.40,BUCKLAND CARE LTD
Revenue,Adult Services,Adult Social Care,Commissioning & Service Delivery,5105688612,27.10.2021,FNC IWC funded clients,Charges from Independent Providers,750.40,BUCKLAND CARE LTD
Revenue,Adult Services,Adult Social Care,Commissioning & Service Delivery,5105688612,27.10.2021,FNC IWC funded clients,Charges from Independent Providers,750.40,BUCKLAND CARE LTD
Revenue,Adult Services,Adult Social Care,Commissioning & Service Delivery,5105688612,27.10.2021,FNC IWC funded clients,Charges from Independent Providers,750.40,BUCKLAND CARE LTD
Revenue,Adult Services,Adult Social Care,Commissioning & Service Delivery,5105688612,27.10.2021,FNC IWC funded clients,Charges from Independent Providers,750.40,BUCKLAND CARE LTD
Revenue,Adult Services,Adult Social Care,Commissioning & Service Delivery,5105688612,27.10.2021,FNC IWC funded clients,Charges from Independent Providers,750.40,BUCKLAND CARE LTD
Revenue,Adult Services,Adult Social Care,Commissioning & Service Delivery,5105688612,27.10.2021,FNC IWC funded clients,Charges from Independent Providers,750.40,BUCKLAND CARE LTD
Revenue,Adult Services,Adult Social Care,Commissioning & Service Delivery,5105688612,27.10.2021,FNC IWC funded clients,Charges from Independent Providers,750.40,BUCKLAND CARE LTD
Revenue,Adult Services,Adult Social Care,Commissioning & Service Delivery,5105688612,27.10.2021,FNC IWC funded clients,Charges from Independent Providers,750.40,BUCKLAND CARE LTD
Revenue,Adult Services,Adult Social Care,Commissioning & Service Delivery,5105688612,27.10.2021,FNC IWC funded clients,Regular Respite Care,750.40,BUCKLAND CARE LTD
Revenue,Adult Services,Adult Social Care,Physical Support - older people (65+),5105686863,06.10.2021,Physical Support Nursing 65+,Charges from Independent Providers,"7,695.00",BUCKLAND CARE LTD
Revenue,Adult Services,Adult Social Care,Physical Support - older people (65+),5105688612,27.10.2021,Physical Support Nursing 65+,Charges from Independent Providers,"2,835.00",BUCKLAND CARE LTD
Revenue,Adult Services,Adult Social Care,Physical Support - older people (65+),5105688612,27.10.2021,Physical Support Nursing 65+,Charges from Independent Providers,"2,835.00",BUCKLAND CARE LTD
Revenue,Adult Services,Adult Social Care,Physical Support - older people (65+),5105688612,27.10.2021,Physical Support Nursing 65+,Charges from Independent Providers,"2,835.00",BUCKLAND CARE LTD
Revenue,Adult Services,Adult Social Care,Physical Support - older people (65+),5105688612,27.10.2021,Physical Support Nursing 65+,Charges from Independent Providers,"2,835.00",BUCKLAND CARE LTD
Revenue,Adult Services,Adult Social Care,Physical Support - older people (65+),5105688612,27.10.2021,Physical Support Nursing 65+,Charges from Independent Providers,"2,835.00",BUCKLAND CARE LTD
Revenue,Adult Services,Adult Social Care,Physical Support - older people (65+),5105688612,27.10.2021,Physical Support Nursing 65+,Charges from Independent Providers,"2,835.00",BUCKLAND CARE LTD
Revenue,Adult Services,Adult Social Care,Physical Support - older people (65+),5105688612,27.10.2021,Physical Support Nursing 65+,Charges from Independent Providers,"2,835.00",BUCKLAND CARE LTD
Revenue,Adult Services,Adult Social Care,Physical Support - older people (65+),5105688612,27.10.2021,Physical Support Nursing 65+,Charges from Independent Providers,"2,835.00",BUCKLAND CARE LTD
Revenue,Adult Services,Adult Social Care,Physical Support - adults (18-64),5105688612,27.10.2021,Physical Support Nursing 18-64,Charges from Independent Providers,"2,835.00",BUCKLAND CARE LTD
Revenue,Adult Services,Adult Social Care,Commissioning & Service Delivery,5105688612,27.10.2021,CHC Nursing Care,Charges from Independent Providers,"3,585.40",BUCKLAND CARE LTD
Revenue,Adult Services,Adult Social Care,Commissioning & Service Delivery,5105688612,27.10.2021,CHC Nursing Care,Charges from Independent Providers,"11,424.00",BUCKLAND CARE LTD
Revenue,Adult Services,Adult Social Care,Commissioning & Service Delivery,5105688612,27.10.2021,CHC Nursing Care,Charges from Independent Providers,"3,585.40",BUCKLAND CARE LTD
Revenue,Adult Services,Adult Social Care,Commissioning & Service Delivery,5105688612,27.10.2021,CHC Nursing Care,Charges from Independent Providers,"3,585.40",BUCKLAND CARE LTD
Revenue,Adult Services,Adult Social Care,Commissioning & Service Delivery,5105688612,27.10.2021,CHC Nursing Care,Charges from Independent Providers,"14,985.60",BUCKLAND CARE LTD
Revenue,Adult Services,Adult Social Care,Commissioning & Service Delivery,5105688612,27.10.2021,CHC Nursing Care,Charges from Independent Providers,"3,585.40",BUCKLAND CARE LTD
Revenue,Adult Services,Adult Social Care,Commissioning & Service Delivery,5105688612,27.10.2021,CHC Nursing Care,Charges from Independent Providers,"3,585.40",BUCKLAND CARE LTD
Revenue,Adult Services,Adult Social Care,Commissioning & Service Delivery,5105688612,27.10.2021,CHC Nursing Care,Charges from Independent Providers,"3,585.40",BUCKLAND CARE LTD
Revenue,Adult Services,Adult Social Care,Commissioning & Service Delivery,5105688612,27.10.2021,CHC Nursing Care,Charges from Independent Providers,"13,224.96",BUCKLAND CARE LTD
Revenue,Adult Services,Adult Social Care,Commissioning & Service Delivery,5105688612,27.10.2021,CHC Nursing Care,Charges from Independent Providers,"3,585.40",BUCKLAND CARE LTD
Revenue,Adult Services,Adult Social Care,Physical Support - older people (65+),5105688612,27.10.2021,Physical Support Residential 65+,Charges from Independent Providers,"2,529.52",BUCKLAND CARE LTD
Revenue,Adult Services,Adult Social Care,Support - Memory /Cognition-older people (65+),5105686863,06.10.2021,Memory & Cognition Nursing 65+,Charges from Independent Providers,"4,673.20",BUCKLAND CARE LTD
Revenue,Adult Services,Adult Social Care,Support - Memory /Cognition-older people (65+),5105688612,27.10.2021,Memory & Cognition Nursing 65+,Charges from Independent Providers,"2,835.00",BUCKLAND CARE LTD
Revenue,Adult Services,Adult Social Care,Support - Memory /Cognition-older people (65+),5105688612,27.10.2021,Memory & Cognition Nursing 65+,Charges from Independent Providers,"3,271.24",BUCKLAND CARE LTD
Revenue,Adult Services,Adult Social Care,Support - Memory /Cognition-older people (65+),5105688612,27.10.2021,Memory & Cognition Nursing 65+,Regular Respite Care,"2,835.00",BUCKLAND CARE LTD
Revenue,Regeneration,Planning services,Environmental Initiatives,5105687907,20.10.2021,IOW Catchment Partnership,Payment to Private Contractors,697.50,BUN SYMES CONTRACTING
Revenue,Adult Services,Adult Social Care,Physical Support - older people (65+),5105688634,27.10.2021,Physical Support Nursing 65+,Charges from Independent Providers,"3,953.88",BUPA CARE HOME (BNH) LTD
Capital,Place,Capital,Capital,5105688131,20.10.2021,Parks and Gardens Capital,External Design and Supervision Fees,"1,250.00",BUREAU VERITAS BUILDING CONTROL UK
Capital,Place,Capital,Capital,5105688129,20.10.2021,Parks and Gardens Capital,External Design and Supervision Fees,"-1,250.00",BUREAU VERITAS BUILDING CONTROL UK
Capital,Place,Capital,Capital,5105688130,20.10.2021,Parks and Gardens Capital,External Design and Supervision Fees,"1,250.00",BUREAU VERITAS BUILDING CONTROL UK
Revenue,Childrens Services,Children's & Education Services,Children Looked After,5105689038,29.10.2021,Leaving Care Costs,Support Children,19.99,REDACTED PERSONAL DATA
Revenue,Childrens Services,Children's & Education Services,Children Looked After,5105688901,29.10.2021,Special Guardianship Order Costs,Support Children,161.49,REDACTED PERSONAL DATA
Revenue,Childrens Services,Children's & Education Services,Children Looked After,5105688200,22.10.2021,Special Guardianship Order Costs,Support Children,161.49,REDACTED PERSONAL DATA
Revenue,Childrens Services,Children's & Education Services,Children Looked After,5105686927,08.10.2021,Special Guardianship Order Costs,Support Children,161.49,REDACTED PERSONAL DATA
Revenue,Childrens Services,Children's & Education Services,Children Looked After,5105687646,15.10.2021,Special Guardianship Order Costs,Support Children,161.49,REDACTED PERSONAL DATA
Revenue,Neighbourhoods,Cultural and Related Services,Open Spaces,5105688406,22.10.2021,Fort Victoria,Operational Equipment,9.79,C BREWER & SONS LTD
Revenue,Neighbourhoods,Cultural and Related Services,Open Spaces,5105688407,22.10.2021,Fort Victoria,Operational Equipment,94.81,C BREWER & SONS LTD
Revenue,Childrens Services,Children's & Education Services,Children Looked After,5105688925,29.10.2021,Children placed with Family&Friends,Boarding Out Allowances,247.89,REDACTED PERSONAL DATA
Revenue,Childrens Services,Children's & Education Services,Children Looked After,5105686951,08.10.2021,Children placed with Family&Friends,Boarding Out Allowances,247.89,REDACTED PERSONAL DATA
Revenue,Childrens Services,Children's & Education Services,Children Looked After,5105688224,22.10.2021,Children placed with Family&Friends,Boarding Out Allowances,247.89,REDACTED PERSONAL DATA
Revenue,Childrens Services,Children's & Education Services,Children Looked After,5105687670,15.10.2021,Children placed with Family&Friends,Boarding Out Allowances,247.89,REDACTED PERSONAL DATA
Revenue,Childrens Services,Children's & Education Services,Children Looked After,5105686945,08.10.2021,Adoption Costs,Support Children,200.83,REDACTED PERSONAL DATA
Revenue,Childrens Services,Children's & Education Services,Children Looked After,5105686945,08.10.2021,Adoption Costs,Support Children,168.09,REDACTED PERSONAL DATA
Revenue,Childrens Services,Children's & Education Services,Children Looked After,5105687664,15.10.2021,Adoption Costs,Support Children,200.83,REDACTED PERSONAL DATA
Revenue,Childrens Services,Children's & Education Services,Children Looked After,5105687664,15.10.2021,Adoption Costs,Support Children,168.09,REDACTED PERSONAL DATA
Revenue,Childrens Services,Children's & Education Services,Children Looked After,5105688218,22.10.2021,Adoption Costs,Support Children,200.83,REDACTED PERSONAL DATA
Revenue,Childrens Services,Children's & Education Services,Children Looked After,5105688218,22.10.2021,Adoption Costs,Support Children,168.09,REDACTED PERSONAL DATA
Revenue,Childrens Services,Children's & Education Services,Children Looked After,5105688919,29.10.2021,Adoption Costs,Support Children,200.83,REDACTED PERSONAL DATA
Revenue,Childrens Services,Children's & Education Services,Children Looked After,5105688919,29.10.2021,Adoption Costs,Support Children,168.09,REDACTED PERSONAL DATA
Revenue,Childrens Services,Children's & Education Services,Children Looked After,5105688908,29.10.2021,Special Guardianship Order Costs,Support Children,31.36,REDACTED PERSONAL DATA
Revenue,Childrens Services,Children's & Education Services,Children Looked After,5105688207,22.10.2021,Special Guardianship Order Costs,Support Children,31.36,REDACTED PERSONAL DATA
Revenue,Childrens Services,Children's & Education Services,Children Looked After,5105686934,08.10.2021,Special Guardianship Order Costs,Support Children,40.56,REDACTED PERSONAL DATA
Revenue,Childrens Services,Children's & Education Services,Children Looked After,5105687653,15.10.2021,Special Guardianship Order Costs,Support Children,40.56,REDACTED PERSONAL DATA
Revenue,Childrens Services,Children's & Education Services,Children Looked After,5105688923,29.10.2021,In-house Fostering,Boarding Out Allowances,337.35,REDACTED PERSONAL DATA
Revenue,Childrens Services,Children's & Education Services,Children Looked After,5105688923,29.10.2021,In-house Fostering,Boarding Out Allowances,247.89,REDACTED PERSONAL DATA
Revenue,Childrens Services,Children's & Education Services,Children Looked After,5105688923,29.10.2021,In-house Fostering,Boarding Out Allowances,247.89,REDACTED PERSONAL DATA
Revenue,Childrens Services,Children's & Education Services,Children Looked After,5105687668,15.10.2021,In-house Fostering,Boarding Out Allowances,337.35,REDACTED PERSONAL DATA
Revenue,Childrens Services,Children's & Education Services,Children Looked After,5105687668,15.10.2021,In-house Fostering,Boarding Out Allowances,247.89,REDACTED PERSONAL DATA
Revenue,Childrens Services,Children's & Education Services,Children Looked After,5105687668,15.10.2021,In-house Fostering,Boarding Out Allowances,247.89,REDACTED PERSONAL DATA
Revenue,Childrens Services,Children's & Education Services,Children Looked After,5105688222,22.10.2021,In-house Fostering,Boarding Out Allowances,337.35,REDACTED PERSONAL DATA
Revenue,Childrens Services,Children's & Education Services,Children Looked After,5105688222,22.10.2021,In-house Fostering,Boarding Out Allowances,247.89,REDACTED PERSONAL DATA
Revenue,Childrens Services,Children's & Education Services,Children Looked After,5105688222,22.10.2021,In-house Fostering,Boarding Out Allowances,247.89,REDACTED PERSONAL DATA
Revenue,Childrens Services,Children's & Education Services,Children Looked After,5105686949,08.10.2021,In-house Fostering,Boarding Out Allowances,337.35,REDACTED PERSONAL DATA
Revenue,Childrens Services,Children's & Education Services,Children Looked After,5105686949,08.10.2021,In-house Fostering,Boarding Out Allowances,247.89,REDACTED PERSONAL DATA
Revenue,Childrens Services,Children's & Education Services,Children Looked After,5105686949,08.10.2021,In-house Fostering,Boarding Out Allowances,247.89,REDACTED PERSONAL DATA
Revenue,Childrens Services,Children's & Education Services,Children Looked After,5105688234,22.10.2021,Special Guardianship Order Costs,Support Children,213.30,REDACTED PERSONAL DATA
Revenue,Childrens Services,Children's & Education Services,Children Looked After,5105687163,08.10.2021,Special Guardianship Order Costs,Support Children,175.78,REDACTED PERSONAL DATA
Revenue,Childrens Services,Children's & Education Services,Children Looked After,5105687680,15.10.2021,Special Guardianship Order Costs,Support Children,213.30,REDACTED PERSONAL DATA
Revenue,Childrens Services,Children's & Education Services,Children Looked After,5105688935,29.10.2021,Special Guardianship Order Costs,Support Children,213.30,REDACTED PERSONAL DATA
Revenue,Childrens Services,Children's & Education Services,Children Looked After,5105686915,08.10.2021,In-house Fostering,Boarding Out Allowances,50.00,REDACTED PERSONAL DATA
Revenue,Childrens Services,Children's & Education Services,Children Looked After,5105686915,08.10.2021,In-house Fostering,Boarding Out Allowances,16.50,REDACTED PERSONAL DATA
Revenue,Childrens Services,Children's & Education Services,Children Looked After,5105688895,29.10.2021,In-house Fostering,Boarding Out Allowances,290.48,REDACTED PERSONAL DATA
Revenue,Childrens Services,Children's & Education Services,Children Looked After,5105688895,29.10.2021,In-house Fostering,Boarding Out Allowances,337.35,REDACTED PERSONAL DATA
Revenue,Childrens Services,Children's & Education Services,Children Looked After,5105687640,15.10.2021,In-house Fostering,Boarding Out Allowances,290.48,REDACTED PERSONAL DATA
Revenue,Childrens Services,Children's & Education Services,Children Looked After,5105687640,15.10.2021,In-house Fostering,Boarding Out Allowances,337.35,REDACTED PERSONAL DATA
Revenue,Childrens Services,Children's & Education Services,Children Looked After,5105688194,22.10.2021,In-house Fostering,Boarding Out Allowances,290.48,REDACTED PERSONAL DATA
Revenue,Childrens Services,Children's & Education Services,Children Looked After,5105688194,22.10.2021,In-house Fostering,Boarding Out Allowances,337.35,REDACTED PERSONAL DATA
Revenue,Childrens Services,Children's & Education Services,Children Looked After,5105686921,08.10.2021,In-house Fostering,Boarding Out Allowances,290.48,REDACTED PERSONAL DATA
Revenue,Childrens Services,Children's & Education Services,Children Looked After,5105686921,08.10.2021,In-house Fostering,Boarding Out Allowances,290.48,REDACTED PERSONAL DATA
Revenue,Childrens Services,Children's & Education Services,Children Looked After,5105688886,29.10.2021,In-house Fostering,Boarding Out Allowances,320.85,REDACTED PERSONAL DATA
Revenue,Childrens Services,Children's & Education Services,Children Looked After,5105687631,15.10.2021,In-house Fostering,Boarding Out Allowances,320.85,REDACTED PERSONAL DATA
Revenue,Childrens Services,Children's & Education Services,Children Looked After,5105688185,22.10.2021,In-house Fostering,Boarding Out Allowances,320.85,REDACTED PERSONAL DATA
Revenue,Childrens Services,Children's & Education Services,Children Looked After,5105686911,08.10.2021,In-house Fostering,Boarding Out Allowances,320.85,REDACTED PERSONAL DATA
Revenue,Childrens Services,Children's & Education Services,Children Looked After,5105688213,22.10.2021,Special Guardianship Order Costs,Support Children,200.83,REDACTED PERSONAL DATA
Revenue,Childrens Services,Children's & Education Services,Children Looked After,5105688914,29.10.2021,Special Guardianship Order Costs,Support Children,200.83,REDACTED PERSONAL DATA
Revenue,Childrens Services,Children's & Education Services,Children Looked After,5105686940,08.10.2021,Special Guardianship Order Costs,Support Children,200.83,REDACTED PERSONAL DATA
Revenue,Childrens Services,Children's & Education Services,Children Looked After,5105687659,15.10.2021,Special Guardianship Order Costs,Support Children,200.83,REDACTED PERSONAL DATA
Revenue,Childrens Services,Children's & Education Services,Children Looked After,5105688198,22.10.2021,Adoption Costs,Support Children,207.13,REDACTED PERSONAL DATA
Revenue,Childrens Services,Children's & Education Services,Children Looked After,5105686925,08.10.2021,Adoption Costs,Support Children,207.13,REDACTED PERSONAL DATA
Revenue,Childrens Services,Children's & Education Services,Children Looked After,5105687644,15.10.2021,Adoption Costs,Support Children,207.13,REDACTED PERSONAL DATA
Revenue,Childrens Services,Children's & Education Services,Children Looked After,5105688899,29.10.2021,Adoption Costs,Support Children,207.13,REDACTED PERSONAL DATA
Revenue,Childrens Services,Children's & Education Services,Other Education and Community Budget,5105687887,20.10.2021,Non-Delegated Building Maintenance,Professional Services,"4,950.00",CADDIS BUILDING CONSULTANCY LTD
Revenue,Neighbourhoods,Cultural and Related Services,Library Service,5105688458,27.10.2021,Ryde Library,Professional Subscriptions,150.00,CALIBRE AUDIO LIBRARY
Revenue,Adult Services,Adult Social Care,Learning Disability Suppt-adults (18-64),5105688485,22.10.2021,Learning Disability Residential 18-64,Charges from Independent Providers,"12,879.81",CAMBIAN ASPERGER SYNDROME SERVICES LTD
Revenue,Childrens Services,Children's & Education Services,Post-16 Provision,5105688485,22.10.2021,Post 16 Independ. & Non-Maint. Special Schls & Independ. Specialist Provision,Charges from Independent Providers,"6,676.54",CAMBIAN ASPERGER SYNDROME SERVICES LTD
Revenue,Childrens Services,Children's & Education Services,Children Looked After,5105686603,01.10.2021,Purchased Residential,Charges from Independent Providers,"19,500.00",CAMBIAN CHILDCARE LTD
Revenue,Childrens Services,Children's & Education Services,Children Looked After,5105686606,01.10.2021,Purchased Residential,Charges from Independent Providers,"19,928.70",CAMBIAN CHILDCARE LTD
Revenue,Childrens Services,Children's & Education Services,Children Looked After,5105686607,01.10.2021,Purchased Residential,Charges from Independent Providers,"24,214.20",CAMBIAN CHILDCARE LTD
Revenue,Childrens Services,Children's & Education Services,Children Looked After,5105687286,13.10.2021,Purchased Residential,Charges from Independent Providers,"20,150.00",CAMBIAN CHILDCARE LTD
Revenue,Childrens Services,Children's & Education Services,Children Looked After,5105687289,13.10.2021,Purchased Residential,Charges from Independent Providers,"17,492.99",CAMBIAN CHILDCARE LTD
Revenue,Childrens Services,Children's & Education Services,Children Looked After,5105687290,13.10.2021,Purchased Residential,Charges from Independent Providers,"20,592.99",CAMBIAN CHILDCARE LTD
Revenue,Childrens Services,Children's & Education Services,Children Looked After,5105687291,13.10.2021,Purchased Residential,Charges from Independent Providers,"18,600.00",CAMBIAN CHILDCARE LTD
Revenue,Childrens Services,Children's & Education Services,Management & Support Services,5105687288,13.10.2021,Independent Schools Non-Special Educational Needs,Charges from Independent Providers,"3,542.99",CAMBIAN CHILDCARE LTD
Revenue,Neighbourhoods,Highways and Transport Services,"Airports, Harbours & Toll Facilities",5105686728,06.10.2021,Ferry Operation,Payment to Private Contractors,29.90,CAMSECURE
Revenue,Neighbourhoods,Highways and Transport Services,"Airports, Harbours & Toll Facilities",5105687470,13.10.2021,Ferry Operation,Operational Equipment,15.00,CAPCOM LAND SEA & AIR COMMUN.LTD
Revenue,Neighbourhoods,Highways and Transport Services,"Airports, Harbours & Toll Facilities",5105687470,13.10.2021,Ferry Operation,Operational Equipment,"1,240.00",CAPCOM LAND SEA & AIR COMMUN.LTD
Revenue,Childrens Services,Children's & Education Services,Family Support Services,5105688575,27.10.2021,Short Breaks,Charges from Independent Providers,"1,532.32",CARE CONNECT IOW CIC
Revenue,Adult Services,Adult Social Care,Social Support - Support for Carer,5105688532,27.10.2021,Westminster House,Grounds Maintenance,45.00,CARE IN THE GARDEN
Revenue,Adult Services,Adult Social Care,Learning Disab Supp (to be reallocated),5105688532,27.10.2021,Plean Dene,Grounds Maintenance,630.00,CARE IN THE GARDEN
Revenue,Resources,Central Services,Support Services,5105688446,22.10.2021,Staff Benefits,Payment to Private Contractors,90.00,CARISBROOKE CEP SCHOOL
Revenue,Childrens Services,Children's & Education Services,Safeguarding Children/Young Peoples Svs,5105687070,08.10.2021,Childrens Assess & Safeguarding Team,Professional Services,"2,761.20",CARTER BROWN THE EXPERT SERVICE
Revenue,Adult Services,Adult Social Care,Central Codes (to be reallocated),5105687196,08.10.2021,Gouldings Resource Centre,Maintenance of Operational Equipment,771.98,CATER WIGHT
Revenue,Adult Services,Adult Social Care,Central Codes (to be reallocated),5105687384,13.10.2021,Adelaide Resource Centre,Property Services - Day to day Maintenance,99.00,CATER WIGHT
Revenue,Adult Services,Adult Social Care,Central Codes (to be reallocated),5105687195,08.10.2021,Adelaide Resource Centre,Operational Equipment,68.90,CATER WIGHT
Revenue,Resources,Central Services,Support Services,5105687806,22.10.2021,Specialist Cross-Council Training,Stationery,36.00,CENTSA
Revenue,Resources,Central Services,Support Services,5105687482,20.10.2021,Specialist Cross-Council Training,Stationery,36.00,CENTSA
Revenue,Resources,Central Services,Support Services,5105688455,22.10.2021,Specialist Cross-Council Training,Stationery,-36.00,CENTSA
Revenue,Resources,Central Services,Support Services,5105688456,22.10.2021,Specialist Cross-Council Training,Stationery,36.00,CENTSA
Revenue,Adult Services,Housing Services,Homelessness,5105687099,08.10.2021,B&B Properties,Accommodation Costs - Bed & Breakfast,120.00,CHANNEL VIEW HOTEL
Revenue,Adult Services,Housing Services,Homelessness,5105686825,06.10.2021,B&B Properties,Accommodation Costs - Bed & Breakfast,"1,800.00",CHANNEL VIEW HOTEL
Revenue,Adult Services,Adult Social Care,Central Codes (to be reallocated),5105686821,06.10.2021,Gouldings Resource Centre,Property Services - Day to day Maintenance,349.58,CHANT LOCK & SECURITY SERVICE
Capital,Childrens Services,Capital,Capital,5105686835,06.10.2021,Administration and Inspection Schemes,Payment to Contractors - Capital,683.75,CHANT LOCK & SECURITY SERVICE
Capital,Childrens Services,Capital,Capital,5105686835,06.10.2021,Administration and Inspection Schemes,Payment to Contractors - Capital,320.20,CHANT LOCK & SECURITY SERVICE
Revenue,Regeneration,Central Services,Support Services,5105687172,08.10.2021,"County Hall,Newport",Property Services - Day to day Maintenance,107.44,CHANT LOCK & SECURITY SERVICE
Revenue,Regeneration,Central Services,Support Services,5105687171,08.10.2021,"Jubilee Stores, Newport",Property Services - Day to day Maintenance,87.50,CHANT LOCK & SECURITY SERVICE
Revenue,Neighbourhoods,Highways and Transport Services,"Airports, Harbours & Toll Facilities",5105688774,27.10.2021,Newport Harbour Account,Payment to Private Contractors,9.50,CHANT LOCK & SECURITY SERVICE
Revenue,Neighbourhoods,Highways and Transport Services,"Airports, Harbours & Toll Facilities",5105688774,27.10.2021,Newport Harbour Account,Payment to Private Contractors,225.00,CHANT LOCK & SECURITY SERVICE
Revenue,Adult Services,Housing Services,Homelessness,5105686837,20.10.2021,Howard House,Payment to Private Contractors,"3,059.17",CHANT LOCK & SECURITY SERVICE
Revenue,Adult Services,Adult Social Care,Central Codes (to be reallocated),5105686784,06.10.2021,Gouldings Resource Centre,Catering Purchases,86.80,CHAPEL NURSERIES
Revenue,Adult Services,Adult Social Care,Learning Disab Supp (to be reallocated),5105689061,29.10.2021,Plean Dene,Catering Purchases,47.00,CHAPEL NURSERIES
Revenue,Adult Services,Adult Social Care,Learning Disab Supp (to be reallocated),5105689062,29.10.2021,Plean Dene,Catering Purchases,39.20,CHAPEL NURSERIES
Revenue,Adult Services,Adult Social Care,Learning Disab Supp (to be reallocated),5105686780,06.10.2021,Plean Dene,Catering Purchases,31.40,CHAPEL NURSERIES
Revenue,Adult Services,Adult Social Care,Learning Disab Supp (to be reallocated),5105686781,06.10.2021,Plean Dene,Catering Purchases,34.80,CHAPEL NURSERIES
Revenue,Adult Services,Adult Social Care,Learning Disab Supp (to be reallocated),5105686782,06.10.2021,Plean Dene,Catering Purchases,42.50,CHAPEL NURSERIES
Revenue,Adult Services,Adult Social Care,Learning Disab Supp (to be reallocated),5105686783,06.10.2021,Plean Dene,Catering Purchases,41.00,CHAPEL NURSERIES
Revenue,Adult Services,Adult Social Care,Learning Disab Supp (to be reallocated),5105688707,27.10.2021,Saxonbury,Catering Purchases,34.20,CHAPEL NURSERIES
Revenue,Adult Services,Adult Social Care,Learning Disab Supp (to be reallocated),5105688709,27.10.2021,Saxonbury,Catering Purchases,36.20,CHAPEL NURSERIES
Revenue,Adult Services,Adult Social Care,Learning Disab Supp (to be reallocated),5105688711,27.10.2021,Saxonbury,Catering Purchases,51.60,CHAPEL NURSERIES
Revenue,Adult Services,Adult Social Care,Learning Disab Supp (to be reallocated),5105688713,27.10.2021,Saxonbury,Catering Purchases,42.30,CHAPEL NURSERIES
Revenue,Resources,Central Services,Support Services,5105686239,13.10.2021,Specialist Cross-Council Training,Training,"1,624.00",CHARTERED TRADING STANDARDS
Revenue,Resources,Central Services,Support Services,5105686241,13.10.2021,Specialist Cross-Council Training,Training,"1,624.00",CHARTERED TRADING STANDARDS
Revenue,Resources,Central Services,Support Services,5105686240,13.10.2021,Specialist Cross-Council Training,Stationery,"2,565.00",CHARTERED TRADING STANDARDS
Revenue,Resources,Central Services,Support Services,5105686238,13.10.2021,Specialist Cross-Council Training,Training,"2,565.00",CHARTERED TRADING STANDARDS
Revenue,Resources,Central Services,Support Services,5105689139,29.10.2021,Staff Benefits,Payment to Private Contractors,124.00,CHATTERBOX NURSERY LTD
Revenue,Adult Services,Adult Social Care,Support - Memory /Cognition-older people (65+),5105688648,27.10.2021,Memory & Cognition Residential 65+,Charges from Independent Providers,"3,449.32",CHD CARE LTD
Revenue,Neighbourhoods,Highways and Transport Services,"Airports, Harbours & Toll Facilities",5105688830,27.10.2021,Ventnor Haven - General,Payment to Private Contractors,"7,285.00",CHEETAH MARINE LLP
Revenue,Childrens Services,Children's & Education Services,Children Looked After,5105687753,15.10.2021,Special Guardianship Order Costs,Support Children,223.42,REDACTED PERSONAL DATA
Revenue,Childrens Services,Children's & Education Services,Children Looked After,5105689006,29.10.2021,Special Guardianship Order Costs,Support Children,223.42,REDACTED PERSONAL DATA
Revenue,Childrens Services,Children's & Education Services,Children Looked After,5105687032,08.10.2021,Special Guardianship Order Costs,Support Children,223.42,REDACTED PERSONAL DATA
Revenue,Childrens Services,Children's & Education Services,Children Looked After,5105688308,22.10.2021,Special Guardianship Order Costs,Support Children,223.42,REDACTED PERSONAL DATA
Revenue,Adult Services,Adult Social Care,Support - Memory /Cognition-older people (65+),5105688588,27.10.2021,Memory & Cognition Residential 65+,Charges from Independent Providers,"2,529.52",CHERRY TREES I.W. LTD
Revenue,Adult Services,Adult Social Care,Support - Memory /Cognition-older people (65+),5105687614,15.10.2021,Memory & Cognition Residential 65+,Charges from Independent Providers,"5,330.06",CHERRY TREES I.W. LTD
Revenue,Adult Services,Central Services,Emergency Planning,5105687614,15.10.2021,NHS C19 Residential,Charges from Independent Providers,"1,735.80",CHERRY TREES I.W. LTD
Revenue,Adult Services,Adult Social Care,Commissioning & Service Delivery,5105688588,27.10.2021,CHC Residential Care,Charges from Independent Providers,"2,529.52",CHERRY TREES I.W. LTD
Revenue,Adult Services,Adult Social Care,Physical Support - older people (65+),5105688588,27.10.2021,Physical Support Residential 65+,Charges from Independent Providers,"2,054.64",CHERRY TREES I.W. LTD
Revenue,Adult Services,Adult Social Care,Physical Support - older people (65+),5105688588,27.10.2021,Physical Support Residential 65+,Charges from Independent Providers,"2,054.64",CHERRY TREES I.W. LTD
Revenue,Adult Services,Adult Social Care,Physical Support - older people (65+),5105688588,27.10.2021,Physical Support Residential 65+,Charges from Independent Providers,"2,529.52",CHERRY TREES I.W. LTD
Revenue,Adult Services,Adult Social Care,Physical Support - older people (65+),5105688588,27.10.2021,Physical Support Residential 65+,Charges from Independent Providers,"2,151.52",CHERRY TREES I.W. LTD
Revenue,Adult Services,Adult Social Care,Physical Support - older people (65+),5105688588,27.10.2021,Physical Support Residential 65+,Charges from Independent Providers,300.16,CHERRY TREES I.W. LTD
Revenue,Adult Services,Adult Social Care,Physical Support - older people (65+),5105688588,27.10.2021,Physical Support Residential 65+,Charges from Independent Providers,"2,054.64",CHERRY TREES I.W. LTD
Revenue,Neighbourhoods,Highways and Transport Services,Parking Services,5105685925,06.10.2021,Car Park Permits,Professional Services,627.33,CHIPSIDE LIMITED
Revenue,Neighbourhoods,Highways and Transport Services,Parking Services,5105688533,27.10.2021,Car Park Permits,Printing Costs,689.50,CHIPSIDE LIMITED
Revenue,Neighbourhoods,Highways and Transport Services,Parking Services,5105688535,27.10.2021,Parking Management,Operational Equipment,600.00,CHIPSIDE LIMITED
Revenue,Resources,Highways and Transport Services,Off Street Parking,5105688365,22.10.2021,Parking Services,Professional Services,"35,750.00",CHIPSIDE LIMITED
Revenue,Adult Services,Adult Social Care,Commissioning & Service Delivery,5105688661,27.10.2021,CHC Residential Care,Charges from Independent Providers,"11,924.08",CHOICE CARE (WOODLANDS)
Revenue,Adult Services,Adult Social Care,Learning Disability Suppt-adults (18-64),5105688650,27.10.2021,Learning Disability Residential 18-64,Charges from Independent Providers,"7,190.12",CHOICE LTD
Revenue,Childrens Services,Children's & Education Services,Safeguarding Children/Young Peoples Svs,5105686870,06.10.2021,Court Work & Consultancy Services,Legal Fees - Other Parties,189.39,CHURCHERS BOLITHO WAY
Revenue,Childrens Services,Children's & Education Services,Other Education and Community Budget,5105687084,08.10.2021,Adult Community Learning,Licences,549.00,CITY AND GUILDS
Revenue,Childrens Services,Children's & Education Services,Other Education and Community Budget,5105687366,13.10.2021,Adult Community Learning,Licences,18.50,CITY AND GUILDS
Revenue,Childrens Services,Children's & Education Services,Other Education and Community Budget,5105686773,06.10.2021,Adult Community Learning,Licences,24.60,CITY AND GUILDS
Revenue,Childrens Services,Children's & Education Services,Other Education and Community Budget,5105686774,06.10.2021,Adult Community Learning,Licences,32.80,CITY AND GUILDS
Revenue,Childrens Services,Children's & Education Services,Other Education and Community Budget,5105686775,06.10.2021,Adult Community Learning,Licences,24.60,CITY AND GUILDS
Revenue,Childrens Services,Children's & Education Services,Other Education and Community Budget,5105686776,06.10.2021,Adult Community Learning,Licences,32.80,CITY AND GUILDS
Revenue,Childrens Services,Children's & Education Services,Other Education and Community Budget,5105686777,06.10.2021,Adult Community Learning,Licences,8.20,CITY AND GUILDS
Revenue,Childrens Services,Children's & Education Services,Other Education and Community Budget,5105686778,06.10.2021,Adult Community Learning,Licences,8.20,CITY AND GUILDS
Revenue,Adult Services,Adult Social Care,Central Codes (to be reallocated),5105687467,13.10.2021,Adelaide Resource Centre,Fixtures and Fittings,8.75,CITY ELECTRICAL FACTORS LTD
Revenue,Adult Services,Adult Social Care,Central Codes (to be reallocated),5105688804,27.10.2021,Adelaide Resource Centre,Fixtures and Fittings,8.75,CITY ELECTRICAL FACTORS LTD
Revenue,Resources,Central Services,Central Services to the Public,5105686801,06.10.2021,Electoral Registration Office,Printing Costs,"2,252.84",ELECTORAL REFORM SERVICES
Revenue,Resources,Central Services,Central Services to the Public,5105687262,13.10.2021,Elections,Printing Costs,"13,971.95",ELECTORAL REFORM SERVICES
Revenue,Resources,Central Services,Central Services to the Public,5105687263,13.10.2021,Elections,Printing Costs,"4,908.72",ELECTORAL REFORM SERVICES
Revenue,Resources,Central Services,Corporate and Democratic Core,5105686799,06.10.2021,Committee and Scrutiny Team,Computer Software Licencing,"12,605.25",CIVICA UK LTD
Capital,Childrens Services,Capital,Capital,5105687280,13.10.2021,Administration and Inspection Schemes,Payment to Contractors - Capital,"2,235.39",CLARKES MECHANICAL LTD
Revenue,Neighbourhoods,Environmental & Regulatory Services,"Cemetery, Cremation & Mortuary Services",5105686743,06.10.2021,Crematorium,Professional Subscriptions,"2,450.00",CLEAR SKIES SOFTWARE
Revenue,Adult Services,Central Services,Emergency Planning,5105688059,19.10.2021,NHS C19 Nursing,Charges from Independent Providers,"-4,580.24",REDACTED PERSONAL DATA
Revenue,Adult Services,Central Services,Emergency Planning,5105688059,19.10.2021,NHS C19 Nursing,Charges from Independent Providers,"-4,580.24",REDACTED PERSONAL DATA
Revenue,Adult Services,Central Services,Emergency Planning,5105687555,13.10.2021,NHS C19 Nursing,Charges from Independent Providers,"-4,580.24",REDACTED PERSONAL DATA
Revenue,Adult Services,Central Services,Emergency Planning,5105687555,13.10.2021,NHS C19 Nursing,Charges from Independent Providers,"-4,580.24",REDACTED PERSONAL DATA
Revenue,Adult Services,Central Services,Emergency Planning,5105687616,19.10.2021,NHS C19 Nursing,Charges from Independent Providers,"4,580.24",REDACTED PERSONAL DATA
Revenue,Adult Services,Central Services,Emergency Planning,5105687616,19.10.2021,NHS C19 Nursing,Charges from Independent Providers,"4,580.24",REDACTED PERSONAL DATA
Revenue,Adult Services,Adult Social Care,Support - Memory /Cognition-older people (65+),5105688059,19.10.2021,Memory & Cognition Residential 65+,Charges from Independent Providers,"-2,833.32",REDACTED PERSONAL DATA
Revenue,Adult Services,Adult Social Care,Support - Memory /Cognition-older people (65+),5105688059,19.10.2021,Memory & Cognition Residential 65+,Charges from Independent Providers,"-11,478.88",REDACTED PERSONAL DATA
Revenue,Adult Services,Adult Social Care,Support - Memory /Cognition-older people (65+),5105688059,19.10.2021,Memory & Cognition Residential 65+,Charges from Independent Providers,-132.60,REDACTED PERSONAL DATA
Revenue,Adult Services,Adult Social Care,Support - Memory /Cognition-older people (65+),5105687556,13.10.2021,Memory & Cognition Residential 65+,Charges from Independent Providers,"-2,869.72",REDACTED PERSONAL DATA
Revenue,Adult Services,Adult Social Care,Support - Memory /Cognition-older people (65+),5105687551,13.10.2021,Memory & Cognition Residential 65+,Charges from Independent Providers,-132.60,REDACTED PERSONAL DATA
Revenue,Adult Services,Adult Social Care,Support - Memory /Cognition-older people (65+),5105687552,13.10.2021,Memory & Cognition Residential 65+,Charges from Independent Providers,"-2,869.72",REDACTED PERSONAL DATA
Revenue,Adult Services,Adult Social Care,Support - Memory /Cognition-older people (65+),5105687553,13.10.2021,Memory & Cognition Residential 65+,Charges from Independent Providers,"-2,869.72",REDACTED PERSONAL DATA
Revenue,Adult Services,Adult Social Care,Support - Memory /Cognition-older people (65+),5105687554,13.10.2021,Memory & Cognition Residential 65+,Charges from Independent Providers,"-2,869.72",REDACTED PERSONAL DATA
Revenue,Adult Services,Adult Social Care,Support - Memory /Cognition-older people (65+),5105687616,19.10.2021,Memory & Cognition Residential 65+,Charges from Independent Providers,"2,833.32",REDACTED PERSONAL DATA
Revenue,Adult Services,Adult Social Care,Support - Memory /Cognition-older people (65+),5105687616,19.10.2021,Memory & Cognition Residential 65+,Charges from Independent Providers,"11,478.88",REDACTED PERSONAL DATA
Revenue,Adult Services,Adult Social Care,Support - Memory /Cognition-older people (65+),5105687616,19.10.2021,Memory & Cognition Residential 65+,Charges from Independent Providers,132.60,REDACTED PERSONAL DATA
Revenue,Adult Services,Adult Social Care,Support - Memory /Cognition-older people (65+),5105687591,13.10.2021,Memory & Cognition Residential 65+,Charges from Independent Providers,"-2,833.32",REDACTED PERSONAL DATA
Capital,Adult Services,Capital,Capital,5105688468,22.10.2021,S106 Capital Projects,External Design and Supervision Fees,"1,851.81",COMMUNITY ACTION ISLE OF WIGHT
Revenue,Neighbourhoods,Cultural and Related Services,Recreation and Sport,5105686676,08.10.2021,The Heights,Consumable Cleaning Materials,247.60,COMPLETE POOL CONTROLS LTD
Revenue,Neighbourhoods,Highways and Transport Services,Management and Support Services,5105686765,06.10.2021,Milestone 14 Dispute Resolution Process,Consultants Fees,"24,240.00",CONSTRUCTEX LTD
Revenue,Neighbourhoods,Cultural and Related Services,Recreation and Sport,5105686696,08.10.2021,Medina Leisure Centre,Clothing & Laundry,110.85,CONTEGO SAFETY SOLUTIONS LTD
Revenue,Childrens Services,Children's & Education Services,Children Looked After,5105687389,13.10.2021,Beaulieu House,Clothing & Laundry,286.68,CONTEGO SAFETY SOLUTIONS LTD
Revenue,Adult Services,Adult Social Care,Central Codes (to be reallocated),5105687111,08.10.2021,Community Reablement,Clothing & Laundry,63.60,CONTEGO SAFETY SOLUTIONS LTD
Revenue,Adult Services,Adult Social Care,Central Codes (to be reallocated),5105687111,08.10.2021,Community Reablement,Clothing & Laundry,31.80,CONTEGO SAFETY SOLUTIONS LTD
Revenue,Adult Services,Adult Social Care,Central Codes (to be reallocated),5105687111,08.10.2021,Community Reablement,Clothing & Laundry,50.40,CONTEGO SAFETY SOLUTIONS LTD
Revenue,Adult Services,Adult Social Care,Central Codes (to be reallocated),5105687111,08.10.2021,Community Reablement,Clothing & Laundry,31.80,CONTEGO SAFETY SOLUTIONS LTD
Revenue,Adult Services,Adult Social Care,Central Codes (to be reallocated),5105687111,08.10.2021,Community Reablement,Clothing & Laundry,63.60,CONTEGO SAFETY SOLUTIONS LTD
Revenue,Adult Services,Adult Social Care,Central Codes (to be reallocated),5105687111,08.10.2021,Community Reablement,Clothing & Laundry,63.60,CONTEGO SAFETY SOLUTIONS LTD
Revenue,Adult Services,Adult Social Care,Central Codes (to be reallocated),5105687111,08.10.2021,Community Reablement,Clothing & Laundry,31.80,CONTEGO SAFETY SOLUTIONS LTD
Revenue,Adult Services,Adult Social Care,Central Codes (to be reallocated),5105688354,22.10.2021,Adelaide Resource Centre,Clothing & Laundry,112.50,CONTEGO SAFETY SOLUTIONS LTD
Revenue,Adult Services,Adult Social Care,Central Codes (to be reallocated),5105688354,22.10.2021,Adelaide Resource Centre,Clothing & Laundry,7.90,CONTEGO SAFETY SOLUTIONS LTD
Revenue,Adult Services,Adult Social Care,Central Codes (to be reallocated),5105688354,22.10.2021,Adelaide Resource Centre,Clothing & Laundry,16.34,CONTEGO SAFETY SOLUTIONS LTD
Revenue,Adult Services,Adult Social Care,Central Codes (to be reallocated),5105688354,22.10.2021,Adelaide Resource Centre,Clothing & Laundry,47.90,CONTEGO SAFETY SOLUTIONS LTD
Revenue,Adult Services,Adult Social Care,Central Codes (to be reallocated),5105688354,22.10.2021,Adelaide Resource Centre,Clothing & Laundry,5.60,CONTEGO SAFETY SOLUTIONS LTD
Revenue,Childrens Services,Children's & Education Services,Children Looked After,5105688854,27.10.2021,In-house Fostering,Professional Services,250.00,CORAM CHILDREN'S LEGAL CENTRE LTD
Revenue,Adult Services,Adult Social Care,Support - Memory /Cognition-older people (65+),5105688615,27.10.2021,Memory & Cognition Residential 65+,Charges from Independent Providers,"2,529.52",CORNELIA MANOR
Revenue,Adult Services,Adult Social Care,Support - Memory /Cognition-older people (65+),5105688615,27.10.2021,Memory & Cognition Residential 65+,Charges from Independent Providers,"2,151.52",CORNELIA MANOR
Revenue,Adult Services,Adult Social Care,Social Support - Social Isolation/Other,5105688615,27.10.2021,Social Isolation/Other Residential,Charges from Independent Providers,"2,151.52",CORNELIA MANOR
Revenue,Adult Services,Adult Social Care,Physical Support - adults (18-64),5105686788,06.10.2021,Physical Support Residential 18-64,Charges from Independent Providers,"2,689.40",CORNELIA MANOR
Revenue,Adult Services,Adult Social Care,Support - Memory /Cognition-older people (65+),5105687922,20.10.2021,Memory & Cognition Residential 65+,Charges from Independent Providers,"1,377.00",CORNELIA MANOR
Revenue,Adult Services,Adult Social Care,Support - Memory /Cognition-older people (65+),5105688615,27.10.2021,Memory & Cognition Residential 65+,Charges from Independent Providers,"2,529.52",CORNELIA MANOR
Revenue,Adult Services,Central Services,Emergency Planning,5105686788,06.10.2021,NHS C19 Residential,Charges from Independent Providers,328.16,CORNELIA MANOR
Revenue,Adult Services,Central Services,Emergency Planning,5105688853,27.10.2021,NHS C19 Residential,Charges from Independent Providers,"4,912.04",CORNELIA MANOR
Revenue,Adult Services,Balance Sheet,Balance Sheet,5105688615,27.10.2021,REDACTED PERSONAL DATA,Order Settlement to Bal Sht GL,"2,529.52",CORNELIA MANOR
Revenue,Adult Services,Adult Social Care,Social Support - Support for Carer,5105688719,27.10.2021,Carers Residential,Charges from Independent Providers,"3,380.96",CORNELIA MANOR
Revenue,Adult Services,Adult Social Care,Social Support - Support for Carer,5105688719,27.10.2021,Carers Residential,Charges from Independent Providers,"2,151.52",CORNELIA MANOR
Revenue,Adult Services,Adult Social Care,Physical Support - older people (65+),5105688615,27.10.2021,Physical Support Residential 65+,Charges from Independent Providers,"2,529.52",CORNELIA MANOR
Revenue,Adult Services,Adult Social Care,Physical Support - older people (65+),5105688615,27.10.2021,Physical Support Residential 65+,Charges from Independent Providers,"2,529.52",CORNELIA MANOR
Revenue,Adult Services,Adult Social Care,Physical Support - older people (65+),5105688615,27.10.2021,Physical Support Residential 65+,Charges from Independent Providers,"2,151.52",CORNELIA MANOR
Revenue,Adult Services,Adult Social Care,Physical Support - older people (65+),5105688615,27.10.2021,Physical Support Residential 65+,Charges from Independent Providers,"2,054.64",CORNELIA MANOR
Revenue,Adult Services,Adult Social Care,Physical Support - older people (65+),5105688615,27.10.2021,Physical Support Residential 65+,Charges from Independent Providers,"2,529.52",CORNELIA MANOR
Revenue,Adult Services,Adult Social Care,Physical Support - older people (65+),5105688615,27.10.2021,Physical Support Residential 65+,Charges from Independent Providers,"4,000.08",CORNELIA MANOR
Revenue,Adult Services,Adult Social Care,Physical Support - older people (65+),5105686788,06.10.2021,Physical Support Residential 65+,Charges from Independent Providers,"5,071.44",CORNELIA MANOR
Revenue,Adult Services,Adult Social Care,Physical Support - older people (65+),5105687227,13.10.2021,Physical Support Residential 65+,Charges from Independent Providers,"3,081.96",CORNELIA MANOR
Revenue,Adult Services,Adult Social Care,Physical Support - older people (65+),5105688719,27.10.2021,Physical Support Residential 65+,Charges from Independent Providers,"4,256.04",CORNELIA MANOR
Revenue,Adult Services,Adult Social Care,Physical Support - older people (65+),5105688719,27.10.2021,Physical Support Residential 65+,Charges from Independent Providers,"5,239.72",CORNELIA MANOR
Revenue,Adult Services,Adult Social Care,Physical Support - older people (65+),5105688719,27.10.2021,Physical Support Residential 65+,Charges from Independent Providers,"3,380.96",CORNELIA MANOR
Revenue,Neighbourhoods,Highways and Transport Services,"Airports, Harbours & Toll Facilities",5105687331,13.10.2021,Ferry Operation,Payment to Private Contractors,209.17,COWES HARBOUR COMMISSION
Revenue,Neighbourhoods,Highways and Transport Services,"Airports, Harbours & Toll Facilities",5105687237,15.10.2021,Newport Harbour Account,Payment to Private Contractors,89.25,COWES HARBOUR COMMISSION
Revenue,Neighbourhoods,Highways and Transport Services,"Airports, Harbours & Toll Facilities",5105688167,22.10.2021,Ferry Operation,Payment to Private Contractors,"3,870.00",FOLLY VENTURES
Revenue,Neighbourhoods,Highways and Transport Services,"Airports, Harbours & Toll Facilities",5105688166,22.10.2021,Newport Harbour Account,Payment to Private Contractors,"1,611.40",FOLLY VENTURES
Revenue,Childrens Services,Children's & Education Services,Special Schools & Alternative Provision,5105686588,08.10.2021,Island Learning Centre,Training,495.00,CPI EUROPE
Revenue,Adult Services,Adult Social Care,Social Care Activities,5105687285,13.10.2021,Local Safeguarding Adults Board,Professional Services,250.00,CREATIVE CONNECTION ANIMATION
Revenue,Childrens Services,Children's & Education Services,Other Education and Community Budget,5105687561,15.10.2021,Home to School SEN Transport (LA),Taxis - Contract Hire,760.00,CRISS CROSS CABS
Revenue,Childrens Services,Children's & Education Services,Management & Support Services,5105687894,20.10.2021,Special Discretionary Grants,Transport of Clients,760.00,CRISS CROSS CABS
Revenue,Childrens Services,Children's & Education Services,Management & Support Services,5105687895,18.10.2021,Special Discretionary Grants,Transport of Clients,-760.00,CRISS CROSS CABS
Revenue,Childrens Services,Children's & Education Services,Management & Support Services,5105687562,18.10.2021,Special Discretionary Grants,Transport of Clients,760.00,CRISS CROSS CABS
Revenue,Childrens Services,Children's & Education Services,Other Education and Community Budget,5105687560,20.10.2021,Home to College Post 16 Transport,Taxis - Contract Hire,900.00,CRISS CROSS CABS
Revenue,Regeneration,Planning services,Economic Development,5105686884,06.10.2021,Victoria Quays,Legal Fees - Other Parties,"7,800.00",CROWN ESTATE COMMISSIONERS
Revenue,Regeneration,Planning services,Economic Development,5105686891,06.10.2021,Victoria Quays,Legal Fees - Other Parties,0.00,CROWN ESTATE COMMISSIONERS
Revenue,Adult Services,Adult Social Care,Commissioning & Service Delivery,5105688664,27.10.2021,CHC Residential Care,Charges from Independent Providers,"11,499.60",CYGNET LEARNING DISABILITIES
Revenue,Childrens Services,Children's & Education Services,Children Looked After,5105688946,29.10.2021,Children placed with Family&Friends,Boarding Out Allowances,247.89,REDACTED PERSONAL DATA
Revenue,Childrens Services,Children's & Education Services,Children Looked After,5105688946,29.10.2021,Children placed with Family&Friends,Boarding Out Allowances,247.89,REDACTED PERSONAL DATA
Revenue,Childrens Services,Children's & Education Services,Children Looked After,5105688946,29.10.2021,Children placed with Family&Friends,Boarding Out Allowances,290.48,REDACTED PERSONAL DATA
Revenue,Childrens Services,Children's & Education Services,Children Looked After,5105686971,08.10.2021,Children placed with Family&Friends,Boarding Out Allowances,247.89,REDACTED PERSONAL DATA
Revenue,Childrens Services,Children's & Education Services,Children Looked After,5105686971,08.10.2021,Children placed with Family&Friends,Boarding Out Allowances,290.48,REDACTED PERSONAL DATA
Revenue,Childrens Services,Children's & Education Services,Children Looked After,5105688245,22.10.2021,Children placed with Family&Friends,Boarding Out Allowances,247.89,REDACTED PERSONAL DATA
Revenue,Childrens Services,Children's & Education Services,Children Looked After,5105688245,22.10.2021,Children placed with Family&Friends,Boarding Out Allowances,247.89,REDACTED PERSONAL DATA
Revenue,Childrens Services,Children's & Education Services,Children Looked After,5105688245,22.10.2021,Children placed with Family&Friends,Boarding Out Allowances,290.48,REDACTED PERSONAL DATA
Revenue,Childrens Services,Children's & Education Services,Children Looked After,5105687691,15.10.2021,Children placed with Family&Friends,Boarding Out Allowances,247.89,REDACTED PERSONAL DATA
Revenue,Childrens Services,Children's & Education Services,Children Looked After,5105687691,15.10.2021,Children placed with Family&Friends,Boarding Out Allowances,247.89,REDACTED PERSONAL DATA
Revenue,Childrens Services,Children's & Education Services,Children Looked After,5105687691,15.10.2021,Children placed with Family&Friends,Boarding Out Allowances,290.48,REDACTED PERSONAL DATA
Revenue,Childrens Services,Children's & Education Services,Children Looked After,5105686971,08.10.2021,Children placed with Family&Friends,Boarding Out Allowances,247.89,REDACTED PERSONAL DATA
Revenue,Adult Services,Housing Services,Homelessness,5105688415,22.10.2021,Private Rented Sector Leasing Scheme,Accommodation Costs - Leaseholder Payments,859.95,REDACTED PERSONAL DATA
Capital,Place,Capital,Capital,5105687902,29.10.2021,Carriageway works,Payment to Contractors - Capital,"2,024.00",D CHALLIS PROPERTY SERVICES LTD
Revenue,Neighbourhoods,Environmental & Regulatory Services,"Cemetery, Cremation & Mortuary Services",5105688742,27.10.2021,Crematorium,Property Services - Day to day Maintenance,120.00,5 STAR PEST CONTROL
Revenue,Childrens Services,Children's & Education Services,Children Looked After,5105688186,22.10.2021,Adoption Costs,Support Children,207.73,REDACTED PERSONAL DATA
Revenue,Childrens Services,Children's & Education Services,Children Looked After,5105686912,08.10.2021,Adoption Costs,Support Children,207.73,REDACTED PERSONAL DATA
Revenue,Childrens Services,Children's & Education Services,Children Looked After,5105687632,15.10.2021,Adoption Costs,Support Children,207.73,REDACTED PERSONAL DATA
Revenue,Childrens Services,Children's & Education Services,Children Looked After,5105688887,29.10.2021,Adoption Costs,Support Children,207.73,REDACTED PERSONAL DATA
Revenue,Adult Services,Housing Services,Homelessness,5105688417,22.10.2021,Private Rented Sector Leasing Scheme,Accommodation Costs - Leaseholder Payments,788.67,REDACTED PERSONAL DATA
Revenue,Childrens Services,Children's & Education Services,Children Looked After,5105688874,29.10.2021,Adoption Costs,Support Children,168.39,REDACTED PERSONAL DATA
Revenue,Childrens Services,Children's & Education Services,Children Looked After,5105688173,22.10.2021,Adoption Costs,Support Children,168.39,REDACTED PERSONAL DATA
Revenue,Childrens Services,Children's & Education Services,Children Looked After,5105686899,08.10.2021,Adoption Costs,Support Children,168.39,REDACTED PERSONAL DATA
Revenue,Childrens Services,Children's & Education Services,Children Looked After,5105687619,15.10.2021,Adoption Costs,Support Children,168.39,REDACTED PERSONAL DATA
Revenue,Adult Services,Housing Services,Homelessness,5105688434,22.10.2021,Private Rented Sector Leasing Scheme,Accommodation Costs - Leaseholder Payments,678.90,REDACTED PERSONAL DATA
Revenue,Childrens Services,Children's & Education Services,Children Looked After,5105688977,29.10.2021,In-house Fostering,Boarding Out Allowances,247.89,REDACTED PERSONAL DATA
Revenue,Childrens Services,Children's & Education Services,Children Looked After,5105688977,29.10.2021,In-house Fostering,Boarding Out Allowances,290.48,REDACTED PERSONAL DATA
Revenue,Childrens Services,Children's & Education Services,Children Looked After,5105688277,22.10.2021,In-house Fostering,Boarding Out Allowances,247.89,REDACTED PERSONAL DATA
Revenue,Childrens Services,Children's & Education Services,Children Looked After,5105688277,22.10.2021,In-house Fostering,Boarding Out Allowances,290.48,REDACTED PERSONAL DATA
Revenue,Childrens Services,Children's & Education Services,Children Looked After,5105687723,15.10.2021,In-house Fostering,Boarding Out Allowances,247.89,REDACTED PERSONAL DATA
Revenue,Childrens Services,Children's & Education Services,Children Looked After,5105687723,15.10.2021,In-house Fostering,Boarding Out Allowances,290.48,REDACTED PERSONAL DATA
Revenue,Childrens Services,Children's & Education Services,Children Looked After,5105687003,08.10.2021,In-house Fostering,Boarding Out Allowances,247.89,REDACTED PERSONAL DATA
Revenue,Childrens Services,Children's & Education Services,Children Looked After,5105687003,08.10.2021,In-house Fostering,Boarding Out Allowances,290.48,REDACTED PERSONAL DATA
Revenue,Neighbourhoods,Cultural and Related Services,Open Spaces,5105688490,27.10.2021,Ventnor Botanic Garden,Property Services - Planned Maintenance,715.00,DARES LTD
Revenue,Corporate Items,Balance Sheet,Balance Sheet,5105685601,06.10.2021,Insurance Suspense - Claims Outstanding,Order Settlement to Bal Sht GL,80.00,DARES LTD
Revenue,Neighbourhoods,Cultural and Related Services,Open Spaces,5105687250,22.10.2021,Fort Victoria,Property Services - Planned Maintenance,440.00,DARES LTD
Revenue,Neighbourhoods,Cultural and Related Services,Open Spaces,5105687495,13.10.2021,Client Management Unit - Grounds Maintenance,Vehicle Maintenance Costs,10.00,DASHWITNESS LTD
Revenue,Neighbourhoods,Cultural and Related Services,Open Spaces,5105687495,13.10.2021,Client Management Unit - Grounds Maintenance,Vehicle Maintenance Costs,10.00,DASHWITNESS LTD
Revenue,Resources,Highways and Transport Services,Public Transport,5105687495,13.10.2021,Fleet Income,Vehicle Maintenance Costs,10.00,DASHWITNESS LTD
Revenue,Adult Services,Adult Social Care,Central Codes (to be reallocated),5105687495,13.10.2021,Gouldings Resource Centre,Vehicle Maintenance Costs,10.00,DASHWITNESS LTD
Revenue,Resources,Central Services,Central Services to the Public,5105687495,13.10.2021,National Non Domestic Rates,Vehicle Maintenance Costs,10.00,DASHWITNESS LTD
Revenue,Neighbourhoods,Cultural and Related Services,Open Spaces,5105687495,13.10.2021,Rights of Way Operations,Vehicle Maintenance Costs,10.00,DASHWITNESS LTD
Revenue,Neighbourhoods,Cultural and Related Services,Open Spaces,5105687495,13.10.2021,Rights of Way Operations,Vehicle Maintenance Costs,10.00,DASHWITNESS LTD
Revenue,Neighbourhoods,Cultural and Related Services,Open Spaces,5105687495,13.10.2021,Rights of Way Operations,Vehicle Maintenance Costs,10.00,DASHWITNESS LTD
Revenue,Neighbourhoods,Cultural and Related Services,Open Spaces,5105687495,13.10.2021,Rights of Way Operations,Vehicle Maintenance Costs,10.00,DASHWITNESS LTD
Revenue,Adult Services,Adult Social Care,Social Support - Support for Carer,5105687495,13.10.2021,Westminster House,Vehicle Maintenance Costs,10.00,DASHWITNESS LTD
Revenue,Resources,Central Services,Support Services,5105687495,13.10.2021,County Hall Central Mail Room,Vehicle Maintenance Costs,10.00,DASHWITNESS LTD
Revenue,Adult Services,Adult Social Care,Assistive Equipment & Technology,5105687495,13.10.2021,BCF Community Equipment Store,Vehicle Maintenance Costs,10.00,DASHWITNESS LTD
Revenue,Adult Services,Adult Social Care,Assistive Equipment & Technology,5105687495,13.10.2021,BCF Community Equipment Store,Vehicle Maintenance Costs,10.00,DASHWITNESS LTD
Revenue,Adult Services,Adult Social Care,Assistive Equipment & Technology,5105687495,13.10.2021,BCF Community Equipment Store,Vehicle Maintenance Costs,10.00,DASHWITNESS LTD
Revenue,Adult Services,Adult Social Care,Assistive Equipment & Technology,5105687495,13.10.2021,BCF Community Equipment Store,Vehicle Maintenance Costs,10.00,DASHWITNESS LTD
Revenue,Adult Services,Adult Social Care,Assistive Equipment & Technology,5105687495,13.10.2021,BCF Community Equipment Store,Vehicle Maintenance Costs,10.00,DASHWITNESS LTD
Revenue,Adult Services,Adult Social Care,Assistive Equipment & Technology,5105687495,13.10.2021,BCF Community Equipment Store,Vehicle Maintenance Costs,10.00,DASHWITNESS LTD
Revenue,Neighbourhoods,Environmental & Regulatory Services,Service Management and Support Services,5105687495,13.10.2021,Environment officers,Vehicle Maintenance Costs,10.00,DASHWITNESS LTD
Revenue,Neighbourhoods,Environmental & Regulatory Services,Service Management and Support Services,5105687495,13.10.2021,Environment officers,Vehicle Maintenance Costs,10.00,DASHWITNESS LTD
Revenue,Childrens Services,Children's & Education Services,Children Looked After,5105687495,13.10.2021,Beaulieu House,Vehicle Maintenance Costs,10.00,DASHWITNESS LTD
Revenue,Childrens Services,Children's & Education Services,Children Looked After,5105687495,13.10.2021,Beaulieu House,Vehicle Maintenance Costs,10.00,DASHWITNESS LTD
Revenue,Childrens Services,Children's & Education Services,Children Looked After,5105687495,13.10.2021,Beaulieu House,Vehicle Maintenance Costs,10.00,DASHWITNESS LTD
Revenue,Childrens Services,Children's & Education Services,Children Looked After,5105687495,13.10.2021,Beaulieu House,Vehicle Maintenance Costs,10.00,DASHWITNESS LTD
Revenue,Neighbourhoods,Environmental & Regulatory Services,Service Management and Support Services,5105687495,13.10.2021,Environment officers,Vehicle Maintenance Costs,10.00,DASHWITNESS LTD
Revenue,Neighbourhoods,Environmental & Regulatory Services,Service Management and Support Services,5105687495,13.10.2021,Environment officers,Vehicle Maintenance Costs,10.00,DASHWITNESS LTD
Revenue,Adult Services,Adult Social Care,Assistive Equipment & Technology,5105687495,13.10.2021,Wightcare,Vehicle Maintenance Costs,10.00,DASHWITNESS LTD
Revenue,Adult Services,Adult Social Care,Assistive Equipment & Technology,5105687495,13.10.2021,Wightcare,Vehicle Maintenance Costs,10.00,DASHWITNESS LTD
Revenue,Adult Services,Adult Social Care,Assistive Equipment & Technology,5105687495,13.10.2021,Wightcare,Vehicle Maintenance Costs,10.00,DASHWITNESS LTD
Revenue,Adult Services,Adult Social Care,Assistive Equipment & Technology,5105687495,13.10.2021,Wightcare,Vehicle Maintenance Costs,10.00,DASHWITNESS LTD
Revenue,Adult Services,Adult Social Care,Central Codes (to be reallocated),5105687495,13.10.2021,Community Reablement,Vehicle Maintenance Costs,10.00,DASHWITNESS LTD
Revenue,Adult Services,Adult Social Care,Central Codes (to be reallocated),5105687495,13.10.2021,Community Reablement,Vehicle Maintenance Costs,10.00,DASHWITNESS LTD
Revenue,Adult Services,Adult Social Care,Central Codes (to be reallocated),5105687495,13.10.2021,Community Reablement,Vehicle Maintenance Costs,10.00,DASHWITNESS LTD
Revenue,Adult Services,Adult Social Care,Central Codes (to be reallocated),5105687495,13.10.2021,Community Reablement,Vehicle Maintenance Costs,10.00,DASHWITNESS LTD
Revenue,Adult Services,Adult Social Care,Central Codes (to be reallocated),5105687495,13.10.2021,Community Reablement,Vehicle Maintenance Costs,10.00,DASHWITNESS LTD
Revenue,Adult Services,Adult Social Care,Central Codes (to be reallocated),5105687495,13.10.2021,Community Reablement,Vehicle Maintenance Costs,10.00,DASHWITNESS LTD
Revenue,Adult Services,Adult Social Care,Central Codes (to be reallocated),5105687495,13.10.2021,Community Reablement,Vehicle Maintenance Costs,10.00,DASHWITNESS LTD
Revenue,Adult Services,Adult Social Care,Central Codes (to be reallocated),5105687495,13.10.2021,Community Reablement,Vehicle Maintenance Costs,10.00,DASHWITNESS LTD
Revenue,Adult Services,Adult Social Care,Central Codes (to be reallocated),5105687495,13.10.2021,Community Reablement,Vehicle Maintenance Costs,10.00,DASHWITNESS LTD
Revenue,Adult Services,Adult Social Care,Central Codes (to be reallocated),5105687495,13.10.2021,Community Reablement,Vehicle Maintenance Costs,10.00,DASHWITNESS LTD
Revenue,Adult Services,Adult Social Care,Central Codes (to be reallocated),5105687495,13.10.2021,Community Reablement,Vehicle Maintenance Costs,10.00,DASHWITNESS LTD
Revenue,Adult Services,Adult Social Care,Central Codes (to be reallocated),5105687495,13.10.2021,Community Reablement,Vehicle Maintenance Costs,10.00,DASHWITNESS LTD
Revenue,Adult Services,Adult Social Care,Central Codes (to be reallocated),5105687495,13.10.2021,Community Reablement,Vehicle Maintenance Costs,10.00,DASHWITNESS LTD
Revenue,Adult Services,Adult Social Care,Central Codes (to be reallocated),5105687495,13.10.2021,Community Reablement,Vehicle Maintenance Costs,10.00,DASHWITNESS LTD
Revenue,Adult Services,Adult Social Care,Central Codes (to be reallocated),5105687495,13.10.2021,Community Reablement,Vehicle Maintenance Costs,10.00,DASHWITNESS LTD
Revenue,Adult Services,Adult Social Care,Central Codes (to be reallocated),5105687495,13.10.2021,Community Reablement,Vehicle Maintenance Costs,10.00,DASHWITNESS LTD
Revenue,Adult Services,Adult Social Care,Central Codes (to be reallocated),5105687495,13.10.2021,Community Reablement,Vehicle Maintenance Costs,10.00,DASHWITNESS LTD
Revenue,Adult Services,Adult Social Care,Central Codes (to be reallocated),5105687495,13.10.2021,Community Reablement,Vehicle Maintenance Costs,10.00,DASHWITNESS LTD
Revenue,Adult Services,Adult Social Care,Central Codes (to be reallocated),5105687495,13.10.2021,Community Reablement,Vehicle Maintenance Costs,10.00,DASHWITNESS LTD
Revenue,Adult Services,Adult Social Care,Central Codes (to be reallocated),5105687495,13.10.2021,Community Reablement,Vehicle Maintenance Costs,10.00,DASHWITNESS LTD
Revenue,Adult Services,Adult Social Care,Central Codes (to be reallocated),5105687495,13.10.2021,Community Reablement,Vehicle Maintenance Costs,10.00,DASHWITNESS LTD
Revenue,Adult Services,Adult Social Care,Central Codes (to be reallocated),5105687495,13.10.2021,Community Reablement,Vehicle Maintenance Costs,10.00,DASHWITNESS LTD
Revenue,Adult Services,Adult Social Care,Central Codes (to be reallocated),5105687495,13.10.2021,Community Reablement,Vehicle Maintenance Costs,10.00,DASHWITNESS LTD
Revenue,Adult Services,Adult Social Care,Central Codes (to be reallocated),5105687495,13.10.2021,Community Outreach,Vehicle Maintenance Costs,10.00,DASHWITNESS LTD
Revenue,Adult Services,Adult Social Care,Central Codes (to be reallocated),5105687495,13.10.2021,Community Outreach,Vehicle Maintenance Costs,10.00,DASHWITNESS LTD
Revenue,Adult Services,Adult Social Care,Central Codes (to be reallocated),5105687495,13.10.2021,Community Outreach,Vehicle Maintenance Costs,10.00,DASHWITNESS LTD
Revenue,Adult Services,Adult Social Care,Central Codes (to be reallocated),5105687495,13.10.2021,Community Outreach,Vehicle Maintenance Costs,10.00,DASHWITNESS LTD
Revenue,Adult Services,Adult Social Care,Central Codes (to be reallocated),5105687495,13.10.2021,Community Outreach,Vehicle Maintenance Costs,10.00,DASHWITNESS LTD
Revenue,Resources,Highways and Transport Services,Public Transport,5105687495,13.10.2021,Transport Fleet Administration,Vehicle Maintenance Costs,10.00,DASHWITNESS LTD
Revenue,Resources,Highways and Transport Services,Public Transport,5105687495,13.10.2021,Transport Fleet Administration,Vehicle Maintenance Costs,10.00,DASHWITNESS LTD
Revenue,Resources,Highways and Transport Services,Public Transport,5105687495,13.10.2021,Transport Fleet Administration,Vehicle Maintenance Costs,8.00,DASHWITNESS LTD
Revenue,Resources,Highways and Transport Services,Public Transport,5105687495,13.10.2021,Transport Fleet Administration,Vehicle Maintenance Costs,8.00,DASHWITNESS LTD
Revenue,Resources,Highways and Transport Services,Public Transport,5105687495,13.10.2021,Transport Fleet Administration,Vehicle Maintenance Costs,10.00,DASHWITNESS LTD
Revenue,Resources,Highways and Transport Services,Public Transport,5105687495,13.10.2021,Transport Fleet Administration,Vehicle Maintenance Costs,8.00,DASHWITNESS LTD
Revenue,Resources,Highways and Transport Services,Public Transport,5105687495,13.10.2021,Transport Fleet Administration,Vehicle Maintenance Costs,8.00,DASHWITNESS LTD
Revenue,Resources,Highways and Transport Services,Public Transport,5105687495,13.10.2021,Transport Fleet Administration,Vehicle Maintenance Costs,10.00,DASHWITNESS LTD
Revenue,Resources,Highways and Transport Services,Public Transport,5105687495,13.10.2021,Transport Fleet Administration,Vehicle Maintenance Costs,10.00,DASHWITNESS LTD
Revenue,Resources,Highways and Transport Services,Public Transport,5105687495,13.10.2021,Transport Fleet Administration,Vehicle Maintenance Costs,10.00,DASHWITNESS LTD
Revenue,Regeneration,Planning services,Building Control,5105687495,13.10.2021,Building Control chargeable,Vehicle Maintenance Costs,10.00,DASHWITNESS LTD
Revenue,Regeneration,Planning services,Building Control,5105687495,13.10.2021,Building Control chargeable,Vehicle Maintenance Costs,10.00,DASHWITNESS LTD
Revenue,Regeneration,Planning services,Building Control,5105687495,13.10.2021,Building Control chargeable,Vehicle Maintenance Costs,10.00,DASHWITNESS LTD
Revenue,Regeneration,Planning services,Building Control,5105687495,13.10.2021,Building Control chargeable,Vehicle Maintenance Costs,10.00,DASHWITNESS LTD
Capital,Place,Capital,Capital,5105688110,20.10.2021,Highways transport capital,"Plant, Equipment & Furniture - Capital","2,852.25",DASHWITNESS LTD
Capital,Place,Capital,Capital,5105688467,22.10.2021,Highways transport capital,"Plant, Equipment & Furniture - Capital","1,736.50",DASHWITNESS LTD
Revenue,Neighbourhoods,Cultural and Related Services,Open Spaces,5105687495,13.10.2021,Countryside Management,Vehicle Maintenance Costs,10.00,DASHWITNESS LTD
Revenue,Neighbourhoods,Cultural and Related Services,Open Spaces,5105687495,13.10.2021,Countryside Management,Vehicle Maintenance Costs,10.00,DASHWITNESS LTD
Revenue,Adult Services,Adult Social Care,Central Codes (to be reallocated),5105687495,13.10.2021,Adelaide Resource Centre,Vehicle Maintenance Costs,10.00,DASHWITNESS LTD
Revenue,Adult Services,Adult Social Care,Central Codes (to be reallocated),5105687495,13.10.2021,Onwards Care & Independence,Vehicle Maintenance Costs,10.00,DASHWITNESS LTD
Revenue,Adult Services,Adult Social Care,Central Codes (to be reallocated),5105687495,13.10.2021,Onwards Care & Independence,Vehicle Maintenance Costs,10.00,DASHWITNESS LTD
Revenue,Adult Services,Adult Social Care,Central Codes (to be reallocated),5105687495,13.10.2021,Onwards Care & Independence,Vehicle Maintenance Costs,10.00,DASHWITNESS LTD
Revenue,Adult Services,Adult Social Care,Central Codes (to be reallocated),5105687495,13.10.2021,Onwards Care & Independence,Vehicle Maintenance Costs,10.00,DASHWITNESS LTD
Revenue,Resources,Central Services,Central Services to the Public,5105687495,13.10.2021,Internal Enforcement Team,Vehicle Maintenance Costs,10.00,DASHWITNESS LTD
Revenue,Resources,Central Services,Support Services,5105687495,13.10.2021,Corporate Stores,Vehicle Maintenance Costs,10.00,DASHWITNESS LTD
Revenue,Neighbourhoods,Highways and Transport Services,Parking Services,5105687495,13.10.2021,Off-Street Parking Operations,Vehicle Maintenance Costs,10.00,DASHWITNESS LTD
Revenue,Neighbourhoods,Highways and Transport Services,Parking Services,5105687495,13.10.2021,Off-Street Parking Operations,Vehicle Maintenance Costs,10.00,DASHWITNESS LTD
Revenue,Neighbourhoods,Highways and Transport Services,Parking Services,5105687495,13.10.2021,Off-Street Parking Operations,Vehicle Maintenance Costs,10.00,DASHWITNESS LTD
Revenue,Neighbourhoods,Highways and Transport Services,Parking Services,5105687495,13.10.2021,Off-Street Parking Operations,Vehicle Maintenance Costs,10.00,DASHWITNESS LTD
Revenue,Neighbourhoods,Highways and Transport Services,Parking Services,5105687495,13.10.2021,Off-Street Parking Operations,Vehicle Maintenance Costs,10.00,DASHWITNESS LTD
Revenue,Neighbourhoods,Highways and Transport Services,Parking Services,5105687495,13.10.2021,Off-Street Parking Operations,Vehicle Maintenance Costs,10.00,DASHWITNESS LTD
Revenue,Neighbourhoods,Highways and Transport Services,Parking Services,5105687495,13.10.2021,Off-Street Parking Operations,Vehicle Maintenance Costs,10.00,DASHWITNESS LTD
Revenue,Neighbourhoods,Highways and Transport Services,Parking Services,5105687495,13.10.2021,Off-Street Parking Operations,Vehicle Maintenance Costs,10.00,DASHWITNESS LTD
Revenue,Resources,Central Services,Central Services to the Public,5105687495,13.10.2021,Council Tax,Vehicle Maintenance Costs,10.00,DASHWITNESS LTD
Revenue,Adult Services,Housing Services,Homelessness,5105688420,22.10.2021,Private Rented Sector Leasing Scheme,Accommodation Costs - Leaseholder Payments,742.26,REDACTED PERSONAL DATA
Revenue,Childrens Services,Children's & Education Services,Children Looked After,5105688996,29.10.2021,Children placed with Family&Friends,Boarding Out Allowances,290.48,REDACTED PERSONAL DATA
Revenue,Childrens Services,Children's & Education Services,Children Looked After,5105688297,22.10.2021,Children placed with Family&Friends,Boarding Out Allowances,290.48,REDACTED PERSONAL DATA
Revenue,Childrens Services,Children's & Education Services,Children Looked After,5105687743,15.10.2021,Children placed with Family&Friends,Boarding Out Allowances,290.48,REDACTED PERSONAL DATA
Revenue,Childrens Services,Children's & Education Services,Children Looked After,5105687023,08.10.2021,Children placed with Family&Friends,Boarding Out Allowances,290.48,REDACTED PERSONAL DATA
Revenue,Neighbourhoods,Cultural and Related Services,Library Service,5105688817,27.10.2021,Cowes Library,Cleaning Contracts,80.00,DELTIC CLEANING COMPANY LTD
Revenue,Neighbourhoods,Cultural and Related Services,Library Service,5105688815,27.10.2021,Ventnor Library,Cleaning Contracts,68.00,DELTIC CLEANING COMPANY LTD
Revenue,Neighbourhoods,Cultural and Related Services,Library Service,5105688818,27.10.2021,Sandown Library,Cleaning Contracts,115.00,DELTIC CLEANING COMPANY LTD
Revenue,Neighbourhoods,Cultural and Related Services,Culture and Heritage,5105686803,06.10.2021,Dinosaur Isle Museum (Sandown Geology),Stock Purchases,216.00,DELUXEBASE LTD
Revenue,Neighbourhoods,Cultural and Related Services,Culture and Heritage,5105687072,08.10.2021,Dinosaur Isle Museum (Sandown Geology),Stock Purchases,60.40,DELUXEBASE LTD
Capital,Adult Services,Capital,Capital,5105686060,08.10.2021,Adelaide & Gouldings Fixtures & Fittings,Payment to Contractors - Capital,"3,603.34",DENISON DOORS LIMITED
Revenue,Childrens Services,Children's & Education Services,Family Support Services,5105688473,22.10.2021,Reducing Parental Conflict Programme,Training,750.00,REDACTED PERSONAL DATA
Revenue,Neighbourhoods,Highways and Transport Services,Parking Services,5105686794,06.10.2021,Parking Management,Payment to Private Contractors,"3,145.00",DH PRICE MOTORS
Revenue,Adult Services,Housing Services,Homelessness,5105688439,22.10.2021,Private Rented Sector Leasing Scheme,Accommodation Costs - Leaseholder Payments,780.00,REDACTED PERSONAL DATA
